Workbook

Sheet INGRESO DE DATOS
A18: Tarifas efectivas a partir del 1ro de enero de 2021 — Para renovaciones de pólizas emitidas antes del 1 de abril de 2018
A19: 1. LLENE LA INFORMACIÓN DEL ASEGURADO PROPUESTO:
B21: Nombre del Asegurado Titular | D21: NOMBRE COMPLETO
B23: Número de adultos en la póliza | D23: 2 | F23: Número de niños en la póliza | H23: 2
B25: Edad del Asegurado Titular | D25: 32 | F25: Edad del/la cónyuge | H25: 46
G27: Variante con coaseguro fuera del país de residencia | H27: FALSE
A29: 2. SELECCIONE EL PRODUCTO PARA VER LA COTIZACIÓN CORRESPONDIENTE:
B50: 1 | D50: 1

Sheet Global Ultimate
A25: GLOBAL ULTIMATE HEALTH PLAN | D25: Nombre del Asegurado Titular | F25: =+'INGRESO DE DATOS'!$D$21 -> NOMBRE COMPLETO
D27: Número de adultos en la póliza | F27: =+'INGRESO DE DATOS'!$D$23 -> 2 | H27: Edad del Asegurado Titular | I27: =+'INGRESO DE DATOS'!$D$25 -> 32
D29: Número de niños en la póliza | F29: =+'INGRESO DE DATOS'!$H$23 -> 2 | H29: Edad del/la conyuge | I29: =+'INGRESO DE DATOS'!$H$25 -> 46
D31: Número de niños menores de 16 años | F31: =+'INGRESO DE DATOS'!$B$50 -> 1 | G31: Fecha de la cotización: | H31: =NOW() -> 2021-03-03T12:19:30.890
H32: FALSE
E33: Deducibles | G33: PLAN 1 | H33: PLAN 2
E34: En el país de residencia | G34: 0 | H34: 1000
E35: Fuera del país de residencia | G35: 0 | H35: 1000
E37: Tarifas anuales
E38: Prima para Asegurado Titular | G38: =VLOOKUP($I$27,Tablas!$A$905:$G$971,3,TRUE) -> 19193 | H38: =VLOOKUP($I$27,Tablas!$A$905:$G$971,4,TRUE) -> 12384
E39: Prima para conyuge | G39: =IF($F$27=1,0,(VLOOKUP($I$29,Tablas!$A$905:$G$971,3,TRUE))) -> 26942 | H39: =IF($F$27=1,0,(VLOOKUP($I$29,Tablas!$A$905:$G$971,4,TRUE))) -> 17383
E40: Prima para hijo (s) | G40: =IF($F$27=1, (IF($F$29=0, 0, (IF($F$31>$F$29, (VLOOKUP($F$29,Tablas!$A$972:$G$974,3,TRUE)), (IF($F$29>4,(IF($F$31=0, (VLOOKUP(3,Tablas!$A$972:$G$974,3,TRUE)), (IF($F$31=1, (VLOOKUP(3,Tablas!$A$972:$G$974,3,TRUE)), (IF($F$31=2, (VLOOKUP(3,Tablas!$A$972:$G$974,3,TRUE)), (VLOOKUP(3,Tablas!$A$972:$G$974,3,TRUE)))))))), (IF($F$29=4,(IF(4-$F$31=0,(VLOOKUP(2,Tablas!$A$972:$G$974,3,TRUE)), (IF(4-$F$31=1,(VLOOKUP(2,Tablas!$A$972:$G$974,3,TRUE)), (IF(4-$F$31=2, (VLOOKUP(2,Tablas!$A$972:$G$974,3,TRUE)), (VLOOKUP(3,Tablas!$A$972:$G$974,3,TRUE)))))))), (IF($F$29=3,(IF(3-$F$31=0,(VLOOKUP(1,Tablas!$A$972:$G$974,3,TRUE)), (IF(3-$F$31=1,(VLOOKUP(1,Tablas!$A$972:$G$974,3,TRUE)), (IF(3-$F$31=2, (VLOOKUP(2,Tablas!$A$972:$G$974,3,TRUE)), (VLOOKUP(3,Tablas!$A$972:$G$974,3,TRUE)))))))), (IF($F$29=2,(IF(2-$F$31=0, 0, (IF(2-$F$31=1,(VLOOKUP(1,Tablas!$A$972:$G$974,3,TRUE)), (IF(2-$F$31=2, (VLOOKUP(2,Tablas!$A$972:$G$974,3,TRUE)), 0)))))), (IF($F$29=1,(IF(1-$F$31=0, 0, (IF(1-$F$31=1,(VLOOKUP(1,Tablas!$A$972:$G$974,3,TRUE)),0)))),0)))))))))))))), (IF($F$29=0, 0, (IF($F$31>$F$29, (VLOOKUP($F$29,Tablas!$A$972:$G$974,3,TRUE)), (IF($F$29=4,(IF(4-$F$31=0, 0, (IF(4-$F$31=1, (VLOOKUP(1,Tablas!$A$972:$G$974,3,TRUE)), (IF(4-$F$31=2, (VLOOKUP(2,Tablas!$A$972:$G$974,3,TRUE)), (IF(4-$F$31=3, (VLOOKUP(3,Tablas!$A$972:$G$974,3,TRUE)), (IF(4-$F$31=4, (VLOOKUP(3,Tablas!$A$972:$G$974,3,TRUE)), 0)))))))))), (IF($F$29=5,(IF(5-$F$31=0, (VLOOKUP(1,Tablas!$A$972:$G$974,3,TRUE)), (IF(5-$F$31=1, (VLOOKUP(1,Tablas!$A$972:$G$974,3,TRUE)), (IF(5-$F$31=2, (VLOOKUP(2,Tablas!$A$972:$G$974,3,TRUE)), (IF(5-$F$31=3, (VLOOKUP(3,Tablas!$A$972:$G$974,3,TRUE)), (IF(5-$F$31=4, (VLOOKUP(3,Tablas!$A$972:$G$974,3,TRUE)), (VLOOKUP(3,Tablas!$A$972:$G$974,3,TRUE)))))))))))), (IF($F$29=6,(IF(6-$F$31=0, (VLOOKUP(2,Tablas!$A$972:$G$974,3,TRUE)), (IF(6-$F$31=1, (VLOOKUP(2,Tablas!$A$972:$G$974,3,TRUE)), (IF(6-$F$31=2, (VLOOKUP(2,Tablas!$A$972:$G$974,3,TRUE)), (IF(6-$F$31=3, (VLOOKUP(3,Tablas!$A$972:$G$974,3,TRUE)), (IF(6-$F$31=4, (VLOOKUP(3,Tablas!$A$972:$G$974,3,TRUE)), (VLOOKUP(3,Tablas!$A$972:$G$974,3,TRUE)))))))))))), (IF($F$29>6,(IF(7-$F$31=0, (VLOOKUP(3,Tablas!$A$972:$G$974,3,TRUE)), (IF(7-$F$31=1, (VLOOKUP(3,Tablas!$A$972:$G$974,3,TRUE)), (IF(7-$F$31=2, (VLOOKUP(3,Tablas!$A$972:$G$974,3,TRUE)), (IF(7-$F$31=3, (VLOOKUP(3,Tablas!$A$972:$G$974,3,TRUE)), (IF(7-$F$31=4, (VLOOKUP(3,Tablas!$A$972:$G$974,3,TRUE)), (VLOOKUP(3,Tablas!$A$972:$G$974,3,TRUE)))))))))))), (IF($F$29=3,(IF(3-$F$31=0,0, (IF(3-$F$31=1,(VLOOKUP(1,Tablas!$A$972:$G$974,3,TRUE)), (IF(3-$F$31=2, (VLOOKUP(2,Tablas!$A$972:$G$974,3,TRUE)), (VLOOKUP(3,Tablas!$A$972:$G$974,3,TRUE)))))))), (IF($F$29=2,(IF(2-$F$31=0, 0, (IF(2-$F$31=1,(VLOOKUP(1,Tablas!$A$972:$G$974,3,TRUE)), (IF(2-$F$31=2, (VLOOKUP(2,Tablas!$A$972:$G$974,3,TRUE)), 0)))))), (IF($F$29=1,(IF(1-$F$31=0, 0, (IF(1-$F$31=1,(VLOOKUP(1,Tablas!$A$972:$G$974,3,TRUE)),0)))),0))))))))))))))))))) -> 6746 | H40: =IF($F$27=1, (IF($F$29=0, 0, (IF($F$31>$F$29, (VLOOKUP($F$29,Tablas!$A$972:$G$974,4,TRUE)), (IF($F$29>4,(IF($F$31=0, (VLOOKUP(3,Tablas!$A$972:$G$974,4,TRUE)), (IF($F$31=1, (VLOOKUP(3,Tablas!$A$972:$G$974,4,TRUE)), (IF($F$31=2, (VLOOKUP(3,Tablas!$A$972:$G$974,4,TRUE)), (VLOOKUP(3,Tablas!$A$972:$G$974,4,TRUE)))))))), (IF($F$29=4,(IF(4-$F$31=0,(VLOOKUP(2,Tablas!$A$972:$G$974,4,TRUE)), (IF(4-$F$31=1,(VLOOKUP(2,Tablas!$A$972:$G$974,4,TRUE)), (IF(4-$F$31=2, (VLOOKUP(2,Tablas!$A$972:$G$974,4,TRUE)), (VLOOKUP(3,Tablas!$A$972:$G$974,4,TRUE)))))))), (IF($F$29=3,(IF(3-$F$31=0,(VLOOKUP(1,Tablas!$A$972:$G$974,4,TRUE)), (IF(3-$F$31=1,(VLOOKUP(1,Tablas!$A$972:$G$974,4,TRUE)), (IF(3-$F$31=2, (VLOOKUP(2,Tablas!$A$972:$G$974,4,TRUE)), (VLOOKUP(3,Tablas!$A$972:$G$974,4,TRUE)))))))), (IF($F$29=2,(IF(2-$F$31=0, 0, (IF(2-$F$31=1,(VLOOKUP(1,Tablas!$A$972:$G$974,4,TRUE)), (IF(2-$F$31=2, (VLOOKUP(2,Tablas!$A$972:$G$974,4,TRUE)), 0)))))), (IF($F$29=1,(IF(1-$F$31=0, 0, (IF(1-$F$31=1,(VLOOKUP(1,Tablas!$A$972:$G$974,4,TRUE)),0)))),0)))))))))))))), (IF($F$29=0, 0, (IF($F$31>$F$29, (VLOOKUP($F$29,Tablas!$A$972:$G$974,4,TRUE)), (IF($F$29=4,(IF(4-$F$31=0, 0, (IF(4-$F$31=1, (VLOOKUP(1,Tablas!$A$972:$G$974,4,TRUE)), (IF(4-$F$31=2, (VLOOKUP(2,Tablas!$A$972:$G$974,4,TRUE)), (IF(4-$F$31=3, (VLOOKUP(3,Tablas!$A$972:$G$974,4,TRUE)), (IF(4-$F$31=4, (VLOOKUP(3,Tablas!$A$972:$G$974,4,TRUE)), 0)))))))))), (IF($F$29=5,(IF(5-$F$31=0, (VLOOKUP(1,Tablas!$A$972:$G$974,4,TRUE)), (IF(5-$F$31=1, (VLOOKUP(1,Tablas!$A$972:$G$974,4,TRUE)), (IF(5-$F$31=2, (VLOOKUP(2,Tablas!$A$972:$G$974,4,TRUE)), (IF(5-$F$31=3, (VLOOKUP(3,Tablas!$A$972:$G$974,4,TRUE)), (IF(5-$F$31=4, (VLOOKUP(3,Tablas!$A$972:$G$974,4,TRUE)), (VLOOKUP(3,Tablas!$A$972:$G$974,4,TRUE)))))))))))), (IF($F$29=6,(IF(6-$F$31=0, (VLOOKUP(2,Tablas!$A$972:$G$974,4,TRUE)), (IF(6-$F$31=1, (VLOOKUP(2,Tablas!$A$972:$G$974,4,TRUE)), (IF(6-$F$31=2, (VLOOKUP(2,Tablas!$A$972:$G$974,4,TRUE)), (IF(6-$F$31=3, (VLOOKUP(3,Tablas!$A$972:$G$974,4,TRUE)), (IF(6-$F$31=4, (VLOOKUP(3,Tablas!$A$972:$G$974,4,TRUE)), (VLOOKUP(3,Tablas!$A$972:$G$974,4,TRUE)))))))))))), (IF($F$29>6,(IF(7-$F$31=0, (VLOOKUP(3,Tablas!$A$972:$G$974,4,TRUE)), (IF(7-$F$31=1, (VLOOKUP(3,Tablas!$A$972:$G$974,4,TRUE)), (IF(7-$F$31=2, (VLOOKUP(3,Tablas!$A$972:$G$974,4,TRUE)), (IF(7-$F$31=3, (VLOOKUP(3,Tablas!$A$972:$G$974,4,TRUE)), (IF(7-$F$31=4, (VLOOKUP(3,Tablas!$A$972:$G$974,4,TRUE)), (VLOOKUP(3,Tablas!$A$972:$G$974,4,TRUE)))))))))))), (IF($F$29=3,(IF(3-$F$31=0,0, (IF(3-$F$31=1,(VLOOKUP(1,Tablas!$A$972:$G$974,4,TRUE)), (IF(3-$F$31=2, (VLOOKUP(2,Tablas!$A$972:$G$974,4,TRUE)), (VLOOKUP(3,Tablas!$A$972:$G$974,4,TRUE)))))))), (IF($F$29=2,(IF(2-$F$31=0, 0, (IF(2-$F$31=1,(VLOOKUP(1,Tablas!$A$972:$G$974,4,TRUE)), (IF(2-$F$31=2, (VLOOKUP(2,Tablas!$A$972:$G$974,4,TRUE)), 0)))))), (IF($F$29=1,(IF(1-$F$31=0, 0, (IF(1-$F$31=1,(VLOOKUP(1,Tablas!$A$972:$G$974,4,TRUE)),0)))),0))))))))))))))))))) -> 4352
E41: Total de Prima neta | G41: =SUM(G38:G40) -> 52881 | H41: =SUM(H38:H40) -> 34119
E42: Tarifa administrativa anual | G42: 75 | H42: 75
E43: IVA (12%) | G43: =(G42+G41)*0% -> 0 | H43: =(H42+H41)*0% -> 0
E44: TOTAL ANUAL | G44: =SUM(G41:G43) -> 52956 | H44: =SUM(H41:H43) -> 34194
E45: Ahorros en tarifas de prima para niños | G45: =IF($F$27=1,IF($F$29=0,0,IF($F$31=0,0,IF($F$31=1,(VLOOKUP(1,Tablas!$A$972:$G$974,3,TRUE)),(VLOOKUP(2,Tablas!$A$972:$G$974,3,TRUE))))), IF($F$29=0,0,IF($F$31=0,0,IF($F$31=1,(VLOOKUP(1,Tablas!$A$972:$G$974,3,TRUE)),IF($F$31=2,(VLOOKUP(2,Tablas!$A$972:$G$974,3,TRUE)), (VLOOKUP(3,Tablas!$A$972:$G$974,3,TRUE))))))) -> 6746 | H45: =IF($F$27=1,IF($F$29=0,0,IF($F$31=0,0,IF($F$31=1,(VLOOKUP(1,Tablas!$A$972:$G$974,4,TRUE)),(VLOOKUP(2,Tablas!$A$972:$G$974,4,TRUE))))), IF($F$29=0,0,IF($F$31=0,0,IF($F$31=1,(VLOOKUP(1,Tablas!$A$972:$G$974,4,TRUE)),IF($F$31=2,(VLOOKUP(2,Tablas!$A$972:$G$974,4,TRUE)), (VLOOKUP(3,Tablas!$A$972:$G$974,4,TRUE))))))) -> 4352
E47: Tarifas semi anuales
E48: Prima para Asegurado Titular | G48: =VLOOKUP($I$27,Tablas!$A$1428:$G$1494,3,TRUE) -> 10172.29 | H48: =VLOOKUP($I$27,Tablas!$A$1428:$G$1494,4,TRUE) -> 6563.52
E49: Prima para conyuge | G49: =IF($F$27=1,0,(VLOOKUP($I$29,Tablas!$A$1428:$G$1494,3,TRUE))) -> 14279.26 | H49: =IF($F$27=1,0,(VLOOKUP($I$29,Tablas!$A$1428:$G$1494,4,TRUE))) -> 9212.99
E50: Prima para hijo (s) | G50: =IF($F$27=1, (IF($F$29=0, 0, (IF($F$31>$F$29, (VLOOKUP($F$29,Tablas!$A$1495:$G$1497,3,TRUE)), (IF($F$29>4,(IF($F$31=0, (VLOOKUP(3,Tablas!$A$1495:$G$1497,3,TRUE)), (IF($F$31=1, (VLOOKUP(3,Tablas!$A$1495:$G$1497,3,TRUE)), (IF($F$31=2, (VLOOKUP(3,Tablas!$A$1495:$G$1497,3,TRUE)), (VLOOKUP(3,Tablas!$A$1495:$G$1497,3,TRUE)))))))), (IF($F$29=4,(IF(4-$F$31=0,(VLOOKUP(2,Tablas!$A$1495:$G$1497,3,TRUE)), (IF(4-$F$31=1,(VLOOKUP(2,Tablas!$A$1495:$G$1497,3,TRUE)), (IF(4-$F$31=2, (VLOOKUP(2,Tablas!$A$1495:$G$1497,3,TRUE)), (VLOOKUP(3,Tablas!$A$1495:$G$1497,3,TRUE)))))))), (IF($F$29=3,(IF(3-$F$31=0,(VLOOKUP(1,Tablas!$A$1495:$G$1497,3,TRUE)), (IF(3-$F$31=1,(VLOOKUP(1,Tablas!$A$1495:$G$1497,3,TRUE)), (IF(3-$F$31=2, (VLOOKUP(2,Tablas!$A$1495:$G$1497,3,TRUE)), (VLOOKUP(3,Tablas!$A$1495:$G$1497,3,TRUE)))))))), (IF($F$29=2,(IF(2-$F$31=0, 0, (IF(2-$F$31=1,(VLOOKUP(1,Tablas!$A$1495:$G$1497,3,TRUE)), (IF(2-$F$31=2, (VLOOKUP(2,Tablas!$A$1495:$G$1497,3,TRUE)), 0)))))), (IF($F$29=1,(IF(1-$F$31=0, 0, (IF(1-$F$31=1,(VLOOKUP(1,Tablas!$A$1495:$G$1497,3,TRUE)),0)))),0)))))))))))))), (IF($F$29=0, 0, (IF($F$31>$F$29, (VLOOKUP($F$29,Tablas!$A$1495:$G$1497,3,TRUE)), (IF($F$29=4,(IF(4-$F$31=0, 0, (IF(4-$F$31=1, (VLOOKUP(1,Tablas!$A$1495:$G$1497,3,TRUE)), (IF(4-$F$31=2, (VLOOKUP(2,Tablas!$A$1495:$G$1497,3,TRUE)), (IF(4-$F$31=3, (VLOOKUP(3,Tablas!$A$1495:$G$1497,3,TRUE)), (IF(4-$F$31=4, (VLOOKUP(3,Tablas!$A$1495:$G$1497,3,TRUE)), 0)))))))))), (IF($F$29=5,(IF(5-$F$31=0, (VLOOKUP(1,Tablas!$A$1495:$G$1497,3,TRUE)), (IF(5-$F$31=1, (VLOOKUP(1,Tablas!$A$1495:$G$1497,3,TRUE)), (IF(5-$F$31=2, (VLOOKUP(2,Tablas!$A$1495:$G$1497,3,TRUE)), (IF(5-$F$31=3, (VLOOKUP(3,Tablas!$A$1495:$G$1497,3,TRUE)), (IF(5-$F$31=4, (VLOOKUP(3,Tablas!$A$1495:$G$1497,3,TRUE)), (VLOOKUP(3,Tablas!$A$1495:$G$1497,3,TRUE)))))))))))), (IF($F$29=6,(IF(6-$F$31=0, (VLOOKUP(2,Tablas!$A$1495:$G$1497,3,TRUE)), (IF(6-$F$31=1, (VLOOKUP(2,Tablas!$A$1495:$G$1497,3,TRUE)), (IF(6-$F$31=2, (VLOOKUP(2,Tablas!$A$1495:$G$1497,3,TRUE)), (IF(6-$F$31=3, (VLOOKUP(3,Tablas!$A$1495:$G$1497,3,TRUE)), (IF(6-$F$31=4, (VLOOKUP(3,Tablas!$A$1495:$G$1497,3,TRUE)), (VLOOKUP(3,Tablas!$A$1495:$G$1497,3,TRUE)))))))))))), (IF($F$29>6,(IF(7-$F$31=0, (VLOOKUP(3,Tablas!$A$1495:$G$1497,3,TRUE)), (IF(7-$F$31=1, (VLOOKUP(3,Tablas!$A$1495:$G$1497,3,TRUE)), (IF(7-$F$31=2, (VLOOKUP(3,Tablas!$A$1495:$G$1497,3,TRUE)), (IF(7-$F$31=3, (VLOOKUP(3,Tablas!$A$1495:$G$1497,3,TRUE)), (IF(7-$F$31=4, (VLOOKUP(3,Tablas!$A$1495:$G$1497,3,TRUE)), (VLOOKUP(3,Tablas!$A$1495:$G$1497,3,TRUE)))))))))))), (IF($F$29=3,(IF(3-$F$31=0,0, (IF(3-$F$31=1,(VLOOKUP(1,Tablas!$A$1495:$G$1497,3,TRUE)), (IF(3-$F$31=2, (VLOOKUP(2,Tablas!$A$1495:$G$1497,3,TRUE)), (VLOOKUP(3,Tablas!$A$1495:$G$1497,3,TRUE)))))))), (IF($F$29=2,(IF(2-$F$31=0, 0, (IF(2-$F$31=1,(VLOOKUP(1,Tablas!$A$1495:$G$1497,3,TRUE)), (IF(2-$F$31=2, (VLOOKUP(2,Tablas!$A$1495:$G$1497,3,TRUE)), 0)))))), (IF($F$29=1,(IF(1-$F$31=0, 0, (IF(1-$F$31=1,(VLOOKUP(1,Tablas!$A$1495:$G$1497,3,TRUE)),0)))),0))))))))))))))))))) -> 3575.38 | H50: =IF($F$27=1, (IF($F$29=0, 0, (IF($F$31>$F$29, (VLOOKUP($F$29,Tablas!$A$1495:$G$1497,4,TRUE)), (IF($F$29>4,(IF($F$31=0, (VLOOKUP(3,Tablas!$A$1495:$G$1497,4,TRUE)), (IF($F$31=1, (VLOOKUP(3,Tablas!$A$1495:$G$1497,4,TRUE)), (IF($F$31=2, (VLOOKUP(3,Tablas!$A$1495:$G$1497,4,TRUE)), (VLOOKUP(3,Tablas!$A$1495:$G$1497,4,TRUE)))))))), (IF($F$29=4,(IF(4-$F$31=0,(VLOOKUP(2,Tablas!$A$1495:$G$1497,4,TRUE)), (IF(4-$F$31=1,(VLOOKUP(2,Tablas!$A$1495:$G$1497,4,TRUE)), (IF(4-$F$31=2, (VLOOKUP(2,Tablas!$A$1495:$G$1497,4,TRUE)), (VLOOKUP(3,Tablas!$A$1495:$G$1497,4,TRUE)))))))), (IF($F$29=3,(IF(3-$F$31=0,(VLOOKUP(1,Tablas!$A$1495:$G$1497,4,TRUE)), (IF(3-$F$31=1,(VLOOKUP(1,Tablas!$A$1495:$G$1497,4,TRUE)), (IF(3-$F$31=2, (VLOOKUP(2,Tablas!$A$1495:$G$1497,4,TRUE)), (VLOOKUP(3,Tablas!$A$1495:$G$1497,4,TRUE)))))))), (IF($F$29=2,(IF(2-$F$31=0, 0, (IF(2-$F$31=1,(VLOOKUP(1,Tablas!$A$1495:$G$1497,4,TRUE)), (IF(2-$F$31=2, (VLOOKUP(2,Tablas!$A$1495:$G$1497,4,TRUE)), 0)))))), (IF($F$29=1,(IF(1-$F$31=0, 0, (IF(1-$F$31=1,(VLOOKUP(1,Tablas!$A$1495:$G$1497,4,TRUE)),0)))),0)))))))))))))), (IF($F$29=0, 0, (IF($F$31>$F$29, (VLOOKUP($F$29,Tablas!$A$1495:$G$1497,4,TRUE)), (IF($F$29=4,(IF(4-$F$31=0, 0, (IF(4-$F$31=1, (VLOOKUP(1,Tablas!$A$1495:$G$1497,4,TRUE)), (IF(4-$F$31=2, (VLOOKUP(2,Tablas!$A$1495:$G$1497,4,TRUE)), (IF(4-$F$31=3, (VLOOKUP(3,Tablas!$A$1495:$G$1497,4,TRUE)), (IF(4-$F$31=4, (VLOOKUP(3,Tablas!$A$1495:$G$1497,4,TRUE)), 0)))))))))), (IF($F$29=5,(IF(5-$F$31=0, (VLOOKUP(1,Tablas!$A$1495:$G$1497,4,TRUE)), (IF(5-$F$31=1, (VLOOKUP(1,Tablas!$A$1495:$G$1497,4,TRUE)), (IF(5-$F$31=2, (VLOOKUP(2,Tablas!$A$1495:$G$1497,4,TRUE)), (IF(5-$F$31=3, (VLOOKUP(3,Tablas!$A$1495:$G$1497,4,TRUE)), (IF(5-$F$31=4, (VLOOKUP(3,Tablas!$A$1495:$G$1497,4,TRUE)), (VLOOKUP(3,Tablas!$A$1495:$G$1497,4,TRUE)))))))))))), (IF($F$29=6,(IF(6-$F$31=0, (VLOOKUP(2,Tablas!$A$1495:$G$1497,4,TRUE)), (IF(6-$F$31=1, (VLOOKUP(2,Tablas!$A$1495:$G$1497,4,TRUE)), (IF(6-$F$31=2, (VLOOKUP(2,Tablas!$A$1495:$G$1497,4,TRUE)), (IF(6-$F$31=3, (VLOOKUP(3,Tablas!$A$1495:$G$1497,4,TRUE)), (IF(6-$F$31=4, (VLOOKUP(3,Tablas!$A$1495:$G$1497,4,TRUE)), (VLOOKUP(3,Tablas!$A$1495:$G$1497,4,TRUE)))))))))))), (IF($F$29>6,(IF(7-$F$31=0, (VLOOKUP(3,Tablas!$A$1495:$G$1497,4,TRUE)), (IF(7-$F$31=1, (VLOOKUP(3,Tablas!$A$1495:$G$1497,4,TRUE)), (IF(7-$F$31=2, (VLOOKUP(3,Tablas!$A$1495:$G$1497,4,TRUE)), (IF(7-$F$31=3, (VLOOKUP(3,Tablas!$A$1495:$G$1497,4,TRUE)), (IF(7-$F$31=4, (VLOOKUP(3,Tablas!$A$1495:$G$1497,4,TRUE)), (VLOOKUP(3,Tablas!$A$1495:$G$1497,4,TRUE)))))))))))), (IF($F$29=3,(IF(3-$F$31=0,0, (IF(3-$F$31=1,(VLOOKUP(1,Tablas!$A$1495:$G$1497,4,TRUE)), (IF(3-$F$31=2, (VLOOKUP(2,Tablas!$A$1495:$G$1497,4,TRUE)), (VLOOKUP(3,Tablas!$A$1495:$G$1497,4,TRUE)))))))), (IF($F$29=2,(IF(2-$F$31=0, 0, (IF(2-$F$31=1,(VLOOKUP(1,Tablas!$A$1495:$G$1497,4,TRUE)), (IF(2-$F$31=2, (VLOOKUP(2,Tablas!$A$1495:$G$1497,4,TRUE)), 0)))))), (IF($F$29=1,(IF(1-$F$31=0, 0, (IF(1-$F$31=1,(VLOOKUP(1,Tablas!$A$1495:$G$1497,4,TRUE)),0)))),0))))))))))))))))))) -> 2306.56
E51: Total de Prima neta | G51: =SUM(G48:G50) -> 28026.93 | H51: =SUM(H48:H50) -> 18083.07
E52: Tarifa administrativa anual | G52: 75 | H52: 75
E53: IVA (12%) | G53: =(G51+G52)*0% -> 0 | H53: =(H51+H52)*0% -> 0
E54: TOTAL de primera cuota | G54: =SUM(G51:G53) -> 28101.93 | H54: =SUM(H51:H53) -> 18158.07
E55: Costo de segunda cuota | G55: =G51 -> 28026.93 | H55: =H51 -> 18083.07
E56: TOTAL ANUAL | G56: =G54+G55 -> 56128.86 | H56: =H54+H55 -> 36241.14
E57: Ahorros en tarifas de prima para niños | G57: =IF($F$27=1,IF($F$29=0,0,IF($F$31=0,0,IF($F$31=1,(VLOOKUP(1,Tablas!$A$1495:$G$1497,3,TRUE)),(VLOOKUP(2,Tablas!$A$1495:$G$1497,3,TRUE))))), IF($F$29=0,0,IF($F$31=0,0,IF($F$31=1,(VLOOKUP(1,Tablas!$A$1495:$G$1497,3,TRUE)),IF($F$31=2,(VLOOKUP(2,Tablas!$A$1495:$G$1497,3,TRUE)), (VLOOKUP(3,Tablas!$A$1495:$G$1497,3,TRUE))))))) -> 3575.38 | H57: =IF($F$27=1,IF($F$29=0,0,IF($F$31=0,0,IF($F$31=1,(VLOOKUP(1,Tablas!$A$1495:$G$1497,4,TRUE)),(VLOOKUP(2,Tablas!$A$1495:$G$1497,4,TRUE))))), IF($F$29=0,0,IF($F$31=0,0,IF($F$31=1,(VLOOKUP(1,Tablas!$A$1495:$G$1497,4,TRUE)),IF($F$31=2,(VLOOKUP(2,Tablas!$A$1495:$G$1497,4,TRUE)), (VLOOKUP(3,Tablas!$A$1495:$G$1497,4,TRUE))))))) -> 2306.56
E59: Tarifas trimestrales
E60: Prima para Asegurado Titular | G60: =VLOOKUP($I$27,Tablas!$A$1054:$G$1120,3,TRUE) -> 5278.075 | H60: =VLOOKUP($I$27,Tablas!$A$1054:$G$1120,4,TRUE) -> 3405.6
E61: Prima para conyuge | G61: =IF($F$27=1,0,(VLOOKUP($I$29,Tablas!$A$1054:$G$1120,3,TRUE))) -> 7409.05 | H61: =IF($F$27=1,0,(VLOOKUP($I$29,Tablas!$A$1054:$G$1120,4,TRUE))) -> 4780.325
E62: Prima para hijo (s) | G62: =IF($F$27=1, (IF($F$29=0, 0, (IF($F$31>$F$29, (VLOOKUP($F$29,Tablas!$A$1121:$G$1123,3,TRUE)), (IF($F$29>4,(IF($F$31=0, (VLOOKUP(3,Tablas!$A$1121:$G$1123,3,TRUE)), (IF($F$31=1, (VLOOKUP(3,Tablas!$A$1121:$G$1123,3,TRUE)), (IF($F$31=2, (VLOOKUP(3,Tablas!$A$1121:$G$1123,3,TRUE)), (VLOOKUP(3,Tablas!$A$1121:$G$1123,3,TRUE)))))))), (IF($F$29=4,(IF(4-$F$31=0,(VLOOKUP(2,Tablas!$A$1121:$G$1123,3,TRUE)), (IF(4-$F$31=1,(VLOOKUP(2,Tablas!$A$1121:$G$1123,3,TRUE)), (IF(4-$F$31=2, (VLOOKUP(2,Tablas!$A$1121:$G$1123,3,TRUE)), (VLOOKUP(3,Tablas!$A$1121:$G$1123,3,TRUE)))))))), (IF($F$29=3,(IF(3-$F$31=0,(VLOOKUP(1,Tablas!$A$1121:$G$1123,3,TRUE)), (IF(3-$F$31=1,(VLOOKUP(1,Tablas!$A$1121:$G$1123,3,TRUE)), (IF(3-$F$31=2, (VLOOKUP(2,Tablas!$A$1121:$G$1123,3,TRUE)), (VLOOKUP(3,Tablas!$A$1121:$G$1123,3,TRUE)))))))), (IF($F$29=2,(IF(2-$F$31=0, 0, (IF(2-$F$31=1,(VLOOKUP(1,Tablas!$A$1121:$G$1123,3,TRUE)), (IF(2-$F$31=2, (VLOOKUP(2,Tablas!$A$1121:$G$1123,3,TRUE)), 0)))))), (IF($F$29=1,(IF(1-$F$31=0, 0, (IF(1-$F$31=1,(VLOOKUP(1,Tablas!$A$1121:$G$1123,3,TRUE)),0)))),0)))))))))))))), (IF($F$29=0, 0, (IF($F$31>$F$29, (VLOOKUP($F$29,Tablas!$A$1121:$G$1123,3,TRUE)), (IF($F$29=4,(IF(4-$F$31=0, 0, (IF(4-$F$31=1, (VLOOKUP(1,Tablas!$A$1121:$G$1123,3,TRUE)), (IF(4-$F$31=2, (VLOOKUP(2,Tablas!$A$1121:$G$1123,3,TRUE)), (IF(4-$F$31=3, (VLOOKUP(3,Tablas!$A$1121:$G$1123,3,TRUE)), (IF(4-$F$31=4, (VLOOKUP(3,Tablas!$A$1121:$G$1123,3,TRUE)), 0)))))))))), (IF($F$29=5,(IF(5-$F$31=0, (VLOOKUP(1,Tablas!$A$1121:$G$1123,3,TRUE)), (IF(5-$F$31=1, (VLOOKUP(1,Tablas!$A$1121:$G$1123,3,TRUE)), (IF(5-$F$31=2, (VLOOKUP(2,Tablas!$A$1121:$G$1123,3,TRUE)), (IF(5-$F$31=3, (VLOOKUP(3,Tablas!$A$1121:$G$1123,3,TRUE)), (IF(5-$F$31=4, (VLOOKUP(3,Tablas!$A$1121:$G$1123,3,TRUE)), (VLOOKUP(3,Tablas!$A$1121:$G$1123,3,TRUE)))))))))))), (IF($F$29=6,(IF(6-$F$31=0, (VLOOKUP(2,Tablas!$A$1121:$G$1123,3,TRUE)), (IF(6-$F$31=1, (VLOOKUP(2,Tablas!$A$1121:$G$1123,3,TRUE)), (IF(6-$F$31=2, (VLOOKUP(2,Tablas!$A$1121:$G$1123,3,TRUE)), (IF(6-$F$31=3, (VLOOKUP(3,Tablas!$A$1121:$G$1123,3,TRUE)), (IF(6-$F$31=4, (VLOOKUP(3,Tablas!$A$1121:$G$1123,3,TRUE)), (VLOOKUP(3,Tablas!$A$1121:$G$1123,3,TRUE)))))))))))), (IF($F$29>6,(IF(7-$F$31=0, (VLOOKUP(3,Tablas!$A$1121:$G$1123,3,TRUE)), (IF(7-$F$31=1, (VLOOKUP(3,Tablas!$A$1121:$G$1123,3,TRUE)), (IF(7-$F$31=2, (VLOOKUP(3,Tablas!$A$1121:$G$1123,3,TRUE)), (IF(7-$F$31=3, (VLOOKUP(3,Tablas!$A$1121:$G$1123,3,TRUE)), (IF(7-$F$31=4, (VLOOKUP(3,Tablas!$A$1121:$G$1123,3,TRUE)), (VLOOKUP(3,Tablas!$A$1121:$G$1123,3,TRUE)))))))))))), (IF($F$29=3,(IF(3-$F$31=0,0, (IF(3-$F$31=1,(VLOOKUP(1,Tablas!$A$1121:$G$1123,3,TRUE)), (IF(3-$F$31=2, (VLOOKUP(2,Tablas!$A$1121:$G$1123,3,TRUE)), (VLOOKUP(3,Tablas!$A$1121:$G$1123,3,TRUE)))))))), (IF($F$29=2,(IF(2-$F$31=0, 0, (IF(2-$F$31=1,(VLOOKUP(1,Tablas!$A$1121:$G$1123,3,TRUE)), (IF(2-$F$31=2, (VLOOKUP(2,Tablas!$A$1121:$G$1123,3,TRUE)), 0)))))), (IF($F$29=1,(IF(1-$F$31=0, 0, (IF(1-$F$31=1,(VLOOKUP(1,Tablas!$A$1121:$G$1123,3,TRUE)),0)))),0))))))))))))))))))) -> 1855.15 | H62: =IF($F$27=1, (IF($F$29=0, 0, (IF($F$31>$F$29, (VLOOKUP($F$29,Tablas!$A$1121:$G$1123,4,TRUE)), (IF($F$29>4,(IF($F$31=0, (VLOOKUP(3,Tablas!$A$1121:$G$1123,4,TRUE)), (IF($F$31=1, (VLOOKUP(3,Tablas!$A$1121:$G$1123,4,TRUE)), (IF($F$31=2, (VLOOKUP(3,Tablas!$A$1121:$G$1123,4,TRUE)), (VLOOKUP(3,Tablas!$A$1121:$G$1123,4,TRUE)))))))), (IF($F$29=4,(IF(4-$F$31=0,(VLOOKUP(2,Tablas!$A$1121:$G$1123,4,TRUE)), (IF(4-$F$31=1,(VLOOKUP(2,Tablas!$A$1121:$G$1123,4,TRUE)), (IF(4-$F$31=2, (VLOOKUP(2,Tablas!$A$1121:$G$1123,4,TRUE)), (VLOOKUP(3,Tablas!$A$1121:$G$1123,4,TRUE)))))))), (IF($F$29=3,(IF(3-$F$31=0,(VLOOKUP(1,Tablas!$A$1121:$G$1123,4,TRUE)), (IF(3-$F$31=1,(VLOOKUP(1,Tablas!$A$1121:$G$1123,4,TRUE)), (IF(3-$F$31=2, (VLOOKUP(2,Tablas!$A$1121:$G$1123,4,TRUE)), (VLOOKUP(3,Tablas!$A$1121:$G$1123,4,TRUE)))))))), (IF($F$29=2,(IF(2-$F$31=0, 0, (IF(2-$F$31=1,(VLOOKUP(1,Tablas!$A$1121:$G$1123,4,TRUE)), (IF(2-$F$31=2, (VLOOKUP(2,Tablas!$A$1121:$G$1123,4,TRUE)), 0)))))), (IF($F$29=1,(IF(1-$F$31=0, 0, (IF(1-$F$31=1,(VLOOKUP(1,Tablas!$A$1121:$G$1123,4,TRUE)),0)))),0)))))))))))))), (IF($F$29=0, 0, (IF($F$31>$F$29, (VLOOKUP($F$29,Tablas!$A$1121:$G$1123,4,TRUE)), (IF($F$29=4,(IF(4-$F$31=0, 0, (IF(4-$F$31=1, (VLOOKUP(1,Tablas!$A$1121:$G$1123,4,TRUE)), (IF(4-$F$31=2, (VLOOKUP(2,Tablas!$A$1121:$G$1123,4,TRUE)), (IF(4-$F$31=3, (VLOOKUP(3,Tablas!$A$1121:$G$1123,4,TRUE)), (IF(4-$F$31=4, (VLOOKUP(3,Tablas!$A$1121:$G$1123,4,TRUE)), 0)))))))))), (IF($F$29=5,(IF(5-$F$31=0, (VLOOKUP(1,Tablas!$A$1121:$G$1123,4,TRUE)), (IF(5-$F$31=1, (VLOOKUP(1,Tablas!$A$1121:$G$1123,4,TRUE)), (IF(5-$F$31=2, (VLOOKUP(2,Tablas!$A$1121:$G$1123,4,TRUE)), (IF(5-$F$31=3, (VLOOKUP(3,Tablas!$A$1121:$G$1123,4,TRUE)), (IF(5-$F$31=4, (VLOOKUP(3,Tablas!$A$1121:$G$1123,4,TRUE)), (VLOOKUP(3,Tablas!$A$1121:$G$1123,4,TRUE)))))))))))), (IF($F$29=6,(IF(6-$F$31=0, (VLOOKUP(2,Tablas!$A$1121:$G$1123,4,TRUE)), (IF(6-$F$31=1, (VLOOKUP(2,Tablas!$A$1121:$G$1123,4,TRUE)), (IF(6-$F$31=2, (VLOOKUP(2,Tablas!$A$1121:$G$1123,4,TRUE)), (IF(6-$F$31=3, (VLOOKUP(3,Tablas!$A$1121:$G$1123,4,TRUE)), (IF(6-$F$31=4, (VLOOKUP(3,Tablas!$A$1121:$G$1123,4,TRUE)), (VLOOKUP(3,Tablas!$A$1121:$G$1123,4,TRUE)))))))))))), (IF($F$29>6,(IF(7-$F$31=0, (VLOOKUP(3,Tablas!$A$1121:$G$1123,4,TRUE)), (IF(7-$F$31=1, (VLOOKUP(3,Tablas!$A$1121:$G$1123,4,TRUE)), (IF(7-$F$31=2, (VLOOKUP(3,Tablas!$A$1121:$G$1123,4,TRUE)), (IF(7-$F$31=3, (VLOOKUP(3,Tablas!$A$1121:$G$1123,4,TRUE)), (IF(7-$F$31=4, (VLOOKUP(3,Tablas!$A$1121:$G$1123,4,TRUE)), (VLOOKUP(3,Tablas!$A$1121:$G$1123,4,TRUE)))))))))))), (IF($F$29=3,(IF(3-$F$31=0,0, (IF(3-$F$31=1,(VLOOKUP(1,Tablas!$A$1121:$G$1123,4,TRUE)), (IF(3-$F$31=2, (VLOOKUP(2,Tablas!$A$1121:$G$1123,4,TRUE)), (VLOOKUP(3,Tablas!$A$1121:$G$1123,4,TRUE)))))))), (IF($F$29=2,(IF(2-$F$31=0, 0, (IF(2-$F$31=1,(VLOOKUP(1,Tablas!$A$1121:$G$1123,4,TRUE)), (IF(2-$F$31=2, (VLOOKUP(2,Tablas!$A$1121:$G$1123,4,TRUE)), 0)))))), (IF($F$29=1,(IF(1-$F$31=0, 0, (IF(1-$F$31=1,(VLOOKUP(1,Tablas!$A$1121:$G$1123,4,TRUE)),0)))),0))))))))))))))))))) -> 1196.8
E63: Total de Prima neta | G63: =SUM(G60:G62) -> 14542.275 | H63: =SUM(H60:H62) -> 9382.725
E64: Tarifa administrativa anual | G64: 75 | H64: 75
E65: IVA (12%) | G65: =(G63+G64)*0% -> 0 | H65: =(H63+H64)*0% -> 0
E66: TOTAL de primera cuota | G66: =SUM(G63:G65) -> 14617.275 | H66: =SUM(H63:H65) -> 9457.725
E67: Costo de tarifa trimestral 2 a 4 | G67: =G63 -> 14542.275 | H67: =H63 -> 9382.725
E68: TOTAL ANUAL | G68: =G66+(G67*3) -> 58244.1 | H68: =H66+(H67*3) -> 37605.9
E69: Ahorros en tarifas de prima para niños | G69: =IF($F$27=1,IF($F$29=0,0,IF($F$31=0,0,IF($F$31=1,(VLOOKUP(1,Tablas!$A$1121:$G$1123,3,TRUE)),(VLOOKUP(2,Tablas!$A$1121:$G$1123,3,TRUE))))), IF($F$29=0,0,IF($F$31=0,0,IF($F$31=1,(VLOOKUP(1,Tablas!$A$1121:$G$1123,3,TRUE)),IF($F$31=2,(VLOOKUP(2,Tablas!$A$1121:$G$1123,3,TRUE)), (VLOOKUP(3,Tablas!$A$1121:$G$1123,3,TRUE))))))) -> 1855.15 | H69: =IF($F$27=1,IF($F$29=0,0,IF($F$31=0,0,IF($F$31=1,(VLOOKUP(1,Tablas!$A$1121:$G$1123,4,TRUE)),(VLOOKUP(2,Tablas!$A$1121:$G$1123,4,TRUE))))), IF($F$29=0,0,IF($F$31=0,0,IF($F$31=1,(VLOOKUP(1,Tablas!$A$1121:$G$1123,4,TRUE)),IF($F$31=2,(VLOOKUP(2,Tablas!$A$1121:$G$1123,4,TRUE)), (VLOOKUP(3,Tablas!$A$1121:$G$1123,4,TRUE))))))) -> 1196.8
E71: Tarifas mensuales
E72: Prima para Asegurado Titular | G72: =VLOOKUP($I$27,Tablas!$A$979:$G$1045,3,TRUE) -> 1791.346667 | H72: =VLOOKUP($I$27,Tablas!$A$979:$G$1045,4,TRUE) -> 1155.84
E73: Prima para conyuge | G73: =IF($F$27=1,0,(VLOOKUP($I$29,Tablas!$A$979:$G$1045,3,TRUE))) -> 2514.586667 | H73: =IF($F$27=1,0,(VLOOKUP($I$29,Tablas!$A$979:$G$1045,4,TRUE))) -> 1622.413333
E74: Prima para hijo (s) | G74: =IF($F$27=1, (IF($F$29=0, 0, (IF($F$31>$F$29, (VLOOKUP($F$29,Tablas!$A$1046:$G$1048,3,TRUE)), (IF($F$29>4,(IF($F$31=0, (VLOOKUP(3,Tablas!$A$1046:$G$1048,3,TRUE)), (IF($F$31=1, (VLOOKUP(3,Tablas!$A$1046:$G$1048,3,TRUE)), (IF($F$31=2, (VLOOKUP(3,Tablas!$A$1046:$G$1048,3,TRUE)), (VLOOKUP(3,Tablas!$A$1046:$G$1048,3,TRUE)))))))), (IF($F$29=4,(IF(4-$F$31=0,(VLOOKUP(2,Tablas!$A$1046:$G$1048,3,TRUE)), (IF(4-$F$31=1,(VLOOKUP(2,Tablas!$A$1046:$G$1048,3,TRUE)), (IF(4-$F$31=2, (VLOOKUP(2,Tablas!$A$1046:$G$1048,3,TRUE)), (VLOOKUP(3,Tablas!$A$1046:$G$1048,3,TRUE)))))))), (IF($F$29=3,(IF(3-$F$31=0,(VLOOKUP(1,Tablas!$A$1046:$G$1048,3,TRUE)), (IF(3-$F$31=1,(VLOOKUP(1,Tablas!$A$1046:$G$1048,3,TRUE)), (IF(3-$F$31=2, (VLOOKUP(2,Tablas!$A$1046:$G$1048,3,TRUE)), (VLOOKUP(3,Tablas!$A$1046:$G$1048,3,TRUE)))))))), (IF($F$29=2,(IF(2-$F$31=0, 0, (IF(2-$F$31=1,(VLOOKUP(1,Tablas!$A$1046:$G$1048,3,TRUE)), (IF(2-$F$31=2, (VLOOKUP(2,Tablas!$A$1046:$G$1048,3,TRUE)), 0)))))), (IF($F$29=1,(IF(1-$F$31=0, 0, (IF(1-$F$31=1,(VLOOKUP(1,Tablas!$A$1046:$G$1048,3,TRUE)),0)))),0)))))))))))))), (IF($F$29=0, 0, (IF($F$31>$F$29, (VLOOKUP($F$29,Tablas!$A$1046:$G$1048,3,TRUE)), (IF($F$29=4,(IF(4-$F$31=0, 0, (IF(4-$F$31=1, (VLOOKUP(1,Tablas!$A$1046:$G$1048,3,TRUE)), (IF(4-$F$31=2, (VLOOKUP(2,Tablas!$A$1046:$G$1048,3,TRUE)), (IF(4-$F$31=3, (VLOOKUP(3,Tablas!$A$1046:$G$1048,3,TRUE)), (IF(4-$F$31=4, (VLOOKUP(3,Tablas!$A$1046:$G$1048,3,TRUE)), 0)))))))))), (IF($F$29=5,(IF(5-$F$31=0, (VLOOKUP(1,Tablas!$A$1046:$G$1048,3,TRUE)), (IF(5-$F$31=1, (VLOOKUP(1,Tablas!$A$1046:$G$1048,3,TRUE)), (IF(5-$F$31=2, (VLOOKUP(2,Tablas!$A$1046:$G$1048,3,TRUE)), (IF(5-$F$31=3, (VLOOKUP(3,Tablas!$A$1046:$G$1048,3,TRUE)), (IF(5-$F$31=4, (VLOOKUP(3,Tablas!$A$1046:$G$1048,3,TRUE)), (VLOOKUP(3,Tablas!$A$1046:$G$1048,3,TRUE)))))))))))), (IF($F$29=6,(IF(6-$F$31=0, (VLOOKUP(2,Tablas!$A$1046:$G$1048,3,TRUE)), (IF(6-$F$31=1, (VLOOKUP(2,Tablas!$A$1046:$G$1048,3,TRUE)), (IF(6-$F$31=2, (VLOOKUP(2,Tablas!$A$1046:$G$1048,3,TRUE)), (IF(6-$F$31=3, (VLOOKUP(3,Tablas!$A$1046:$G$1048,3,TRUE)), (IF(6-$F$31=4, (VLOOKUP(3,Tablas!$A$1046:$G$1048,3,TRUE)), (VLOOKUP(3,Tablas!$A$1046:$G$1048,3,TRUE)))))))))))), (IF($F$29>6,(IF(7-$F$31=0, (VLOOKUP(3,Tablas!$A$1046:$G$1048,3,TRUE)), (IF(7-$F$31=1, (VLOOKUP(3,Tablas!$A$1046:$G$1048,3,TRUE)), (IF(7-$F$31=2, (VLOOKUP(3,Tablas!$A$1046:$G$1048,3,TRUE)), (IF(7-$F$31=3, (VLOOKUP(3,Tablas!$A$1046:$G$1048,3,TRUE)), (IF(7-$F$31=4, (VLOOKUP(3,Tablas!$A$1046:$G$1048,3,TRUE)), (VLOOKUP(3,Tablas!$A$1046:$G$1048,3,TRUE)))))))))))), (IF($F$29=3,(IF(3-$F$31=0,0, (IF(3-$F$31=1,(VLOOKUP(1,Tablas!$A$1046:$G$1048,3,TRUE)), (IF(3-$F$31=2, (VLOOKUP(2,Tablas!$A$1046:$G$1048,3,TRUE)), (VLOOKUP(3,Tablas!$A$1046:$G$1048,3,TRUE)))))))), (IF($F$29=2,(IF(2-$F$31=0, 0, (IF(2-$F$31=1,(VLOOKUP(1,Tablas!$A$1046:$G$1048,3,TRUE)), (IF(2-$F$31=2, (VLOOKUP(2,Tablas!$A$1046:$G$1048,3,TRUE)), 0)))))), (IF($F$29=1,(IF(1-$F$31=0, 0, (IF(1-$F$31=1,(VLOOKUP(1,Tablas!$A$1046:$G$1048,3,TRUE)),0)))),0))))))))))))))))))) -> 629.6266667 | H74: =IF($F$27=1, (IF($F$29=0, 0, (IF($F$31>$F$29, (VLOOKUP($F$29,Tablas!$A$1046:$G$1048,4,TRUE)), (IF($F$29>4,(IF($F$31=0, (VLOOKUP(3,Tablas!$A$1046:$G$1048,4,TRUE)), (IF($F$31=1, (VLOOKUP(3,Tablas!$A$1046:$G$1048,4,TRUE)), (IF($F$31=2, (VLOOKUP(3,Tablas!$A$1046:$G$1048,4,TRUE)), (VLOOKUP(3,Tablas!$A$1046:$G$1048,4,TRUE)))))))), (IF($F$29=4,(IF(4-$F$31=0,(VLOOKUP(2,Tablas!$A$1046:$G$1048,4,TRUE)), (IF(4-$F$31=1,(VLOOKUP(2,Tablas!$A$1046:$G$1048,4,TRUE)), (IF(4-$F$31=2, (VLOOKUP(2,Tablas!$A$1046:$G$1048,4,TRUE)), (VLOOKUP(3,Tablas!$A$1046:$G$1048,4,TRUE)))))))), (IF($F$29=3,(IF(3-$F$31=0,(VLOOKUP(1,Tablas!$A$1046:$G$1048,4,TRUE)), (IF(3-$F$31=1,(VLOOKUP(1,Tablas!$A$1046:$G$1048,4,TRUE)), (IF(3-$F$31=2, (VLOOKUP(2,Tablas!$A$1046:$G$1048,4,TRUE)), (VLOOKUP(3,Tablas!$A$1046:$G$1048,4,TRUE)))))))), (IF($F$29=2,(IF(2-$F$31=0, 0, (IF(2-$F$31=1,(VLOOKUP(1,Tablas!$A$1046:$G$1048,4,TRUE)), (IF(2-$F$31=2, (VLOOKUP(2,Tablas!$A$1046:$G$1048,4,TRUE)), 0)))))), (IF($F$29=1,(IF(1-$F$31=0, 0, (IF(1-$F$31=1,(VLOOKUP(1,Tablas!$A$1046:$G$1048,4,TRUE)),0)))),0)))))))))))))), (IF($F$29=0, 0, (IF($F$31>$F$29, (VLOOKUP($F$29,Tablas!$A$1046:$G$1048,4,TRUE)), (IF($F$29=4,(IF(4-$F$31=0, 0, (IF(4-$F$31=1, (VLOOKUP(1,Tablas!$A$1046:$G$1048,4,TRUE)), (IF(4-$F$31=2, (VLOOKUP(2,Tablas!$A$1046:$G$1048,4,TRUE)), (IF(4-$F$31=3, (VLOOKUP(3,Tablas!$A$1046:$G$1048,4,TRUE)), (IF(4-$F$31=4, (VLOOKUP(3,Tablas!$A$1046:$G$1048,4,TRUE)), 0)))))))))), (IF($F$29=5,(IF(5-$F$31=0, (VLOOKUP(1,Tablas!$A$1046:$G$1048,4,TRUE)), (IF(5-$F$31=1, (VLOOKUP(1,Tablas!$A$1046:$G$1048,4,TRUE)), (IF(5-$F$31=2, (VLOOKUP(2,Tablas!$A$1046:$G$1048,4,TRUE)), (IF(5-$F$31=3, (VLOOKUP(3,Tablas!$A$1046:$G$1048,4,TRUE)), (IF(5-$F$31=4, (VLOOKUP(3,Tablas!$A$1046:$G$1048,4,TRUE)), (VLOOKUP(3,Tablas!$A$1046:$G$1048,4,TRUE)))))))))))), (IF($F$29=6,(IF(6-$F$31=0, (VLOOKUP(2,Tablas!$A$1046:$G$1048,4,TRUE)), (IF(6-$F$31=1, (VLOOKUP(2,Tablas!$A$1046:$G$1048,4,TRUE)), (IF(6-$F$31=2, (VLOOKUP(2,Tablas!$A$1046:$G$1048,4,TRUE)), (IF(6-$F$31=3, (VLOOKUP(3,Tablas!$A$1046:$G$1048,4,TRUE)), (IF(6-$F$31=4, (VLOOKUP(3,Tablas!$A$1046:$G$1048,4,TRUE)), (VLOOKUP(3,Tablas!$A$1046:$G$1048,4,TRUE)))))))))))), (IF($F$29>6,(IF(7-$F$31=0, (VLOOKUP(3,Tablas!$A$1046:$G$1048,4,TRUE)), (IF(7-$F$31=1, (VLOOKUP(3,Tablas!$A$1046:$G$1048,4,TRUE)), (IF(7-$F$31=2, (VLOOKUP(3,Tablas!$A$1046:$G$1048,4,TRUE)), (IF(7-$F$31=3, (VLOOKUP(3,Tablas!$A$1046:$G$1048,4,TRUE)), (IF(7-$F$31=4, (VLOOKUP(3,Tablas!$A$1046:$G$1048,4,TRUE)), (VLOOKUP(3,Tablas!$A$1046:$G$1048,4,TRUE)))))))))))), (IF($F$29=3,(IF(3-$F$31=0,0, (IF(3-$F$31=1,(VLOOKUP(1,Tablas!$A$1046:$G$1048,4,TRUE)), (IF(3-$F$31=2, (VLOOKUP(2,Tablas!$A$1046:$G$1048,4,TRUE)), (VLOOKUP(3,Tablas!$A$1046:$G$1048,4,TRUE)))))))), (IF($F$29=2,(IF(2-$F$31=0, 0, (IF(2-$F$31=1,(VLOOKUP(1,Tablas!$A$1046:$G$1048,4,TRUE)), (IF(2-$F$31=2, (VLOOKUP(2,Tablas!$A$1046:$G$1048,4,TRUE)), 0)))))), (IF($F$29=1,(IF(1-$F$31=0, 0, (IF(1-$F$31=1,(VLOOKUP(1,Tablas!$A$1046:$G$1048,4,TRUE)),0)))),0))))))))))))))))))) -> 406.1866667
E75: Total de Prima neta | G75: =SUM(G72:G74) -> 4935.56 | H75: =SUM(H72:H74) -> 3184.44
E76: Tarifa administrativa anual | G76: 75 | H76: 75
E77: IVA (12%) | G77: =(G75+G76)*0% -> 0 | H77: =(H75+H76)*0% -> 0
E78: TOTAL de primera cuota | G78: =SUM(G75:G77) -> 5010.56 | H78: =SUM(H75:H77) -> 3259.44
E79: Costo de tarifa mensual 2 a 12 | G79: =G75 -> 4935.56 | H79: =H75 -> 3184.44
E80: TOTAL ANUAL | G80: =G78+(G79*11) -> 59301.72 | H80: =H78+(H79*11) -> 38288.28
E81: Ahorros en tarifas de prima para niños | G81: =IF($F$27=1,IF($F$29=0,0,IF($F$31=0,0,IF($F$31=1,(VLOOKUP(1,Tablas!$A$1046:$G$1048,3,TRUE)),(VLOOKUP(2,Tablas!$A$1046:$G$1048,3,TRUE))))), IF($F$29=0,0,IF($F$31=0,0,IF($F$31=1,(VLOOKUP(1,Tablas!$A$1046:$G$1048,3,TRUE)),IF($F$31=2,(VLOOKUP(2,Tablas!$A$1046:$G$1048,3,TRUE)), (VLOOKUP(3,Tablas!$A$1046:$G$1048,3,TRUE))))))) -> 629.6266667 | H81: =IF($F$27=1,IF($F$29=0,0,IF($F$31=0,0,IF($F$31=1,(VLOOKUP(1,Tablas!$A$1046:$G$1048,4,TRUE)),(VLOOKUP(2,Tablas!$A$1046:$G$1048,4,TRUE))))), IF($F$29=0,0,IF($F$31=0,0,IF($F$31=1,(VLOOKUP(1,Tablas!$A$1046:$G$1048,4,TRUE)),IF($F$31=2,(VLOOKUP(2,Tablas!$A$1046:$G$1048,4,TRUE)), (VLOOKUP(3,Tablas!$A$1046:$G$1048,4,TRUE))))))) -> 406.1866667
E83: Tarifas en US $ - Efectivas a partir del 1ro de enero de 2021
E84: Este presupuesto solamente tiene carácter informativo y en ningún momento expresa compromiso legal para suministrarle cobertura de seguro. La emisión de una póliza de seguro Bupa está sujeta a todas las evaluaciones de riesgo por parte de Bupa y a la recepción de todos los pagos de prima requeridos.

Sheet Global Elite
A34: GLOBAL ELITE HEALTH PLAN | D34: Nombre del Asegurado Titular | F34: =+'INGRESO DE DATOS'!$D$21 -> NOMBRE COMPLETO
D36: Número de adultos en la póliza | F36: =+'INGRESO DE DATOS'!$D$23 -> 2 | H36: Edad del Asegurado Titular | I36: =+'INGRESO DE DATOS'!$D$25 -> 32
D38: Número de niños en la póliza | F38: =+'INGRESO DE DATOS'!$H$23 -> 2 | H38: Edad del/la conyuge | I38: =+'INGRESO DE DATOS'!$H$25 -> 46
D40: Número de niños menores de 10 años | F40: =+'INGRESO DE DATOS'!$D$50 -> 1 | G40: Fecha de la cotización: | H40: =NOW() -> 2021-03-03T12:19:30.890
H41: FALSE
E42: DEDUCTIBLES | G42: PLAN 1 | H42: PLAN 2 | I42: PLAN 3 | J42: PLAN 4 | K42: PLAN 5
E43: En el país de residencia | G43: 250 | H43: 2000 | I43: 3500 | J43: 5000 | K43: 10000
E44: Fuera del país de residencia | G44: 5000 | H44: 2000 | I44: 3500 | J44: 5000 | K44: 10000
E46: Tarifas anuales
E47: Prima para Asegurado Titular | G47: =VLOOKUP($I$36,Tablas!$A$6:$G$72,3,TRUE) -> 8166 | H47: =VLOOKUP($I$36,Tablas!$A$6:$G$72,4,TRUE) -> 7157 | I47: =VLOOKUP($I$36,Tablas!$A$6:$G$72,5,TRUE) -> 5937 | J47: =VLOOKUP($I$36,Tablas!$A$6:$G$72,6,TRUE) -> 5147 | K47: =VLOOKUP($I$36,Tablas!$A$6:$G$72,7,TRUE) -> 3993
E48: Prima para conyuge | G48: =IF($F$36=1,0,(VLOOKUP($I$38,Tablas!$A$6:$G$72,3,TRUE))) -> 11429 | H48: =IF($F$36=1,0,(VLOOKUP($I$38,Tablas!$A$6:$G$72,4,TRUE))) -> 10019 | I48: =IF($F$36=1,0,(VLOOKUP($I$38,Tablas!$A$6:$G$72,5,TRUE))) -> 8203 | J48: =IF($F$36=1,0,(VLOOKUP($I$38,Tablas!$A$6:$G$72,6,TRUE))) -> 7113 | K48: =IF($F$36=1,0,(VLOOKUP($I$38,Tablas!$A$6:$G$72,7,TRUE))) -> 5517
E49: Prima para hijo (s) | G49: =IF($F$36=1, (IF($F$38=0, 0, (IF($F$40>$F$38, (VLOOKUP($F$38,Tablas!$A$73:$G$75,3,TRUE)), (IF($F$38>4,(IF($F$40=0, (VLOOKUP(3,Tablas!$A$73:$G$75,3,TRUE)), (IF($F$40=1, (VLOOKUP(3,Tablas!$A$73:$G$75,3,TRUE)), (IF($F$40=2, (VLOOKUP(3,Tablas!$A$73:$G$75,3,TRUE)), (VLOOKUP(3,Tablas!$A$73:$G$75,3,TRUE)))))))), (IF($F$38=4,(IF(4-$F$40=0,(VLOOKUP(2,Tablas!$A$73:$G$75,3,TRUE)), (IF(4-$F$40=1,(VLOOKUP(2,Tablas!$A$73:$G$75,3,TRUE)), (IF(4-$F$40=2, (VLOOKUP(2,Tablas!$A$73:$G$75,3,TRUE)), (VLOOKUP(3,Tablas!$A$73:$G$75,3,TRUE)))))))), (IF($F$38=3,(IF(3-$F$40=0,(VLOOKUP(1,Tablas!$A$73:$G$75,3,TRUE)), (IF(3-$F$40=1,(VLOOKUP(1,Tablas!$A$73:$G$75,3,TRUE)), (IF(3-$F$40=2, (VLOOKUP(2,Tablas!$A$73:$G$75,3,TRUE)), (VLOOKUP(3,Tablas!$A$73:$G$75,3,TRUE)))))))), (IF($F$38=2,(IF(2-$F$40=0, 0, (IF(2-$F$40=1,(VLOOKUP(1,Tablas!$A$73:$G$75,3,TRUE)), (IF(2-$F$40=2, (VLOOKUP(2,Tablas!$A$73:$G$75,3,TRUE)), 0)))))), (IF($F$38=1,(IF(1-$F$40=0, 0, (IF(1-$F$40=1,(VLOOKUP(1,Tablas!$A$73:$G$75,3,TRUE)),0)))),0)))))))))))))), (IF($F$38=0, 0, (IF($F$40>$F$38, (VLOOKUP($F$38,Tablas!$A$73:$G$75,3,TRUE)), (IF($F$38=4,(IF(4-$F$40=0, 0, (IF(4-$F$40=1, (VLOOKUP(1,Tablas!$A$73:$G$75,3,TRUE)), (IF(4-$F$40=2, (VLOOKUP(2,Tablas!$A$73:$G$75,3,TRUE)), (IF(4-$F$40=3, (VLOOKUP(3,Tablas!$A$73:$G$75,3,TRUE)), (IF(4-$F$40=4, (VLOOKUP(3,Tablas!$A$73:$G$75,3,TRUE)), 0)))))))))), (IF($F$38=5,(IF(5-$F$40=0, (VLOOKUP(1,Tablas!$A$73:$G$75,3,TRUE)), (IF(5-$F$40=1, (VLOOKUP(1,Tablas!$A$73:$G$75,3,TRUE)), (IF(5-$F$40=2, (VLOOKUP(2,Tablas!$A$73:$G$75,3,TRUE)), (IF(5-$F$40=3, (VLOOKUP(3,Tablas!$A$73:$G$75,3,TRUE)), (IF(5-$F$40=4, (VLOOKUP(3,Tablas!$A$73:$G$75,3,TRUE)), (VLOOKUP(3,Tablas!$A$73:$G$75,3,TRUE)))))))))))), (IF($F$38=6,(IF(6-$F$40=0, (VLOOKUP(2,Tablas!$A$73:$G$75,3,TRUE)), (IF(6-$F$40=1, (VLOOKUP(2,Tablas!$A$73:$G$75,3,TRUE)), (IF(6-$F$40=2, (VLOOKUP(2,Tablas!$A$73:$G$75,3,TRUE)), (IF(6-$F$40=3, (VLOOKUP(3,Tablas!$A$73:$G$75,3,TRUE)), (IF(6-$F$40=4, (VLOOKUP(3,Tablas!$A$73:$G$75,3,TRUE)), (VLOOKUP(3,Tablas!$A$73:$G$75,3,TRUE)))))))))))), (IF($F$38>6,(IF(7-$F$40=0, (VLOOKUP(3,Tablas!$A$73:$G$75,3,TRUE)), (IF(7-$F$40=1, (VLOOKUP(3,Tablas!$A$73:$G$75,3,TRUE)), (IF(7-$F$40=2, (VLOOKUP(3,Tablas!$A$73:$G$75,3,TRUE)), (IF(7-$F$40=3, (VLOOKUP(3,Tablas!$A$73:$G$75,3,TRUE)), (IF(7-$F$40=4, (VLOOKUP(3,Tablas!$A$73:$G$75,3,TRUE)), (VLOOKUP(3,Tablas!$A$73:$G$75,3,TRUE)))))))))))), (IF($F$38=3,(IF(3-$F$40=0,0, (IF(3-$F$40=1,(VLOOKUP(1,Tablas!$A$73:$G$75,3,TRUE)), (IF(3-$F$40=2, (VLOOKUP(2,Tablas!$A$73:$G$75,3,TRUE)), (VLOOKUP(3,Tablas!$A$73:$G$75,3,TRUE)))))))), (IF($F$38=2,(IF(2-$F$40=0, 0, (IF(2-$F$40=1,(VLOOKUP(1,Tablas!$A$73:$G$75,3,TRUE)), (IF(2-$F$40=2, (VLOOKUP(2,Tablas!$A$73:$G$75,3,TRUE)), 0)))))), (IF($F$38=1,(IF(1-$F$40=0, 0, (IF(1-$F$40=1,(VLOOKUP(1,Tablas!$A$73:$G$75,3,TRUE)),0)))),0))))))))))))))))))) -> 2901 | H49: =IF($F$36=1, (IF($F$38=0, 0, (IF($F$40>$F$38, (VLOOKUP($F$38,Tablas!$A$73:$G$75,4,TRUE)), (IF($F$38>4,(IF($F$40=0, (VLOOKUP(3,Tablas!$A$73:$G$75,4,TRUE)), (IF($F$40=1, (VLOOKUP(3,Tablas!$A$73:$G$75,4,TRUE)), (IF($F$40=2, (VLOOKUP(3,Tablas!$A$73:$G$75,4,TRUE)), (VLOOKUP(3,Tablas!$A$73:$G$75,4,TRUE)))))))), (IF($F$38=4,(IF(4-$F$40=0,(VLOOKUP(2,Tablas!$A$73:$G$75,4,TRUE)), (IF(4-$F$40=1,(VLOOKUP(2,Tablas!$A$73:$G$75,4,TRUE)), (IF(4-$F$40=2, (VLOOKUP(2,Tablas!$A$73:$G$75,4,TRUE)), (VLOOKUP(3,Tablas!$A$73:$G$75,4,TRUE)))))))), (IF($F$38=3,(IF(3-$F$40=0,(VLOOKUP(1,Tablas!$A$73:$G$75,4,TRUE)), (IF(3-$F$40=1,(VLOOKUP(1,Tablas!$A$73:$G$75,4,TRUE)), (IF(3-$F$40=2, (VLOOKUP(2,Tablas!$A$73:$G$75,4,TRUE)), (VLOOKUP(3,Tablas!$A$73:$G$75,4,TRUE)))))))), (IF($F$38=2,(IF(2-$F$40=0, 0, (IF(2-$F$40=1,(VLOOKUP(1,Tablas!$A$73:$G$75,4,TRUE)), (IF(2-$F$40=2, (VLOOKUP(2,Tablas!$A$73:$G$75,4,TRUE)), 0)))))), (IF($F$38=1,(IF(1-$F$40=0, 0, (IF(1-$F$40=1,(VLOOKUP(1,Tablas!$A$73:$G$75,4,TRUE)),0)))),0)))))))))))))), (IF($F$38=0, 0, (IF($F$40>$F$38, (VLOOKUP($F$38,Tablas!$A$73:$G$75,4,TRUE)), (IF($F$38=4,(IF(4-$F$40=0, 0, (IF(4-$F$40=1, (VLOOKUP(1,Tablas!$A$73:$G$75,4,TRUE)), (IF(4-$F$40=2, (VLOOKUP(2,Tablas!$A$73:$G$75,4,TRUE)), (IF(4-$F$40=3, (VLOOKUP(3,Tablas!$A$73:$G$75,4,TRUE)), (IF(4-$F$40=4, (VLOOKUP(3,Tablas!$A$73:$G$75,4,TRUE)), 0)))))))))), (IF($F$38=5,(IF(5-$F$40=0, (VLOOKUP(1,Tablas!$A$73:$G$75,4,TRUE)), (IF(5-$F$40=1, (VLOOKUP(1,Tablas!$A$73:$G$75,4,TRUE)), (IF(5-$F$40=2, (VLOOKUP(2,Tablas!$A$73:$G$75,4,TRUE)), (IF(5-$F$40=3, (VLOOKUP(3,Tablas!$A$73:$G$75,4,TRUE)), (IF(5-$F$40=4, (VLOOKUP(3,Tablas!$A$73:$G$75,4,TRUE)), (VLOOKUP(3,Tablas!$A$73:$G$75,4,TRUE)))))))))))), (IF($F$38=6,(IF(6-$F$40=0, (VLOOKUP(2,Tablas!$A$73:$G$75,4,TRUE)), (IF(6-$F$40=1, (VLOOKUP(2,Tablas!$A$73:$G$75,4,TRUE)), (IF(6-$F$40=2, (VLOOKUP(2,Tablas!$A$73:$G$75,4,TRUE)), (IF(6-$F$40=3, (VLOOKUP(3,Tablas!$A$73:$G$75,4,TRUE)), (IF(6-$F$40=4, (VLOOKUP(3,Tablas!$A$73:$G$75,4,TRUE)), (VLOOKUP(3,Tablas!$A$73:$G$75,4,TRUE)))))))))))), (IF($F$38>6,(IF(7-$F$40=0, (VLOOKUP(3,Tablas!$A$73:$G$75,4,TRUE)), (IF(7-$F$40=1, (VLOOKUP(3,Tablas!$A$73:$G$75,4,TRUE)), (IF(7-$F$40=2, (VLOOKUP(3,Tablas!$A$73:$G$75,4,TRUE)), (IF(7-$F$40=3, (VLOOKUP(3,Tablas!$A$73:$G$75,4,TRUE)), (IF(7-$F$40=4, (VLOOKUP(3,Tablas!$A$73:$G$75,4,TRUE)), (VLOOKUP(3,Tablas!$A$73:$G$75,4,TRUE)))))))))))), (IF($F$38=3,(IF(3-$F$40=0,0, (IF(3-$F$40=1,(VLOOKUP(1,Tablas!$A$73:$G$75,4,TRUE)), (IF(3-$F$40=2, (VLOOKUP(2,Tablas!$A$73:$G$75,4,TRUE)), (VLOOKUP(3,Tablas!$A$73:$G$75,4,TRUE)))))))), (IF($F$38=2,(IF(2-$F$40=0, 0, (IF(2-$F$40=1,(VLOOKUP(1,Tablas!$A$73:$G$75,4,TRUE)), (IF(2-$F$40=2, (VLOOKUP(2,Tablas!$A$73:$G$75,4,TRUE)), 0)))))), (IF($F$38=1,(IF(1-$F$40=0, 0, (IF(1-$F$40=1,(VLOOKUP(1,Tablas!$A$73:$G$75,4,TRUE)),0)))),0))))))))))))))))))) -> 2544 | I49: =IF($F$36=1, (IF($F$38=0, 0, (IF($F$40>$F$38, (VLOOKUP($F$38,Tablas!$A$73:$G$75,5,TRUE)), (IF($F$38>4,(IF($F$40=0, (VLOOKUP(3,Tablas!$A$73:$G$75,5,TRUE)), (IF($F$40=1, (VLOOKUP(3,Tablas!$A$73:$G$75,5,TRUE)), (IF($F$40=2, (VLOOKUP(3,Tablas!$A$73:$G$75,5,TRUE)), (VLOOKUP(3,Tablas!$A$73:$G$75,5,TRUE)))))))), (IF($F$38=4,(IF(4-$F$40=0,(VLOOKUP(2,Tablas!$A$73:$G$75,5,TRUE)), (IF(4-$F$40=1,(VLOOKUP(2,Tablas!$A$73:$G$75,5,TRUE)), (IF(4-$F$40=2, (VLOOKUP(2,Tablas!$A$73:$G$75,5,TRUE)), (VLOOKUP(3,Tablas!$A$73:$G$75,5,TRUE)))))))), (IF($F$38=3,(IF(3-$F$40=0,(VLOOKUP(1,Tablas!$A$73:$G$75,5,TRUE)), (IF(3-$F$40=1,(VLOOKUP(1,Tablas!$A$73:$G$75,5,TRUE)), (IF(3-$F$40=2, (VLOOKUP(2,Tablas!$A$73:$G$75,5,TRUE)), (VLOOKUP(3,Tablas!$A$73:$G$75,5,TRUE)))))))), (IF($F$38=2,(IF(2-$F$40=0, 0, (IF(2-$F$40=1,(VLOOKUP(1,Tablas!$A$73:$G$75,5,TRUE)), (IF(2-$F$40=2, (VLOOKUP(2,Tablas!$A$73:$G$75,5,TRUE)), 0)))))), (IF($F$38=1,(IF(1-$F$40=0, 0, (IF(1-$F$40=1,(VLOOKUP(1,Tablas!$A$73:$G$75,5,TRUE)),0)))),0)))))))))))))), (IF($F$38=0, 0, (IF($F$40>$F$38, (VLOOKUP($F$38,Tablas!$A$73:$G$75,5,TRUE)), (IF($F$38=4,(IF(4-$F$40=0, 0, (IF(4-$F$40=1, (VLOOKUP(1,Tablas!$A$73:$G$75,5,TRUE)), (IF(4-$F$40=2, (VLOOKUP(2,Tablas!$A$73:$G$75,5,TRUE)), (IF(4-$F$40=3, (VLOOKUP(3,Tablas!$A$73:$G$75,5,TRUE)), (IF(4-$F$40=4, (VLOOKUP(3,Tablas!$A$73:$G$75,5,TRUE)), 0)))))))))), (IF($F$38=5,(IF(5-$F$40=0, (VLOOKUP(1,Tablas!$A$73:$G$75,5,TRUE)), (IF(5-$F$40=1, (VLOOKUP(1,Tablas!$A$73:$G$75,5,TRUE)), (IF(5-$F$40=2, (VLOOKUP(2,Tablas!$A$73:$G$75,5,TRUE)), (IF(5-$F$40=3, (VLOOKUP(3,Tablas!$A$73:$G$75,5,TRUE)), (IF(5-$F$40=4, (VLOOKUP(3,Tablas!$A$73:$G$75,5,TRUE)), (VLOOKUP(3,Tablas!$A$73:$G$75,5,TRUE)))))))))))), (IF($F$38=6,(IF(6-$F$40=0, (VLOOKUP(2,Tablas!$A$73:$G$75,5,TRUE)), (IF(6-$F$40=1, (VLOOKUP(2,Tablas!$A$73:$G$75,5,TRUE)), (IF(6-$F$40=2, (VLOOKUP(2,Tablas!$A$73:$G$75,5,TRUE)), (IF(6-$F$40=3, (VLOOKUP(3,Tablas!$A$73:$G$75,5,TRUE)), (IF(6-$F$40=4, (VLOOKUP(3,Tablas!$A$73:$G$75,5,TRUE)), (VLOOKUP(3,Tablas!$A$73:$G$75,5,TRUE)))))))))))), (IF($F$38>6,(IF(7-$F$40=0, (VLOOKUP(3,Tablas!$A$73:$G$75,5,TRUE)), (IF(7-$F$40=1, (VLOOKUP(3,Tablas!$A$73:$G$75,5,TRUE)), (IF(7-$F$40=2, (VLOOKUP(3,Tablas!$A$73:$G$75,5,TRUE)), (IF(7-$F$40=3, (VLOOKUP(3,Tablas!$A$73:$G$75,5,TRUE)), (IF(7-$F$40=4, (VLOOKUP(3,Tablas!$A$73:$G$75,5,TRUE)), (VLOOKUP(3,Tablas!$A$73:$G$75,5,TRUE)))))))))))), (IF($F$38=3,(IF(3-$F$40=0,0, (IF(3-$F$40=1,(VLOOKUP(1,Tablas!$A$73:$G$75,5,TRUE)), (IF(3-$F$40=2, (VLOOKUP(2,Tablas!$A$73:$G$75,5,TRUE)), (VLOOKUP(3,Tablas!$A$73:$G$75,5,TRUE)))))))), (IF($F$38=2,(IF(2-$F$40=0, 0, (IF(2-$F$40=1,(VLOOKUP(1,Tablas!$A$73:$G$75,5,TRUE)), (IF(2-$F$40=2, (VLOOKUP(2,Tablas!$A$73:$G$75,5,TRUE)), 0)))))), (IF($F$38=1,(IF(1-$F$40=0, 0, (IF(1-$F$40=1,(VLOOKUP(1,Tablas!$A$73:$G$75,5,TRUE)),0)))),0))))))))))))))))))) -> 2155 | J49: =IF($F$36=1, (IF($F$38=0, 0, (IF($F$40>$F$38, (VLOOKUP($F$38,Tablas!$A$73:$G$75,6,TRUE)), (IF($F$38>4,(IF($F$40=0, (VLOOKUP(3,Tablas!$A$73:$G$75,6,TRUE)), (IF($F$40=1, (VLOOKUP(3,Tablas!$A$73:$G$75,6,TRUE)), (IF($F$40=2, (VLOOKUP(3,Tablas!$A$73:$G$75,6,TRUE)), (VLOOKUP(3,Tablas!$A$73:$G$75,6,TRUE)))))))), (IF($F$38=4,(IF(4-$F$40=0,(VLOOKUP(2,Tablas!$A$73:$G$75,6,TRUE)), (IF(4-$F$40=1,(VLOOKUP(2,Tablas!$A$73:$G$75,6,TRUE)), (IF(4-$F$40=2, (VLOOKUP(2,Tablas!$A$73:$G$75,6,TRUE)), (VLOOKUP(3,Tablas!$A$73:$G$75,6,TRUE)))))))), (IF($F$38=3,(IF(3-$F$40=0,(VLOOKUP(1,Tablas!$A$73:$G$75,6,TRUE)), (IF(3-$F$40=1,(VLOOKUP(1,Tablas!$A$73:$G$75,6,TRUE)), (IF(3-$F$40=2, (VLOOKUP(2,Tablas!$A$73:$G$75,6,TRUE)), (VLOOKUP(3,Tablas!$A$73:$G$75,6,TRUE)))))))), (IF($F$38=2,(IF(2-$F$40=0, 0, (IF(2-$F$40=1,(VLOOKUP(1,Tablas!$A$73:$G$75,6,TRUE)), (IF(2-$F$40=2, (VLOOKUP(2,Tablas!$A$73:$G$75,6,TRUE)), 0)))))), (IF($F$38=1,(IF(1-$F$40=0, 0, (IF(1-$F$40=1,(VLOOKUP(1,Tablas!$A$73:$G$75,6,TRUE)),0)))),0)))))))))))))), (IF($F$38=0, 0, (IF($F$40>$F$38, (VLOOKUP($F$38,Tablas!$A$73:$G$75,6,TRUE)), (IF($F$38=4,(IF(4-$F$40=0, 0, (IF(4-$F$40=1, (VLOOKUP(1,Tablas!$A$73:$G$75,6,TRUE)), (IF(4-$F$40=2, (VLOOKUP(2,Tablas!$A$73:$G$75,6,TRUE)), (IF(4-$F$40=3, (VLOOKUP(3,Tablas!$A$73:$G$75,6,TRUE)), (IF(4-$F$40=4, (VLOOKUP(3,Tablas!$A$73:$G$75,6,TRUE)), 0)))))))))), (IF($F$38=5,(IF(5-$F$40=0, (VLOOKUP(1,Tablas!$A$73:$G$75,6,TRUE)), (IF(5-$F$40=1, (VLOOKUP(1,Tablas!$A$73:$G$75,6,TRUE)), (IF(5-$F$40=2, (VLOOKUP(2,Tablas!$A$73:$G$75,6,TRUE)), (IF(5-$F$40=3, (VLOOKUP(3,Tablas!$A$73:$G$75,6,TRUE)), (IF(5-$F$40=4, (VLOOKUP(3,Tablas!$A$73:$G$75,6,TRUE)), (VLOOKUP(3,Tablas!$A$73:$G$75,6,TRUE)))))))))))), (IF($F$38=6,(IF(6-$F$40=0, (VLOOKUP(2,Tablas!$A$73:$G$75,6,TRUE)), (IF(6-$F$40=1, (VLOOKUP(2,Tablas!$A$73:$G$75,6,TRUE)), (IF(6-$F$40=2, (VLOOKUP(2,Tablas!$A$73:$G$75,6,TRUE)), (IF(6-$F$40=3, (VLOOKUP(3,Tablas!$A$73:$G$75,6,TRUE)), (IF(6-$F$40=4, (VLOOKUP(3,Tablas!$A$73:$G$75,6,TRUE)), (VLOOKUP(3,Tablas!$A$73:$G$75,6,TRUE)))))))))))), (IF($F$38>6,(IF(7-$F$40=0, (VLOOKUP(3,Tablas!$A$73:$G$75,6,TRUE)), (IF(7-$F$40=1, (VLOOKUP(3,Tablas!$A$73:$G$75,6,TRUE)), (IF(7-$F$40=2, (VLOOKUP(3,Tablas!$A$73:$G$75,6,TRUE)), (IF(7-$F$40=3, (VLOOKUP(3,Tablas!$A$73:$G$75,6,TRUE)), (IF(7-$F$40=4, (VLOOKUP(3,Tablas!$A$73:$G$75,6,TRUE)), (VLOOKUP(3,Tablas!$A$73:$G$75,6,TRUE)))))))))))), (IF($F$38=3,(IF(3-$F$40=0,0, (IF(3-$F$40=1,(VLOOKUP(1,Tablas!$A$73:$G$75,6,TRUE)), (IF(3-$F$40=2, (VLOOKUP(2,Tablas!$A$73:$G$75,6,TRUE)), (VLOOKUP(3,Tablas!$A$73:$G$75,6,TRUE)))))))), (IF($F$38=2,(IF(2-$F$40=0, 0, (IF(2-$F$40=1,(VLOOKUP(1,Tablas!$A$73:$G$75,6,TRUE)), (IF(2-$F$40=2, (VLOOKUP(2,Tablas!$A$73:$G$75,6,TRUE)), 0)))))), (IF($F$38=1,(IF(1-$F$40=0, 0, (IF(1-$F$40=1,(VLOOKUP(1,Tablas!$A$73:$G$75,6,TRUE)),0)))),0))))))))))))))))))) -> 1869 | K49: =IF($F$36=1, (IF($F$38=0, 0, (IF($F$40>$F$38, (VLOOKUP($F$38,Tablas!$A$73:$G$75,7,TRUE)), (IF($F$38>4,(IF($F$40=0, (VLOOKUP(3,Tablas!$A$73:$G$75,7,TRUE)), (IF($F$40=1, (VLOOKUP(3,Tablas!$A$73:$G$75,7,TRUE)), (IF($F$40=2, (VLOOKUP(3,Tablas!$A$73:$G$75,7,TRUE)), (VLOOKUP(3,Tablas!$A$73:$G$75,7,TRUE)))))))), (IF($F$38=4,(IF(4-$F$40=0,(VLOOKUP(2,Tablas!$A$73:$G$75,7,TRUE)), (IF(4-$F$40=1,(VLOOKUP(2,Tablas!$A$73:$G$75,7,TRUE)), (IF(4-$F$40=2, (VLOOKUP(2,Tablas!$A$73:$G$75,7,TRUE)), (VLOOKUP(3,Tablas!$A$73:$G$75,7,TRUE)))))))), (IF($F$38=3,(IF(3-$F$40=0,(VLOOKUP(1,Tablas!$A$73:$G$75,7,TRUE)), (IF(3-$F$40=1,(VLOOKUP(1,Tablas!$A$73:$G$75,7,TRUE)), (IF(3-$F$40=2, (VLOOKUP(2,Tablas!$A$73:$G$75,7,TRUE)), (VLOOKUP(3,Tablas!$A$73:$G$75,7,TRUE)))))))), (IF($F$38=2,(IF(2-$F$40=0, 0, (IF(2-$F$40=1,(VLOOKUP(1,Tablas!$A$73:$G$75,7,TRUE)), (IF(2-$F$40=2, (VLOOKUP(2,Tablas!$A$73:$G$75,7,TRUE)), 0)))))), (IF($F$38=1,(IF(1-$F$40=0, 0, (IF(1-$F$40=1,(VLOOKUP(1,Tablas!$A$73:$G$75,7,TRUE)),0)))),0)))))))))))))), (IF($F$38=0, 0, (IF($F$40>$F$38, (VLOOKUP($F$38,Tablas!$A$73:$G$75,7,TRUE)), (IF($F$38=4,(IF(4-$F$40=0, 0, (IF(4-$F$40=1, (VLOOKUP(1,Tablas!$A$73:$G$75,7,TRUE)), (IF(4-$F$40=2, (VLOOKUP(2,Tablas!$A$73:$G$75,7,TRUE)), (IF(4-$F$40=3, (VLOOKUP(3,Tablas!$A$73:$G$75,7,TRUE)), (IF(4-$F$40=4, (VLOOKUP(3,Tablas!$A$73:$G$75,7,TRUE)), 0)))))))))), (IF($F$38=5,(IF(5-$F$40=0, (VLOOKUP(1,Tablas!$A$73:$G$75,7,TRUE)), (IF(5-$F$40=1, (VLOOKUP(1,Tablas!$A$73:$G$75,7,TRUE)), (IF(5-$F$40=2, (VLOOKUP(2,Tablas!$A$73:$G$75,7,TRUE)), (IF(5-$F$40=3, (VLOOKUP(3,Tablas!$A$73:$G$75,7,TRUE)), (IF(5-$F$40=4, (VLOOKUP(3,Tablas!$A$73:$G$75,7,TRUE)), (VLOOKUP(3,Tablas!$A$73:$G$75,7,TRUE)))))))))))), (IF($F$38=6,(IF(6-$F$40=0, (VLOOKUP(2,Tablas!$A$73:$G$75,7,TRUE)), (IF(6-$F$40=1, (VLOOKUP(2,Tablas!$A$73:$G$75,7,TRUE)), (IF(6-$F$40=2, (VLOOKUP(2,Tablas!$A$73:$G$75,7,TRUE)), (IF(6-$F$40=3, (VLOOKUP(3,Tablas!$A$73:$G$75,7,TRUE)), (IF(6-$F$40=4, (VLOOKUP(3,Tablas!$A$73:$G$75,7,TRUE)), (VLOOKUP(3,Tablas!$A$73:$G$75,7,TRUE)))))))))))), (IF($F$38>6,(IF(7-$F$40=0, (VLOOKUP(3,Tablas!$A$73:$G$75,7,TRUE)), (IF(7-$F$40=1, (VLOOKUP(3,Tablas!$A$73:$G$75,7,TRUE)), (IF(7-$F$40=2, (VLOOKUP(3,Tablas!$A$73:$G$75,7,TRUE)), (IF(7-$F$40=3, (VLOOKUP(3,Tablas!$A$73:$G$75,7,TRUE)), (IF(7-$F$40=4, (VLOOKUP(3,Tablas!$A$73:$G$75,7,TRUE)), (VLOOKUP(3,Tablas!$A$73:$G$75,7,TRUE)))))))))))), (IF($F$38=3,(IF(3-$F$40=0,0, (IF(3-$F$40=1,(VLOOKUP(1,Tablas!$A$73:$G$75,7,TRUE)), (IF(3-$F$40=2, (VLOOKUP(2,Tablas!$A$73:$G$75,7,TRUE)), (VLOOKUP(3,Tablas!$A$73:$G$75,7,TRUE)))))))), (IF($F$38=2,(IF(2-$F$40=0, 0, (IF(2-$F$40=1,(VLOOKUP(1,Tablas!$A$73:$G$75,7,TRUE)), (IF(2-$F$40=2, (VLOOKUP(2,Tablas!$A$73:$G$75,7,TRUE)), 0)))))), (IF($F$38=1,(IF(1-$F$40=0, 0, (IF(1-$F$40=1,(VLOOKUP(1,Tablas!$A$73:$G$75,7,TRUE)),0)))),0))))))))))))))))))) -> 1450
E50: Total de Prima neta | G50: =SUM(G47:G49) -> 22496 | H50: =SUM(H47:H49) -> 19720 | I50: 16295 | J50: =SUM(J47:J49) -> 14129 | K50: 10960
E51: Descuento por variante con coaseguro fuera del país de residencia | G51: =IF('INGRESO DE DATOS'!$H$27,G50*-25%,0) -> 0 | H51: =IF('INGRESO DE DATOS'!$H$27,H50*-25%,0) -> 0 | I51: =IF('INGRESO DE DATOS'!$H$27,I50*-25%,0) -> 0 | J51: =IF('INGRESO DE DATOS'!$H$27,J50*-25%,0) -> 0 | K51: =IF('INGRESO DE DATOS'!$H$27,K50*-25%,0) -> 0
E52: Tarifa administrativa anual | G52: 75 | H52: 75 | I52: 75 | J52: 75 | K52: 75
E53: IVA (12%) | G53: =(G50+G52)*0% -> 0 | H53: =(H50+H52)*0% -> 0 | I53: 0 | J53: 0 | K53: 0
E54: TOTAL ANUAL | G54: =SUM(G50:G53) -> 22571 | H54: =SUM(H50:H53) -> 19795 | I54: =SUM(I50:I53) -> 16370 | J54: =SUM(J50:J53) -> 14204 | K54: =SUM(K50:K53) -> 11035
E55: Ahorros en tarifas de prima para niños | G55: =IF($F$36=1,IF($F$38=0,0,IF($F$40=0,0,IF($F$40=1,(VLOOKUP(1,Tablas!$A$73:$G$75,3,TRUE)),(VLOOKUP(2,Tablas!$A$73:$G$75,3,TRUE))))), IF($F$38=0,0,IF($F$40=0,0,IF($F$40=1,(VLOOKUP(1,Tablas!$A$73:$G$75,3,TRUE)),IF($F$40=2,(VLOOKUP(2,Tablas!$A$73:$G$75,3,TRUE)), (VLOOKUP(3,Tablas!$A$73:$G$75,3,TRUE))))))) -> 2901 | H55: =IF($F$36=1,IF($F$38=0,0,IF($F$40=0,0,IF($F$40=1,(VLOOKUP(1,Tablas!$A$73:$G$75,4,TRUE)),(VLOOKUP(2,Tablas!$A$73:$G$75,4,TRUE))))), IF($F$38=0,0,IF($F$40=0,0,IF($F$40=1,(VLOOKUP(1,Tablas!$A$73:$G$75,4,TRUE)),IF($F$40=2,(VLOOKUP(2,Tablas!$A$73:$G$75,4,TRUE)), (VLOOKUP(3,Tablas!$A$73:$G$75,4,TRUE))))))) -> 2544 | I55: =IF($F$36=1,IF($F$38=0,0,IF($F$40=0,0,IF($F$40=1,(VLOOKUP(1,Tablas!$A$73:$G$75,5,TRUE)),(VLOOKUP(2,Tablas!$A$73:$G$75,5,TRUE))))), IF($F$38=0,0,IF($F$40=0,0,IF($F$40=1,(VLOOKUP(1,Tablas!$A$73:$G$75,5,TRUE)),IF($F$40=2,(VLOOKUP(2,Tablas!$A$73:$G$75,5,TRUE)), (VLOOKUP(3,Tablas!$A$73:$G$75,5,TRUE))))))) -> 2155 | J55: =IF($F$36=1,IF($F$38=0,0,IF($F$40=0,0,IF($F$40=1,(VLOOKUP(1,Tablas!$A$73:$G$75,6,TRUE)),(VLOOKUP(2,Tablas!$A$73:$G$75,6,TRUE))))), IF($F$38=0,0,IF($F$40=0,0,IF($F$40=1,(VLOOKUP(1,Tablas!$A$73:$G$75,6,TRUE)),IF($F$40=2,(VLOOKUP(2,Tablas!$A$73:$G$75,6,TRUE)), (VLOOKUP(3,Tablas!$A$73:$G$75,6,TRUE))))))) -> 1869 | K55: =IF($F$36=1,IF($F$38=0,0,IF($F$40=0,0,IF($F$40=1,(VLOOKUP(1,Tablas!$A$73:$G$75,7,TRUE)),(VLOOKUP(2,Tablas!$A$73:$G$75,7,TRUE))))), IF($F$38=0,0,IF($F$40=0,0,IF($F$40=1,(VLOOKUP(1,Tablas!$A$73:$G$75,7,TRUE)),IF($F$40=2,(VLOOKUP(2,Tablas!$A$73:$G$75,7,TRUE)), (VLOOKUP(3,Tablas!$A$73:$G$75,7,TRUE))))))) -> 1450
E57: Tarifas semi anuales
E58: Prima para Asegurado Titular | G58: =VLOOKUP($I$36,Tablas!$A$455:$G$521,3,TRUE) -> 4327.98 | H58: =VLOOKUP($I$36,Tablas!$A$455:$G$521,4,TRUE) -> 3793.21 | I58: =VLOOKUP($I$36,Tablas!$A$455:$G$521,5,TRUE) -> 3146.61 | J58: =VLOOKUP($I$36,Tablas!$A$455:$G$521,6,TRUE) -> 2727.91 | K58: =VLOOKUP($I$36,Tablas!$A$455:$G$521,7,TRUE) -> 2116.29
E59: Prima para conyuge | G59: =IF($F$36=1,0,(VLOOKUP($I$38,Tablas!$A$455:$G$521,3,TRUE))) -> 6057.37 | H59: =IF($F$36=1,0,(VLOOKUP($I$38,Tablas!$A$455:$G$521,4,TRUE))) -> 5310.07 | I59: =IF($F$36=1,0,(VLOOKUP($I$38,Tablas!$A$455:$G$521,5,TRUE))) -> 4347.59 | J59: =IF($F$36=1,0,(VLOOKUP($I$38,Tablas!$A$455:$G$521,6,TRUE))) -> 3769.89 | K59: =IF($F$36=1,0,(VLOOKUP($I$38,Tablas!$A$455:$G$521,7,TRUE))) -> 2924.01
E60: Prima para hijo (s) | G60: =IF($F$36=1, (IF($F$38=0, 0, (IF($F$40>$F$38, (VLOOKUP($F$38,Tablas!$A$522:$G$524,3,TRUE)), (IF($F$38>4,(IF($F$40=0, (VLOOKUP(3,Tablas!$A$522:$G$524,3,TRUE)), (IF($F$40=1, (VLOOKUP(3,Tablas!$A$522:$G$524,3,TRUE)), (IF($F$40=2, (VLOOKUP(3,Tablas!$A$522:$G$524,3,TRUE)), (VLOOKUP(3,Tablas!$A$522:$G$524,3,TRUE)))))))), (IF($F$38=4,(IF(4-$F$40=0,(VLOOKUP(2,Tablas!$A$522:$G$524,3,TRUE)), (IF(4-$F$40=1,(VLOOKUP(2,Tablas!$A$522:$G$524,3,TRUE)), (IF(4-$F$40=2, (VLOOKUP(2,Tablas!$A$522:$G$524,3,TRUE)), (VLOOKUP(3,Tablas!$A$522:$G$524,3,TRUE)))))))), (IF($F$38=3,(IF(3-$F$40=0,(VLOOKUP(1,Tablas!$A$522:$G$524,3,TRUE)), (IF(3-$F$40=1,(VLOOKUP(1,Tablas!$A$522:$G$524,3,TRUE)), (IF(3-$F$40=2, (VLOOKUP(2,Tablas!$A$522:$G$524,3,TRUE)), (VLOOKUP(3,Tablas!$A$522:$G$524,3,TRUE)))))))), (IF($F$38=2,(IF(2-$F$40=0, 0, (IF(2-$F$40=1,(VLOOKUP(1,Tablas!$A$522:$G$524,3,TRUE)), (IF(2-$F$40=2, (VLOOKUP(2,Tablas!$A$522:$G$524,3,TRUE)), 0)))))), (IF($F$38=1,(IF(1-$F$40=0, 0, (IF(1-$F$40=1,(VLOOKUP(1,Tablas!$A$522:$G$524,3,TRUE)),0)))),0)))))))))))))), (IF($F$38=0, 0, (IF($F$40>$F$38, (VLOOKUP($F$38,Tablas!$A$522:$G$524,3,TRUE)), (IF($F$38=4,(IF(4-$F$40=0, 0, (IF(4-$F$40=1, (VLOOKUP(1,Tablas!$A$522:$G$524,3,TRUE)), (IF(4-$F$40=2, (VLOOKUP(2,Tablas!$A$522:$G$524,3,TRUE)), (IF(4-$F$40=3, (VLOOKUP(3,Tablas!$A$522:$G$524,3,TRUE)), (IF(4-$F$40=4, (VLOOKUP(3,Tablas!$A$522:$G$524,3,TRUE)), 0)))))))))), (IF($F$38=5,(IF(5-$F$40=0, (VLOOKUP(1,Tablas!$A$522:$G$524,3,TRUE)), (IF(5-$F$40=1, (VLOOKUP(1,Tablas!$A$522:$G$524,3,TRUE)), (IF(5-$F$40=2, (VLOOKUP(2,Tablas!$A$522:$G$524,3,TRUE)), (IF(5-$F$40=3, (VLOOKUP(3,Tablas!$A$522:$G$524,3,TRUE)), (IF(5-$F$40=4, (VLOOKUP(3,Tablas!$A$522:$G$524,3,TRUE)), (VLOOKUP(3,Tablas!$A$522:$G$524,3,TRUE)))))))))))), (IF($F$38=6,(IF(6-$F$40=0, (VLOOKUP(2,Tablas!$A$522:$G$524,3,TRUE)), (IF(6-$F$40=1, (VLOOKUP(2,Tablas!$A$522:$G$524,3,TRUE)), (IF(6-$F$40=2, (VLOOKUP(2,Tablas!$A$522:$G$524,3,TRUE)), (IF(6-$F$40=3, (VLOOKUP(3,Tablas!$A$522:$G$524,3,TRUE)), (IF(6-$F$40=4, (VLOOKUP(3,Tablas!$A$522:$G$524,3,TRUE)), (VLOOKUP(3,Tablas!$A$522:$G$524,3,TRUE)))))))))))), (IF($F$38>6,(IF(7-$F$40=0, (VLOOKUP(3,Tablas!$A$522:$G$524,3,TRUE)), (IF(7-$F$40=1, (VLOOKUP(3,Tablas!$A$522:$G$524,3,TRUE)), (IF(7-$F$40=2, (VLOOKUP(3,Tablas!$A$522:$G$524,3,TRUE)), (IF(7-$F$40=3, (VLOOKUP(3,Tablas!$A$522:$G$524,3,TRUE)), (IF(7-$F$40=4, (VLOOKUP(3,Tablas!$A$522:$G$524,3,TRUE)), (VLOOKUP(3,Tablas!$A$522:$G$524,3,TRUE)))))))))))), (IF($F$38=3,(IF(3-$F$40=0,0, (IF(3-$F$40=1,(VLOOKUP(1,Tablas!$A$522:$G$524,3,TRUE)), (IF(3-$F$40=2, (VLOOKUP(2,Tablas!$A$522:$G$524,3,TRUE)), (VLOOKUP(3,Tablas!$A$522:$G$524,3,TRUE)))))))), (IF($F$38=2,(IF(2-$F$40=0, 0, (IF(2-$F$40=1,(VLOOKUP(1,Tablas!$A$522:$G$524,3,TRUE)), (IF(2-$F$40=2, (VLOOKUP(2,Tablas!$A$522:$G$524,3,TRUE)), 0)))))), (IF($F$38=1,(IF(1-$F$40=0, 0, (IF(1-$F$40=1,(VLOOKUP(1,Tablas!$A$522:$G$524,3,TRUE)),0)))),0))))))))))))))))))) -> 1537.53 | H60: =IF($F$36=1, (IF($F$38=0, 0, (IF($F$40>$F$38, (VLOOKUP($F$38,Tablas!$A$522:$G$524,4,TRUE)), (IF($F$38>4,(IF($F$40=0, (VLOOKUP(3,Tablas!$A$522:$G$524,4,TRUE)), (IF($F$40=1, (VLOOKUP(3,Tablas!$A$522:$G$524,4,TRUE)), (IF($F$40=2, (VLOOKUP(3,Tablas!$A$522:$G$524,4,TRUE)), (VLOOKUP(3,Tablas!$A$522:$G$524,4,TRUE)))))))), (IF($F$38=4,(IF(4-$F$40=0,(VLOOKUP(2,Tablas!$A$522:$G$524,4,TRUE)), (IF(4-$F$40=1,(VLOOKUP(2,Tablas!$A$522:$G$524,4,TRUE)), (IF(4-$F$40=2, (VLOOKUP(2,Tablas!$A$522:$G$524,4,TRUE)), (VLOOKUP(3,Tablas!$A$522:$G$524,4,TRUE)))))))), (IF($F$38=3,(IF(3-$F$40=0,(VLOOKUP(1,Tablas!$A$522:$G$524,4,TRUE)), (IF(3-$F$40=1,(VLOOKUP(1,Tablas!$A$522:$G$524,4,TRUE)), (IF(3-$F$40=2, (VLOOKUP(2,Tablas!$A$522:$G$524,4,TRUE)), (VLOOKUP(3,Tablas!$A$522:$G$524,4,TRUE)))))))), (IF($F$38=2,(IF(2-$F$40=0, 0, (IF(2-$F$40=1,(VLOOKUP(1,Tablas!$A$522:$G$524,4,TRUE)), (IF(2-$F$40=2, (VLOOKUP(2,Tablas!$A$522:$G$524,4,TRUE)), 0)))))), (IF($F$38=1,(IF(1-$F$40=0, 0, (IF(1-$F$40=1,(VLOOKUP(1,Tablas!$A$522:$G$524,4,TRUE)),0)))),0)))))))))))))), (IF($F$38=0, 0, (IF($F$40>$F$38, (VLOOKUP($F$38,Tablas!$A$522:$G$524,4,TRUE)), (IF($F$38=4,(IF(4-$F$40=0, 0, (IF(4-$F$40=1, (VLOOKUP(1,Tablas!$A$522:$G$524,4,TRUE)), (IF(4-$F$40=2, (VLOOKUP(2,Tablas!$A$522:$G$524,4,TRUE)), (IF(4-$F$40=3, (VLOOKUP(3,Tablas!$A$522:$G$524,4,TRUE)), (IF(4-$F$40=4, (VLOOKUP(3,Tablas!$A$522:$G$524,4,TRUE)), 0)))))))))), (IF($F$38=5,(IF(5-$F$40=0, (VLOOKUP(1,Tablas!$A$522:$G$524,4,TRUE)), (IF(5-$F$40=1, (VLOOKUP(1,Tablas!$A$522:$G$524,4,TRUE)), (IF(5-$F$40=2, (VLOOKUP(2,Tablas!$A$522:$G$524,4,TRUE)), (IF(5-$F$40=3, (VLOOKUP(3,Tablas!$A$522:$G$524,4,TRUE)), (IF(5-$F$40=4, (VLOOKUP(3,Tablas!$A$522:$G$524,4,TRUE)), (VLOOKUP(3,Tablas!$A$522:$G$524,4,TRUE)))))))))))), (IF($F$38=6,(IF(6-$F$40=0, (VLOOKUP(2,Tablas!$A$522:$G$524,4,TRUE)), (IF(6-$F$40=1, (VLOOKUP(2,Tablas!$A$522:$G$524,4,TRUE)), (IF(6-$F$40=2, (VLOOKUP(2,Tablas!$A$522:$G$524,4,TRUE)), (IF(6-$F$40=3, (VLOOKUP(3,Tablas!$A$522:$G$524,4,TRUE)), (IF(6-$F$40=4, (VLOOKUP(3,Tablas!$A$522:$G$524,4,TRUE)), (VLOOKUP(3,Tablas!$A$522:$G$524,4,TRUE)))))))))))), (IF($F$38>6,(IF(7-$F$40=0, (VLOOKUP(3,Tablas!$A$522:$G$524,4,TRUE)), (IF(7-$F$40=1, (VLOOKUP(3,Tablas!$A$522:$G$524,4,TRUE)), (IF(7-$F$40=2, (VLOOKUP(3,Tablas!$A$522:$G$524,4,TRUE)), (IF(7-$F$40=3, (VLOOKUP(3,Tablas!$A$522:$G$524,4,TRUE)), (IF(7-$F$40=4, (VLOOKUP(3,Tablas!$A$522:$G$524,4,TRUE)), (VLOOKUP(3,Tablas!$A$522:$G$524,4,TRUE)))))))))))), (IF($F$38=3,(IF(3-$F$40=0,0, (IF(3-$F$40=1,(VLOOKUP(1,Tablas!$A$522:$G$524,4,TRUE)), (IF(3-$F$40=2, (VLOOKUP(2,Tablas!$A$522:$G$524,4,TRUE)), (VLOOKUP(3,Tablas!$A$522:$G$524,4,TRUE)))))))), (IF($F$38=2,(IF(2-$F$40=0, 0, (IF(2-$F$40=1,(VLOOKUP(1,Tablas!$A$522:$G$524,4,TRUE)), (IF(2-$F$40=2, (VLOOKUP(2,Tablas!$A$522:$G$524,4,TRUE)), 0)))))), (IF($F$38=1,(IF(1-$F$40=0, 0, (IF(1-$F$40=1,(VLOOKUP(1,Tablas!$A$522:$G$524,4,TRUE)),0)))),0))))))))))))))))))) -> 1348.32 | I60: =IF($F$36=1, (IF($F$38=0, 0, (IF($F$40>$F$38, (VLOOKUP($F$38,Tablas!$A$522:$G$524,5,TRUE)), (IF($F$38>4,(IF($F$40=0, (VLOOKUP(3,Tablas!$A$522:$G$524,5,TRUE)), (IF($F$40=1, (VLOOKUP(3,Tablas!$A$522:$G$524,5,TRUE)), (IF($F$40=2, (VLOOKUP(3,Tablas!$A$522:$G$524,5,TRUE)), (VLOOKUP(3,Tablas!$A$522:$G$524,5,TRUE)))))))), (IF($F$38=4,(IF(4-$F$40=0,(VLOOKUP(2,Tablas!$A$522:$G$524,5,TRUE)), (IF(4-$F$40=1,(VLOOKUP(2,Tablas!$A$522:$G$524,5,TRUE)), (IF(4-$F$40=2, (VLOOKUP(2,Tablas!$A$522:$G$524,5,TRUE)), (VLOOKUP(3,Tablas!$A$522:$G$524,5,TRUE)))))))), (IF($F$38=3,(IF(3-$F$40=0,(VLOOKUP(1,Tablas!$A$522:$G$524,5,TRUE)), (IF(3-$F$40=1,(VLOOKUP(1,Tablas!$A$522:$G$524,5,TRUE)), (IF(3-$F$40=2, (VLOOKUP(2,Tablas!$A$522:$G$524,5,TRUE)), (VLOOKUP(3,Tablas!$A$522:$G$524,5,TRUE)))))))), (IF($F$38=2,(IF(2-$F$40=0, 0, (IF(2-$F$40=1,(VLOOKUP(1,Tablas!$A$522:$G$524,5,TRUE)), (IF(2-$F$40=2, (VLOOKUP(2,Tablas!$A$522:$G$524,5,TRUE)), 0)))))), (IF($F$38=1,(IF(1-$F$40=0, 0, (IF(1-$F$40=1,(VLOOKUP(1,Tablas!$A$522:$G$524,5,TRUE)),0)))),0)))))))))))))), (IF($F$38=0, 0, (IF($F$40>$F$38, (VLOOKUP($F$38,Tablas!$A$522:$G$524,5,TRUE)), (IF($F$38=4,(IF(4-$F$40=0, 0, (IF(4-$F$40=1, (VLOOKUP(1,Tablas!$A$522:$G$524,5,TRUE)), (IF(4-$F$40=2, (VLOOKUP(2,Tablas!$A$522:$G$524,5,TRUE)), (IF(4-$F$40=3, (VLOOKUP(3,Tablas!$A$522:$G$524,5,TRUE)), (IF(4-$F$40=4, (VLOOKUP(3,Tablas!$A$522:$G$524,5,TRUE)), 0)))))))))), (IF($F$38=5,(IF(5-$F$40=0, (VLOOKUP(1,Tablas!$A$522:$G$524,5,TRUE)), (IF(5-$F$40=1, (VLOOKUP(1,Tablas!$A$522:$G$524,5,TRUE)), (IF(5-$F$40=2, (VLOOKUP(2,Tablas!$A$522:$G$524,5,TRUE)), (IF(5-$F$40=3, (VLOOKUP(3,Tablas!$A$522:$G$524,5,TRUE)), (IF(5-$F$40=4, (VLOOKUP(3,Tablas!$A$522:$G$524,5,TRUE)), (VLOOKUP(3,Tablas!$A$522:$G$524,5,TRUE)))))))))))), (IF($F$38=6,(IF(6-$F$40=0, (VLOOKUP(2,Tablas!$A$522:$G$524,5,TRUE)), (IF(6-$F$40=1, (VLOOKUP(2,Tablas!$A$522:$G$524,5,TRUE)), (IF(6-$F$40=2, (VLOOKUP(2,Tablas!$A$522:$G$524,5,TRUE)), (IF(6-$F$40=3, (VLOOKUP(3,Tablas!$A$522:$G$524,5,TRUE)), (IF(6-$F$40=4, (VLOOKUP(3,Tablas!$A$522:$G$524,5,TRUE)), (VLOOKUP(3,Tablas!$A$522:$G$524,5,TRUE)))))))))))), (IF($F$38>6,(IF(7-$F$40=0, (VLOOKUP(3,Tablas!$A$522:$G$524,5,TRUE)), (IF(7-$F$40=1, (VLOOKUP(3,Tablas!$A$522:$G$524,5,TRUE)), (IF(7-$F$40=2, (VLOOKUP(3,Tablas!$A$522:$G$524,5,TRUE)), (IF(7-$F$40=3, (VLOOKUP(3,Tablas!$A$522:$G$524,5,TRUE)), (IF(7-$F$40=4, (VLOOKUP(3,Tablas!$A$522:$G$524,5,TRUE)), (VLOOKUP(3,Tablas!$A$522:$G$524,5,TRUE)))))))))))), (IF($F$38=3,(IF(3-$F$40=0,0, (IF(3-$F$40=1,(VLOOKUP(1,Tablas!$A$522:$G$524,5,TRUE)), (IF(3-$F$40=2, (VLOOKUP(2,Tablas!$A$522:$G$524,5,TRUE)), (VLOOKUP(3,Tablas!$A$522:$G$524,5,TRUE)))))))), (IF($F$38=2,(IF(2-$F$40=0, 0, (IF(2-$F$40=1,(VLOOKUP(1,Tablas!$A$522:$G$524,5,TRUE)), (IF(2-$F$40=2, (VLOOKUP(2,Tablas!$A$522:$G$524,5,TRUE)), 0)))))), (IF($F$38=1,(IF(1-$F$40=0, 0, (IF(1-$F$40=1,(VLOOKUP(1,Tablas!$A$522:$G$524,5,TRUE)),0)))),0))))))))))))))))))) -> 1142.15 | J60: =IF($F$36=1, (IF($F$38=0, 0, (IF($F$40>$F$38, (VLOOKUP($F$38,Tablas!$A$522:$G$524,6,TRUE)), (IF($F$38>4,(IF($F$40=0, (VLOOKUP(3,Tablas!$A$522:$G$524,6,TRUE)), (IF($F$40=1, (VLOOKUP(3,Tablas!$A$522:$G$524,6,TRUE)), (IF($F$40=2, (VLOOKUP(3,Tablas!$A$522:$G$524,6,TRUE)), (VLOOKUP(3,Tablas!$A$522:$G$524,6,TRUE)))))))), (IF($F$38=4,(IF(4-$F$40=0,(VLOOKUP(2,Tablas!$A$522:$G$524,6,TRUE)), (IF(4-$F$40=1,(VLOOKUP(2,Tablas!$A$522:$G$524,6,TRUE)), (IF(4-$F$40=2, (VLOOKUP(2,Tablas!$A$522:$G$524,6,TRUE)), (VLOOKUP(3,Tablas!$A$522:$G$524,6,TRUE)))))))), (IF($F$38=3,(IF(3-$F$40=0,(VLOOKUP(1,Tablas!$A$522:$G$524,6,TRUE)), (IF(3-$F$40=1,(VLOOKUP(1,Tablas!$A$522:$G$524,6,TRUE)), (IF(3-$F$40=2, (VLOOKUP(2,Tablas!$A$522:$G$524,6,TRUE)), (VLOOKUP(3,Tablas!$A$522:$G$524,6,TRUE)))))))), (IF($F$38=2,(IF(2-$F$40=0, 0, (IF(2-$F$40=1,(VLOOKUP(1,Tablas!$A$522:$G$524,6,TRUE)), (IF(2-$F$40=2, (VLOOKUP(2,Tablas!$A$522:$G$524,6,TRUE)), 0)))))), (IF($F$38=1,(IF(1-$F$40=0, 0, (IF(1-$F$40=1,(VLOOKUP(1,Tablas!$A$522:$G$524,6,TRUE)),0)))),0)))))))))))))), (IF($F$38=0, 0, (IF($F$40>$F$38, (VLOOKUP($F$38,Tablas!$A$522:$G$524,6,TRUE)), (IF($F$38=4,(IF(4-$F$40=0, 0, (IF(4-$F$40=1, (VLOOKUP(1,Tablas!$A$522:$G$524,6,TRUE)), (IF(4-$F$40=2, (VLOOKUP(2,Tablas!$A$522:$G$524,6,TRUE)), (IF(4-$F$40=3, (VLOOKUP(3,Tablas!$A$522:$G$524,6,TRUE)), (IF(4-$F$40=4, (VLOOKUP(3,Tablas!$A$522:$G$524,6,TRUE)), 0)))))))))), (IF($F$38=5,(IF(5-$F$40=0, (VLOOKUP(1,Tablas!$A$522:$G$524,6,TRUE)), (IF(5-$F$40=1, (VLOOKUP(1,Tablas!$A$522:$G$524,6,TRUE)), (IF(5-$F$40=2, (VLOOKUP(2,Tablas!$A$522:$G$524,6,TRUE)), (IF(5-$F$40=3, (VLOOKUP(3,Tablas!$A$522:$G$524,6,TRUE)), (IF(5-$F$40=4, (VLOOKUP(3,Tablas!$A$522:$G$524,6,TRUE)), (VLOOKUP(3,Tablas!$A$522:$G$524,6,TRUE)))))))))))), (IF($F$38=6,(IF(6-$F$40=0, (VLOOKUP(2,Tablas!$A$522:$G$524,6,TRUE)), (IF(6-$F$40=1, (VLOOKUP(2,Tablas!$A$522:$G$524,6,TRUE)), (IF(6-$F$40=2, (VLOOKUP(2,Tablas!$A$522:$G$524,6,TRUE)), (IF(6-$F$40=3, (VLOOKUP(3,Tablas!$A$522:$G$524,6,TRUE)), (IF(6-$F$40=4, (VLOOKUP(3,Tablas!$A$522:$G$524,6,TRUE)), (VLOOKUP(3,Tablas!$A$522:$G$524,6,TRUE)))))))))))), (IF($F$38>6,(IF(7-$F$40=0, (VLOOKUP(3,Tablas!$A$522:$G$524,6,TRUE)), (IF(7-$F$40=1, (VLOOKUP(3,Tablas!$A$522:$G$524,6,TRUE)), (IF(7-$F$40=2, (VLOOKUP(3,Tablas!$A$522:$G$524,6,TRUE)), (IF(7-$F$40=3, (VLOOKUP(3,Tablas!$A$522:$G$524,6,TRUE)), (IF(7-$F$40=4, (VLOOKUP(3,Tablas!$A$522:$G$524,6,TRUE)), (VLOOKUP(3,Tablas!$A$522:$G$524,6,TRUE)))))))))))), (IF($F$38=3,(IF(3-$F$40=0,0, (IF(3-$F$40=1,(VLOOKUP(1,Tablas!$A$522:$G$524,6,TRUE)), (IF(3-$F$40=2, (VLOOKUP(2,Tablas!$A$522:$G$524,6,TRUE)), (VLOOKUP(3,Tablas!$A$522:$G$524,6,TRUE)))))))), (IF($F$38=2,(IF(2-$F$40=0, 0, (IF(2-$F$40=1,(VLOOKUP(1,Tablas!$A$522:$G$524,6,TRUE)), (IF(2-$F$40=2, (VLOOKUP(2,Tablas!$A$522:$G$524,6,TRUE)), 0)))))), (IF($F$38=1,(IF(1-$F$40=0, 0, (IF(1-$F$40=1,(VLOOKUP(1,Tablas!$A$522:$G$524,6,TRUE)),0)))),0))))))))))))))))))) -> 990.57 | K60: =IF($F$36=1, (IF($F$38=0, 0, (IF($F$40>$F$38, (VLOOKUP($F$38,Tablas!$A$522:$G$524,7,TRUE)), (IF($F$38>4,(IF($F$40=0, (VLOOKUP(3,Tablas!$A$522:$G$524,7,TRUE)), (IF($F$40=1, (VLOOKUP(3,Tablas!$A$522:$G$524,7,TRUE)), (IF($F$40=2, (VLOOKUP(3,Tablas!$A$522:$G$524,7,TRUE)), (VLOOKUP(3,Tablas!$A$522:$G$524,7,TRUE)))))))), (IF($F$38=4,(IF(4-$F$40=0,(VLOOKUP(2,Tablas!$A$522:$G$524,7,TRUE)), (IF(4-$F$40=1,(VLOOKUP(2,Tablas!$A$522:$G$524,7,TRUE)), (IF(4-$F$40=2, (VLOOKUP(2,Tablas!$A$522:$G$524,7,TRUE)), (VLOOKUP(3,Tablas!$A$522:$G$524,7,TRUE)))))))), (IF($F$38=3,(IF(3-$F$40=0,(VLOOKUP(1,Tablas!$A$522:$G$524,7,TRUE)), (IF(3-$F$40=1,(VLOOKUP(1,Tablas!$A$522:$G$524,7,TRUE)), (IF(3-$F$40=2, (VLOOKUP(2,Tablas!$A$522:$G$524,7,TRUE)), (VLOOKUP(3,Tablas!$A$522:$G$524,7,TRUE)))))))), (IF($F$38=2,(IF(2-$F$40=0, 0, (IF(2-$F$40=1,(VLOOKUP(1,Tablas!$A$522:$G$524,7,TRUE)), (IF(2-$F$40=2, (VLOOKUP(2,Tablas!$A$522:$G$524,7,TRUE)), 0)))))), (IF($F$38=1,(IF(1-$F$40=0, 0, (IF(1-$F$40=1,(VLOOKUP(1,Tablas!$A$522:$G$524,7,TRUE)),0)))),0)))))))))))))), (IF($F$38=0, 0, (IF($F$40>$F$38, (VLOOKUP($F$38,Tablas!$A$522:$G$524,7,TRUE)), (IF($F$38=4,(IF(4-$F$40=0, 0, (IF(4-$F$40=1, (VLOOKUP(1,Tablas!$A$522:$G$524,7,TRUE)), (IF(4-$F$40=2, (VLOOKUP(2,Tablas!$A$522:$G$524,7,TRUE)), (IF(4-$F$40=3, (VLOOKUP(3,Tablas!$A$522:$G$524,7,TRUE)), (IF(4-$F$40=4, (VLOOKUP(3,Tablas!$A$522:$G$524,7,TRUE)), 0)))))))))), (IF($F$38=5,(IF(5-$F$40=0, (VLOOKUP(1,Tablas!$A$522:$G$524,7,TRUE)), (IF(5-$F$40=1, (VLOOKUP(1,Tablas!$A$522:$G$524,7,TRUE)), (IF(5-$F$40=2, (VLOOKUP(2,Tablas!$A$522:$G$524,7,TRUE)), (IF(5-$F$40=3, (VLOOKUP(3,Tablas!$A$522:$G$524,7,TRUE)), (IF(5-$F$40=4, (VLOOKUP(3,Tablas!$A$522:$G$524,7,TRUE)), (VLOOKUP(3,Tablas!$A$522:$G$524,7,TRUE)))))))))))), (IF($F$38=6,(IF(6-$F$40=0, (VLOOKUP(2,Tablas!$A$522:$G$524,7,TRUE)), (IF(6-$F$40=1, (VLOOKUP(2,Tablas!$A$522:$G$524,7,TRUE)), (IF(6-$F$40=2, (VLOOKUP(2,Tablas!$A$522:$G$524,7,TRUE)), (IF(6-$F$40=3, (VLOOKUP(3,Tablas!$A$522:$G$524,7,TRUE)), (IF(6-$F$40=4, (VLOOKUP(3,Tablas!$A$522:$G$524,7,TRUE)), (VLOOKUP(3,Tablas!$A$522:$G$524,7,TRUE)))))))))))), (IF($F$38>6,(IF(7-$F$40=0, (VLOOKUP(3,Tablas!$A$522:$G$524,7,TRUE)), (IF(7-$F$40=1, (VLOOKUP(3,Tablas!$A$522:$G$524,7,TRUE)), (IF(7-$F$40=2, (VLOOKUP(3,Tablas!$A$522:$G$524,7,TRUE)), (IF(7-$F$40=3, (VLOOKUP(3,Tablas!$A$522:$G$524,7,TRUE)), (IF(7-$F$40=4, (VLOOKUP(3,Tablas!$A$522:$G$524,7,TRUE)), (VLOOKUP(3,Tablas!$A$522:$G$524,7,TRUE)))))))))))), (IF($F$38=3,(IF(3-$F$40=0,0, (IF(3-$F$40=1,(VLOOKUP(1,Tablas!$A$522:$G$524,7,TRUE)), (IF(3-$F$40=2, (VLOOKUP(2,Tablas!$A$522:$G$524,7,TRUE)), (VLOOKUP(3,Tablas!$A$522:$G$524,7,TRUE)))))))), (IF($F$38=2,(IF(2-$F$40=0, 0, (IF(2-$F$40=1,(VLOOKUP(1,Tablas!$A$522:$G$524,7,TRUE)), (IF(2-$F$40=2, (VLOOKUP(2,Tablas!$A$522:$G$524,7,TRUE)), 0)))))), (IF($F$38=1,(IF(1-$F$40=0, 0, (IF(1-$F$40=1,(VLOOKUP(1,Tablas!$A$522:$G$524,7,TRUE)),0)))),0))))))))))))))))))) -> 768.5
E61: Total de Prima neta | G61: =SUM(G58:G60) -> 11922.88 | H61: =SUM(H58:H60) -> 10451.6 | I61: =SUM(I58:I60) -> 8636.35 | J61: =SUM(J58:J60) -> 7488.37 | K61: =SUM(K58:K60) -> 5808.8
E62: Descuento por variante con coaseguro fuera del país de residencia | G62: =IF('INGRESO DE DATOS'!$H$27,G61*-25%,0) -> 0 | H62: =IF('INGRESO DE DATOS'!$H$27,H61*-25%,0) -> 0 | I62: =IF('INGRESO DE DATOS'!$H$27,I61*-25%,0) -> 0 | J62: =IF('INGRESO DE DATOS'!$H$27,J61*-25%,0) -> 0 | K62: =IF('INGRESO DE DATOS'!$H$27,K61*-25%,0) -> 0
E63: Tarifa administrativa anual | G63: 75 | H63: 75 | I63: 75 | J63: 75 | K63: 75
E64: IVA (12%) | G64: =(G61+G63)*0% -> 0 | H64: =(H61+H63)*0% -> 0 | I64: 0 | J64: 0 | K64: 0
E65: TOTAL de primera cuota | G65: =SUM(G61:G64) -> 11997.88 | H65: =SUM(H61:H64) -> 10526.6 | I65: 8711.35 | J65: 7563.37 | K65: 5883.8
E66: Costo de segunda cuota | G66: =SUM(G61:G62) -> 11922.88 | H66: =SUM(H61:H62) -> 10451.6 | I66: 8636.35 | J66: 7488.37 | K66: 5808.8
E67: TOTAL ANUAL | G67: =G65+G66 -> 23920.76 | H67: =H65+H66 -> 20978.2 | I67: 17347.7 | J67: =J65+J66 -> 15051.74 | K67: 11692.6
E68: Ahorros en tarifas de prima para niños | G68: =IF($F$36=1,IF($F$38=0,0,IF($F$40=0,0,IF($F$40=1,(VLOOKUP(1,Tablas!$A$522:$G$524,3,TRUE)),(VLOOKUP(2,Tablas!$A$522:$G$524,3,TRUE))))), IF($F$38=0,0,IF($F$40=0,0,IF($F$40=1,(VLOOKUP(1,Tablas!$A$522:$G$524,3,TRUE)),IF($F$40=2,(VLOOKUP(2,Tablas!$A$522:$G$524,3,TRUE)), (VLOOKUP(3,Tablas!$A$522:$G$524,3,TRUE))))))) -> 1537.53 | H68: =IF($F$36=1,IF($F$38=0,0,IF($F$40=0,0,IF($F$40=1,(VLOOKUP(1,Tablas!$A$522:$G$524,4,TRUE)),(VLOOKUP(2,Tablas!$A$522:$G$524,4,TRUE))))), IF($F$38=0,0,IF($F$40=0,0,IF($F$40=1,(VLOOKUP(1,Tablas!$A$522:$G$524,4,TRUE)),IF($F$40=2,(VLOOKUP(2,Tablas!$A$522:$G$524,4,TRUE)), (VLOOKUP(3,Tablas!$A$522:$G$524,4,TRUE))))))) -> 1348.32 | I68: =IF($F$36=1,IF($F$38=0,0,IF($F$40=0,0,IF($F$40=1,(VLOOKUP(1,Tablas!$A$522:$G$524,5,TRUE)),(VLOOKUP(2,Tablas!$A$522:$G$524,5,TRUE))))), IF($F$38=0,0,IF($F$40=0,0,IF($F$40=1,(VLOOKUP(1,Tablas!$A$522:$G$524,5,TRUE)),IF($F$40=2,(VLOOKUP(2,Tablas!$A$522:$G$524,5,TRUE)), (VLOOKUP(3,Tablas!$A$522:$G$524,5,TRUE))))))) -> 1142.15 | J68: =IF($F$36=1,IF($F$38=0,0,IF($F$40=0,0,IF($F$40=1,(VLOOKUP(1,Tablas!$A$522:$G$524,6,TRUE)),(VLOOKUP(2,Tablas!$A$522:$G$524,6,TRUE))))), IF($F$38=0,0,IF($F$40=0,0,IF($F$40=1,(VLOOKUP(1,Tablas!$A$522:$G$524,6,TRUE)),IF($F$40=2,(VLOOKUP(2,Tablas!$A$522:$G$524,6,TRUE)), (VLOOKUP(3,Tablas!$A$522:$G$524,6,TRUE))))))) -> 990.57 | K68: =IF($F$36=1,IF($F$38=0,0,IF($F$40=0,0,IF($F$40=1,(VLOOKUP(1,Tablas!$A$522:$G$524,7,TRUE)),(VLOOKUP(2,Tablas!$A$522:$G$524,7,TRUE))))), IF($F$38=0,0,IF($F$40=0,0,IF($F$40=1,(VLOOKUP(1,Tablas!$A$522:$G$524,7,TRUE)),IF($F$40=2,(VLOOKUP(2,Tablas!$A$522:$G$524,7,TRUE)), (VLOOKUP(3,Tablas!$A$522:$G$524,7,TRUE))))))) -> 768.5
E70: Tarifas trimestrales
E71: Prima para Asegurado Titular | G71: =VLOOKUP($I$36,Tablas!$A$680:$G$746,3,TRUE) -> 2245.65 | H71: =VLOOKUP($I$36,Tablas!$A$680:$G$746,4,TRUE) -> 1968.175 | I71: =VLOOKUP($I$36,Tablas!$A$680:$G$746,5,TRUE) -> 1632.675 | J71: =VLOOKUP($I$36,Tablas!$A$680:$G$746,6,TRUE) -> 1415.425 | K71: =VLOOKUP($I$36,Tablas!$A$680:$G$746,7,TRUE) -> 1098.075
E72: Prima para conyuge | G72: =IF($F$36=1,0,(VLOOKUP($I$38,Tablas!$A$680:$G$746,3,TRUE))) -> 3142.975 | H72: =IF($F$36=1,0,(VLOOKUP($I$38,Tablas!$A$680:$G$746,4,TRUE))) -> 2755.225 | I72: =IF($F$36=1,0,(VLOOKUP($I$38,Tablas!$A$680:$G$746,5,TRUE))) -> 2255.825 | J72: =IF($F$36=1,0,(VLOOKUP($I$38,Tablas!$A$680:$G$746,6,TRUE))) -> 1956.075 | K72: =IF($F$36=1,0,(VLOOKUP($I$38,Tablas!$A$680:$G$746,7,TRUE))) -> 1517.175
E73: Prima para hijo (s) | G73: =IF($F$36=1, (IF($F$38=0, 0, (IF($F$40>$F$38, (VLOOKUP($F$38,Tablas!$A$747:$G$749,3,TRUE)), (IF($F$38>4,(IF($F$40=0, (VLOOKUP(3,Tablas!$A$747:$G$749,3,TRUE)), (IF($F$40=1, (VLOOKUP(3,Tablas!$A$747:$G$749,3,TRUE)), (IF($F$40=2, (VLOOKUP(3,Tablas!$A$747:$G$749,3,TRUE)), (VLOOKUP(3,Tablas!$A$747:$G$749,3,TRUE)))))))), (IF($F$38=4,(IF(4-$F$40=0,(VLOOKUP(2,Tablas!$A$747:$G$749,3,TRUE)), (IF(4-$F$40=1,(VLOOKUP(2,Tablas!$A$747:$G$749,3,TRUE)), (IF(4-$F$40=2, (VLOOKUP(2,Tablas!$A$747:$G$749,3,TRUE)), (VLOOKUP(3,Tablas!$A$747:$G$749,3,TRUE)))))))), (IF($F$38=3,(IF(3-$F$40=0,(VLOOKUP(1,Tablas!$A$747:$G$749,3,TRUE)), (IF(3-$F$40=1,(VLOOKUP(1,Tablas!$A$747:$G$749,3,TRUE)), (IF(3-$F$40=2, (VLOOKUP(2,Tablas!$A$747:$G$749,3,TRUE)), (VLOOKUP(3,Tablas!$A$747:$G$749,3,TRUE)))))))), (IF($F$38=2,(IF(2-$F$40=0, 0, (IF(2-$F$40=1,(VLOOKUP(1,Tablas!$A$747:$G$749,3,TRUE)), (IF(2-$F$40=2, (VLOOKUP(2,Tablas!$A$747:$G$749,3,TRUE)), 0)))))), (IF($F$38=1,(IF(1-$F$40=0, 0, (IF(1-$F$40=1,(VLOOKUP(1,Tablas!$A$747:$G$749,3,TRUE)),0)))),0)))))))))))))), (IF($F$38=0, 0, (IF($F$40>$F$38, (VLOOKUP($F$38,Tablas!$A$747:$G$749,3,TRUE)), (IF($F$38=4,(IF(4-$F$40=0, 0, (IF(4-$F$40=1, (VLOOKUP(1,Tablas!$A$747:$G$749,3,TRUE)), (IF(4-$F$40=2, (VLOOKUP(2,Tablas!$A$747:$G$749,3,TRUE)), (IF(4-$F$40=3, (VLOOKUP(3,Tablas!$A$747:$G$749,3,TRUE)), (IF(4-$F$40=4, (VLOOKUP(3,Tablas!$A$747:$G$749,3,TRUE)), 0)))))))))), (IF($F$38=5,(IF(5-$F$40=0, (VLOOKUP(1,Tablas!$A$747:$G$749,3,TRUE)), (IF(5-$F$40=1, (VLOOKUP(1,Tablas!$A$747:$G$749,3,TRUE)), (IF(5-$F$40=2, (VLOOKUP(2,Tablas!$A$747:$G$749,3,TRUE)), (IF(5-$F$40=3, (VLOOKUP(3,Tablas!$A$747:$G$749,3,TRUE)), (IF(5-$F$40=4, (VLOOKUP(3,Tablas!$A$747:$G$749,3,TRUE)), (VLOOKUP(3,Tablas!$A$747:$G$749,3,TRUE)))))))))))), (IF($F$38=6,(IF(6-$F$40=0, (VLOOKUP(2,Tablas!$A$747:$G$749,3,TRUE)), (IF(6-$F$40=1, (VLOOKUP(2,Tablas!$A$747:$G$749,3,TRUE)), (IF(6-$F$40=2, (VLOOKUP(2,Tablas!$A$747:$G$749,3,TRUE)), (IF(6-$F$40=3, (VLOOKUP(3,Tablas!$A$747:$G$749,3,TRUE)), (IF(6-$F$40=4, (VLOOKUP(3,Tablas!$A$747:$G$749,3,TRUE)), (VLOOKUP(3,Tablas!$A$747:$G$749,3,TRUE)))))))))))), (IF($F$38>6,(IF(7-$F$40=0, (VLOOKUP(3,Tablas!$A$747:$G$749,3,TRUE)), (IF(7-$F$40=1, (VLOOKUP(3,Tablas!$A$747:$G$749,3,TRUE)), (IF(7-$F$40=2, (VLOOKUP(3,Tablas!$A$747:$G$749,3,TRUE)), (IF(7-$F$40=3, (VLOOKUP(3,Tablas!$A$747:$G$749,3,TRUE)), (IF(7-$F$40=4, (VLOOKUP(3,Tablas!$A$747:$G$749,3,TRUE)), (VLOOKUP(3,Tablas!$A$747:$G$749,3,TRUE)))))))))))), (IF($F$38=3,(IF(3-$F$40=0,0, (IF(3-$F$40=1,(VLOOKUP(1,Tablas!$A$747:$G$749,3,TRUE)), (IF(3-$F$40=2, (VLOOKUP(2,Tablas!$A$747:$G$749,3,TRUE)), (VLOOKUP(3,Tablas!$A$747:$G$749,3,TRUE)))))))), (IF($F$38=2,(IF(2-$F$40=0, 0, (IF(2-$F$40=1,(VLOOKUP(1,Tablas!$A$747:$G$749,3,TRUE)), (IF(2-$F$40=2, (VLOOKUP(2,Tablas!$A$747:$G$749,3,TRUE)), 0)))))), (IF($F$38=1,(IF(1-$F$40=0, 0, (IF(1-$F$40=1,(VLOOKUP(1,Tablas!$A$747:$G$749,3,TRUE)),0)))),0))))))))))))))))))) -> 797.775 | H73: =IF($F$36=1, (IF($F$38=0, 0, (IF($F$40>$F$38, (VLOOKUP($F$38,Tablas!$A$747:$G$749,4,TRUE)), (IF($F$38>4,(IF($F$40=0, (VLOOKUP(3,Tablas!$A$747:$G$749,4,TRUE)), (IF($F$40=1, (VLOOKUP(3,Tablas!$A$747:$G$749,4,TRUE)), (IF($F$40=2, (VLOOKUP(3,Tablas!$A$747:$G$749,4,TRUE)), (VLOOKUP(3,Tablas!$A$747:$G$749,4,TRUE)))))))), (IF($F$38=4,(IF(4-$F$40=0,(VLOOKUP(2,Tablas!$A$747:$G$749,4,TRUE)), (IF(4-$F$40=1,(VLOOKUP(2,Tablas!$A$747:$G$749,4,TRUE)), (IF(4-$F$40=2, (VLOOKUP(2,Tablas!$A$747:$G$749,4,TRUE)), (VLOOKUP(3,Tablas!$A$747:$G$749,4,TRUE)))))))), (IF($F$38=3,(IF(3-$F$40=0,(VLOOKUP(1,Tablas!$A$747:$G$749,4,TRUE)), (IF(3-$F$40=1,(VLOOKUP(1,Tablas!$A$747:$G$749,4,TRUE)), (IF(3-$F$40=2, (VLOOKUP(2,Tablas!$A$747:$G$749,4,TRUE)), (VLOOKUP(3,Tablas!$A$747:$G$749,4,TRUE)))))))), (IF($F$38=2,(IF(2-$F$40=0, 0, (IF(2-$F$40=1,(VLOOKUP(1,Tablas!$A$747:$G$749,4,TRUE)), (IF(2-$F$40=2, (VLOOKUP(2,Tablas!$A$747:$G$749,4,TRUE)), 0)))))), (IF($F$38=1,(IF(1-$F$40=0, 0, (IF(1-$F$40=1,(VLOOKUP(1,Tablas!$A$747:$G$749,4,TRUE)),0)))),0)))))))))))))), (IF($F$38=0, 0, (IF($F$40>$F$38, (VLOOKUP($F$38,Tablas!$A$747:$G$749,4,TRUE)), (IF($F$38=4,(IF(4-$F$40=0, 0, (IF(4-$F$40=1, (VLOOKUP(1,Tablas!$A$747:$G$749,4,TRUE)), (IF(4-$F$40=2, (VLOOKUP(2,Tablas!$A$747:$G$749,4,TRUE)), (IF(4-$F$40=3, (VLOOKUP(3,Tablas!$A$747:$G$749,4,TRUE)), (IF(4-$F$40=4, (VLOOKUP(3,Tablas!$A$747:$G$749,4,TRUE)), 0)))))))))), (IF($F$38=5,(IF(5-$F$40=0, (VLOOKUP(1,Tablas!$A$747:$G$749,4,TRUE)), (IF(5-$F$40=1, (VLOOKUP(1,Tablas!$A$747:$G$749,4,TRUE)), (IF(5-$F$40=2, (VLOOKUP(2,Tablas!$A$747:$G$749,4,TRUE)), (IF(5-$F$40=3, (VLOOKUP(3,Tablas!$A$747:$G$749,4,TRUE)), (IF(5-$F$40=4, (VLOOKUP(3,Tablas!$A$747:$G$749,4,TRUE)), (VLOOKUP(3,Tablas!$A$747:$G$749,4,TRUE)))))))))))), (IF($F$38=6,(IF(6-$F$40=0, (VLOOKUP(2,Tablas!$A$747:$G$749,4,TRUE)), (IF(6-$F$40=1, (VLOOKUP(2,Tablas!$A$747:$G$749,4,TRUE)), (IF(6-$F$40=2, (VLOOKUP(2,Tablas!$A$747:$G$749,4,TRUE)), (IF(6-$F$40=3, (VLOOKUP(3,Tablas!$A$747:$G$749,4,TRUE)), (IF(6-$F$40=4, (VLOOKUP(3,Tablas!$A$747:$G$749,4,TRUE)), (VLOOKUP(3,Tablas!$A$747:$G$749,4,TRUE)))))))))))), (IF($F$38>6,(IF(7-$F$40=0, (VLOOKUP(3,Tablas!$A$747:$G$749,4,TRUE)), (IF(7-$F$40=1, (VLOOKUP(3,Tablas!$A$747:$G$749,4,TRUE)), (IF(7-$F$40=2, (VLOOKUP(3,Tablas!$A$747:$G$749,4,TRUE)), (IF(7-$F$40=3, (VLOOKUP(3,Tablas!$A$747:$G$749,4,TRUE)), (IF(7-$F$40=4, (VLOOKUP(3,Tablas!$A$747:$G$749,4,TRUE)), (VLOOKUP(3,Tablas!$A$747:$G$749,4,TRUE)))))))))))), (IF($F$38=3,(IF(3-$F$40=0,0, (IF(3-$F$40=1,(VLOOKUP(1,Tablas!$A$747:$G$749,4,TRUE)), (IF(3-$F$40=2, (VLOOKUP(2,Tablas!$A$747:$G$749,4,TRUE)), (VLOOKUP(3,Tablas!$A$747:$G$749,4,TRUE)))))))), (IF($F$38=2,(IF(2-$F$40=0, 0, (IF(2-$F$40=1,(VLOOKUP(1,Tablas!$A$747:$G$749,4,TRUE)), (IF(2-$F$40=2, (VLOOKUP(2,Tablas!$A$747:$G$749,4,TRUE)), 0)))))), (IF($F$38=1,(IF(1-$F$40=0, 0, (IF(1-$F$40=1,(VLOOKUP(1,Tablas!$A$747:$G$749,4,TRUE)),0)))),0))))))))))))))))))) -> 699.6 | I73: =IF($F$36=1, (IF($F$38=0, 0, (IF($F$40>$F$38, (VLOOKUP($F$38,Tablas!$A$747:$G$749,5,TRUE)), (IF($F$38>4,(IF($F$40=0, (VLOOKUP(3,Tablas!$A$747:$G$749,5,TRUE)), (IF($F$40=1, (VLOOKUP(3,Tablas!$A$747:$G$749,5,TRUE)), (IF($F$40=2, (VLOOKUP(3,Tablas!$A$747:$G$749,5,TRUE)), (VLOOKUP(3,Tablas!$A$747:$G$749,5,TRUE)))))))), (IF($F$38=4,(IF(4-$F$40=0,(VLOOKUP(2,Tablas!$A$747:$G$749,5,TRUE)), (IF(4-$F$40=1,(VLOOKUP(2,Tablas!$A$747:$G$749,5,TRUE)), (IF(4-$F$40=2, (VLOOKUP(2,Tablas!$A$747:$G$749,5,TRUE)), (VLOOKUP(3,Tablas!$A$747:$G$749,5,TRUE)))))))), (IF($F$38=3,(IF(3-$F$40=0,(VLOOKUP(1,Tablas!$A$747:$G$749,5,TRUE)), (IF(3-$F$40=1,(VLOOKUP(1,Tablas!$A$747:$G$749,5,TRUE)), (IF(3-$F$40=2, (VLOOKUP(2,Tablas!$A$747:$G$749,5,TRUE)), (VLOOKUP(3,Tablas!$A$747:$G$749,5,TRUE)))))))), (IF($F$38=2,(IF(2-$F$40=0, 0, (IF(2-$F$40=1,(VLOOKUP(1,Tablas!$A$747:$G$749,5,TRUE)), (IF(2-$F$40=2, (VLOOKUP(2,Tablas!$A$747:$G$749,5,TRUE)), 0)))))), (IF($F$38=1,(IF(1-$F$40=0, 0, (IF(1-$F$40=1,(VLOOKUP(1,Tablas!$A$747:$G$749,5,TRUE)),0)))),0)))))))))))))), (IF($F$38=0, 0, (IF($F$40>$F$38, (VLOOKUP($F$38,Tablas!$A$747:$G$749,5,TRUE)), (IF($F$38=4,(IF(4-$F$40=0, 0, (IF(4-$F$40=1, (VLOOKUP(1,Tablas!$A$747:$G$749,5,TRUE)), (IF(4-$F$40=2, (VLOOKUP(2,Tablas!$A$747:$G$749,5,TRUE)), (IF(4-$F$40=3, (VLOOKUP(3,Tablas!$A$747:$G$749,5,TRUE)), (IF(4-$F$40=4, (VLOOKUP(3,Tablas!$A$747:$G$749,5,TRUE)), 0)))))))))), (IF($F$38=5,(IF(5-$F$40=0, (VLOOKUP(1,Tablas!$A$747:$G$749,5,TRUE)), (IF(5-$F$40=1, (VLOOKUP(1,Tablas!$A$747:$G$749,5,TRUE)), (IF(5-$F$40=2, (VLOOKUP(2,Tablas!$A$747:$G$749,5,TRUE)), (IF(5-$F$40=3, (VLOOKUP(3,Tablas!$A$747:$G$749,5,TRUE)), (IF(5-$F$40=4, (VLOOKUP(3,Tablas!$A$747:$G$749,5,TRUE)), (VLOOKUP(3,Tablas!$A$747:$G$749,5,TRUE)))))))))))), (IF($F$38=6,(IF(6-$F$40=0, (VLOOKUP(2,Tablas!$A$747:$G$749,5,TRUE)), (IF(6-$F$40=1, (VLOOKUP(2,Tablas!$A$747:$G$749,5,TRUE)), (IF(6-$F$40=2, (VLOOKUP(2,Tablas!$A$747:$G$749,5,TRUE)), (IF(6-$F$40=3, (VLOOKUP(3,Tablas!$A$747:$G$749,5,TRUE)), (IF(6-$F$40=4, (VLOOKUP(3,Tablas!$A$747:$G$749,5,TRUE)), (VLOOKUP(3,Tablas!$A$747:$G$749,5,TRUE)))))))))))), (IF($F$38>6,(IF(7-$F$40=0, (VLOOKUP(3,Tablas!$A$747:$G$749,5,TRUE)), (IF(7-$F$40=1, (VLOOKUP(3,Tablas!$A$747:$G$749,5,TRUE)), (IF(7-$F$40=2, (VLOOKUP(3,Tablas!$A$747:$G$749,5,TRUE)), (IF(7-$F$40=3, (VLOOKUP(3,Tablas!$A$747:$G$749,5,TRUE)), (IF(7-$F$40=4, (VLOOKUP(3,Tablas!$A$747:$G$749,5,TRUE)), (VLOOKUP(3,Tablas!$A$747:$G$749,5,TRUE)))))))))))), (IF($F$38=3,(IF(3-$F$40=0,0, (IF(3-$F$40=1,(VLOOKUP(1,Tablas!$A$747:$G$749,5,TRUE)), (IF(3-$F$40=2, (VLOOKUP(2,Tablas!$A$747:$G$749,5,TRUE)), (VLOOKUP(3,Tablas!$A$747:$G$749,5,TRUE)))))))), (IF($F$38=2,(IF(2-$F$40=0, 0, (IF(2-$F$40=1,(VLOOKUP(1,Tablas!$A$747:$G$749,5,TRUE)), (IF(2-$F$40=2, (VLOOKUP(2,Tablas!$A$747:$G$749,5,TRUE)), 0)))))), (IF($F$38=1,(IF(1-$F$40=0, 0, (IF(1-$F$40=1,(VLOOKUP(1,Tablas!$A$747:$G$749,5,TRUE)),0)))),0))))))))))))))))))) -> 592.625 | J73: =IF($F$36=1, (IF($F$38=0, 0, (IF($F$40>$F$38, (VLOOKUP($F$38,Tablas!$A$747:$G$749,6,TRUE)), (IF($F$38>4,(IF($F$40=0, (VLOOKUP(3,Tablas!$A$747:$G$749,6,TRUE)), (IF($F$40=1, (VLOOKUP(3,Tablas!$A$747:$G$749,6,TRUE)), (IF($F$40=2, (VLOOKUP(3,Tablas!$A$747:$G$749,6,TRUE)), (VLOOKUP(3,Tablas!$A$747:$G$749,6,TRUE)))))))), (IF($F$38=4,(IF(4-$F$40=0,(VLOOKUP(2,Tablas!$A$747:$G$749,6,TRUE)), (IF(4-$F$40=1,(VLOOKUP(2,Tablas!$A$747:$G$749,6,TRUE)), (IF(4-$F$40=2, (VLOOKUP(2,Tablas!$A$747:$G$749,6,TRUE)), (VLOOKUP(3,Tablas!$A$747:$G$749,6,TRUE)))))))), (IF($F$38=3,(IF(3-$F$40=0,(VLOOKUP(1,Tablas!$A$747:$G$749,6,TRUE)), (IF(3-$F$40=1,(VLOOKUP(1,Tablas!$A$747:$G$749,6,TRUE)), (IF(3-$F$40=2, (VLOOKUP(2,Tablas!$A$747:$G$749,6,TRUE)), (VLOOKUP(3,Tablas!$A$747:$G$749,6,TRUE)))))))), (IF($F$38=2,(IF(2-$F$40=0, 0, (IF(2-$F$40=1,(VLOOKUP(1,Tablas!$A$747:$G$749,6,TRUE)), (IF(2-$F$40=2, (VLOOKUP(2,Tablas!$A$747:$G$749,6,TRUE)), 0)))))), (IF($F$38=1,(IF(1-$F$40=0, 0, (IF(1-$F$40=1,(VLOOKUP(1,Tablas!$A$747:$G$749,6,TRUE)),0)))),0)))))))))))))), (IF($F$38=0, 0, (IF($F$40>$F$38, (VLOOKUP($F$38,Tablas!$A$747:$G$749,6,TRUE)), (IF($F$38=4,(IF(4-$F$40=0, 0, (IF(4-$F$40=1, (VLOOKUP(1,Tablas!$A$747:$G$749,6,TRUE)), (IF(4-$F$40=2, (VLOOKUP(2,Tablas!$A$747:$G$749,6,TRUE)), (IF(4-$F$40=3, (VLOOKUP(3,Tablas!$A$747:$G$749,6,TRUE)), (IF(4-$F$40=4, (VLOOKUP(3,Tablas!$A$747:$G$749,6,TRUE)), 0)))))))))), (IF($F$38=5,(IF(5-$F$40=0, (VLOOKUP(1,Tablas!$A$747:$G$749,6,TRUE)), (IF(5-$F$40=1, (VLOOKUP(1,Tablas!$A$747:$G$749,6,TRUE)), (IF(5-$F$40=2, (VLOOKUP(2,Tablas!$A$747:$G$749,6,TRUE)), (IF(5-$F$40=3, (VLOOKUP(3,Tablas!$A$747:$G$749,6,TRUE)), (IF(5-$F$40=4, (VLOOKUP(3,Tablas!$A$747:$G$749,6,TRUE)), (VLOOKUP(3,Tablas!$A$747:$G$749,6,TRUE)))))))))))), (IF($F$38=6,(IF(6-$F$40=0, (VLOOKUP(2,Tablas!$A$747:$G$749,6,TRUE)), (IF(6-$F$40=1, (VLOOKUP(2,Tablas!$A$747:$G$749,6,TRUE)), (IF(6-$F$40=2, (VLOOKUP(2,Tablas!$A$747:$G$749,6,TRUE)), (IF(6-$F$40=3, (VLOOKUP(3,Tablas!$A$747:$G$749,6,TRUE)), (IF(6-$F$40=4, (VLOOKUP(3,Tablas!$A$747:$G$749,6,TRUE)), (VLOOKUP(3,Tablas!$A$747:$G$749,6,TRUE)))))))))))), (IF($F$38>6,(IF(7-$F$40=0, (VLOOKUP(3,Tablas!$A$747:$G$749,6,TRUE)), (IF(7-$F$40=1, (VLOOKUP(3,Tablas!$A$747:$G$749,6,TRUE)), (IF(7-$F$40=2, (VLOOKUP(3,Tablas!$A$747:$G$749,6,TRUE)), (IF(7-$F$40=3, (VLOOKUP(3,Tablas!$A$747:$G$749,6,TRUE)), (IF(7-$F$40=4, (VLOOKUP(3,Tablas!$A$747:$G$749,6,TRUE)), (VLOOKUP(3,Tablas!$A$747:$G$749,6,TRUE)))))))))))), (IF($F$38=3,(IF(3-$F$40=0,0, (IF(3-$F$40=1,(VLOOKUP(1,Tablas!$A$747:$G$749,6,TRUE)), (IF(3-$F$40=2, (VLOOKUP(2,Tablas!$A$747:$G$749,6,TRUE)), (VLOOKUP(3,Tablas!$A$747:$G$749,6,TRUE)))))))), (IF($F$38=2,(IF(2-$F$40=0, 0, (IF(2-$F$40=1,(VLOOKUP(1,Tablas!$A$747:$G$749,6,TRUE)), (IF(2-$F$40=2, (VLOOKUP(2,Tablas!$A$747:$G$749,6,TRUE)), 0)))))), (IF($F$38=1,(IF(1-$F$40=0, 0, (IF(1-$F$40=1,(VLOOKUP(1,Tablas!$A$747:$G$749,6,TRUE)),0)))),0))))))))))))))))))) -> 513.975 | K73: =IF($F$36=1, (IF($F$38=0, 0, (IF($F$40>$F$38, (VLOOKUP($F$38,Tablas!$A$747:$G$749,7,TRUE)), (IF($F$38>4,(IF($F$40=0, (VLOOKUP(3,Tablas!$A$747:$G$749,7,TRUE)), (IF($F$40=1, (VLOOKUP(3,Tablas!$A$747:$G$749,7,TRUE)), (IF($F$40=2, (VLOOKUP(3,Tablas!$A$747:$G$749,7,TRUE)), (VLOOKUP(3,Tablas!$A$747:$G$749,7,TRUE)))))))), (IF($F$38=4,(IF(4-$F$40=0,(VLOOKUP(2,Tablas!$A$747:$G$749,7,TRUE)), (IF(4-$F$40=1,(VLOOKUP(2,Tablas!$A$747:$G$749,7,TRUE)), (IF(4-$F$40=2, (VLOOKUP(2,Tablas!$A$747:$G$749,7,TRUE)), (VLOOKUP(3,Tablas!$A$747:$G$749,7,TRUE)))))))), (IF($F$38=3,(IF(3-$F$40=0,(VLOOKUP(1,Tablas!$A$747:$G$749,7,TRUE)), (IF(3-$F$40=1,(VLOOKUP(1,Tablas!$A$747:$G$749,7,TRUE)), (IF(3-$F$40=2, (VLOOKUP(2,Tablas!$A$747:$G$749,7,TRUE)), (VLOOKUP(3,Tablas!$A$747:$G$749,7,TRUE)))))))), (IF($F$38=2,(IF(2-$F$40=0, 0, (IF(2-$F$40=1,(VLOOKUP(1,Tablas!$A$747:$G$749,7,TRUE)), (IF(2-$F$40=2, (VLOOKUP(2,Tablas!$A$747:$G$749,7,TRUE)), 0)))))), (IF($F$38=1,(IF(1-$F$40=0, 0, (IF(1-$F$40=1,(VLOOKUP(1,Tablas!$A$747:$G$749,7,TRUE)),0)))),0)))))))))))))), (IF($F$38=0, 0, (IF($F$40>$F$38, (VLOOKUP($F$38,Tablas!$A$747:$G$749,7,TRUE)), (IF($F$38=4,(IF(4-$F$40=0, 0, (IF(4-$F$40=1, (VLOOKUP(1,Tablas!$A$747:$G$749,7,TRUE)), (IF(4-$F$40=2, (VLOOKUP(2,Tablas!$A$747:$G$749,7,TRUE)), (IF(4-$F$40=3, (VLOOKUP(3,Tablas!$A$747:$G$749,7,TRUE)), (IF(4-$F$40=4, (VLOOKUP(3,Tablas!$A$747:$G$749,7,TRUE)), 0)))))))))), (IF($F$38=5,(IF(5-$F$40=0, (VLOOKUP(1,Tablas!$A$747:$G$749,7,TRUE)), (IF(5-$F$40=1, (VLOOKUP(1,Tablas!$A$747:$G$749,7,TRUE)), (IF(5-$F$40=2, (VLOOKUP(2,Tablas!$A$747:$G$749,7,TRUE)), (IF(5-$F$40=3, (VLOOKUP(3,Tablas!$A$747:$G$749,7,TRUE)), (IF(5-$F$40=4, (VLOOKUP(3,Tablas!$A$747:$G$749,7,TRUE)), (VLOOKUP(3,Tablas!$A$747:$G$749,7,TRUE)))))))))))), (IF($F$38=6,(IF(6-$F$40=0, (VLOOKUP(2,Tablas!$A$747:$G$749,7,TRUE)), (IF(6-$F$40=1, (VLOOKUP(2,Tablas!$A$747:$G$749,7,TRUE)), (IF(6-$F$40=2, (VLOOKUP(2,Tablas!$A$747:$G$749,7,TRUE)), (IF(6-$F$40=3, (VLOOKUP(3,Tablas!$A$747:$G$749,7,TRUE)), (IF(6-$F$40=4, (VLOOKUP(3,Tablas!$A$747:$G$749,7,TRUE)), (VLOOKUP(3,Tablas!$A$747:$G$749,7,TRUE)))))))))))), (IF($F$38>6,(IF(7-$F$40=0, (VLOOKUP(3,Tablas!$A$747:$G$749,7,TRUE)), (IF(7-$F$40=1, (VLOOKUP(3,Tablas!$A$747:$G$749,7,TRUE)), (IF(7-$F$40=2, (VLOOKUP(3,Tablas!$A$747:$G$749,7,TRUE)), (IF(7-$F$40=3, (VLOOKUP(3,Tablas!$A$747:$G$749,7,TRUE)), (IF(7-$F$40=4, (VLOOKUP(3,Tablas!$A$747:$G$749,7,TRUE)), (VLOOKUP(3,Tablas!$A$747:$G$749,7,TRUE)))))))))))), (IF($F$38=3,(IF(3-$F$40=0,0, (IF(3-$F$40=1,(VLOOKUP(1,Tablas!$A$747:$G$749,7,TRUE)), (IF(3-$F$40=2, (VLOOKUP(2,Tablas!$A$747:$G$749,7,TRUE)), (VLOOKUP(3,Tablas!$A$747:$G$749,7,TRUE)))))))), (IF($F$38=2,(IF(2-$F$40=0, 0, (IF(2-$F$40=1,(VLOOKUP(1,Tablas!$A$747:$G$749,7,TRUE)), (IF(2-$F$40=2, (VLOOKUP(2,Tablas!$A$747:$G$749,7,TRUE)), 0)))))), (IF($F$38=1,(IF(1-$F$40=0, 0, (IF(1-$F$40=1,(VLOOKUP(1,Tablas!$A$747:$G$749,7,TRUE)),0)))),0))))))))))))))))))) -> 398.75
E74: Total de Prima neta | G74: =SUM(G71:G73) -> 6186.4 | H74: =SUM(H71:H73) -> 5423 | I74: =SUM(I71:I73) -> 4481.125 | J74: =SUM(J71:J73) -> 3885.475 | K74: =SUM(K71:K73) -> 3014
E75: Descuento por variante con coaseguro fuera del país de residencia | G75: =IF('INGRESO DE DATOS'!$H$27,G74*-25%,0) -> 0 | H75: =IF('INGRESO DE DATOS'!$H$27,H74*-25%,0) -> 0 | I75: =IF('INGRESO DE DATOS'!$H$27,I74*-25%,0) -> 0 | J75: =IF('INGRESO DE DATOS'!$H$27,J74*-25%,0) -> 0 | K75: =IF('INGRESO DE DATOS'!$H$27,K74*-25%,0) -> 0
E76: Tarifa administrativa anual | G76: 75 | H76: 75 | I76: 75 | J76: 75 | K76: 75
E77: IVA (12%) | G77: =(G74+G76)*0% -> 0 | H77: =(H74+H76)*0% -> 0 | I77: 0 | J77: 0 | K77: 0
E78: TOTAL de primera cuota | G78: =SUM(G74:G77) -> 6261.4 | H78: =SUM(H74:H77) -> 5498 | I78: 4556.125 | J78: 3960.475 | K78: 3089
E79: Costo de tarifa trimestral 2 a 4 | G79: =SUM(G74:G75) -> 6186.4 | H79: =SUM(H74:H75) -> 5423 | I79: 4481.125 | J79: 3885.475 | K79: 3014
E80: TOTAL ANUAL | G80: =G78+(G79*3) -> 24820.6 | H80: =H78+(H79*3) -> 21767 | I80: 17999.5 | J80: =J78+(J79*3) -> 15616.9 | K80: 12131
E81: Ahorros en tarifas de prima para niños | G81: =IF($F$36=1,IF($F$38=0,0,IF($F$40=0,0,IF($F$40=1,(VLOOKUP(1,Tablas!$A$747:$G$749,3,TRUE)),(VLOOKUP(2,Tablas!$A$747:$G$749,3,TRUE))))), IF($F$38=0,0,IF($F$40=0,0,IF($F$40=1,(VLOOKUP(1,Tablas!$A$747:$G$749,3,TRUE)),IF($F$40=2,(VLOOKUP(2,Tablas!$A$747:$G$749,3,TRUE)), (VLOOKUP(3,Tablas!$A$747:$G$749,3,TRUE))))))) -> 797.775 | H81: =IF($F$36=1,IF($F$38=0,0,IF($F$40=0,0,IF($F$40=1,(VLOOKUP(1,Tablas!$A$747:$G$749,4,TRUE)),(VLOOKUP(2,Tablas!$A$747:$G$749,4,TRUE))))), IF($F$38=0,0,IF($F$40=0,0,IF($F$40=1,(VLOOKUP(1,Tablas!$A$747:$G$749,4,TRUE)),IF($F$40=2,(VLOOKUP(2,Tablas!$A$747:$G$749,4,TRUE)), (VLOOKUP(3,Tablas!$A$747:$G$749,4,TRUE))))))) -> 699.6 | I81: =IF($F$36=1,IF($F$38=0,0,IF($F$40=0,0,IF($F$40=1,(VLOOKUP(1,Tablas!$A$747:$G$749,5,TRUE)),(VLOOKUP(2,Tablas!$A$747:$G$749,5,TRUE))))), IF($F$38=0,0,IF($F$40=0,0,IF($F$40=1,(VLOOKUP(1,Tablas!$A$747:$G$749,5,TRUE)),IF($F$40=2,(VLOOKUP(2,Tablas!$A$747:$G$749,5,TRUE)), (VLOOKUP(3,Tablas!$A$747:$G$749,5,TRUE))))))) -> 592.625 | J81: =IF($F$36=1,IF($F$38=0,0,IF($F$40=0,0,IF($F$40=1,(VLOOKUP(1,Tablas!$A$747:$G$749,6,TRUE)),(VLOOKUP(2,Tablas!$A$747:$G$749,6,TRUE))))), IF($F$38=0,0,IF($F$40=0,0,IF($F$40=1,(VLOOKUP(1,Tablas!$A$747:$G$749,6,TRUE)),IF($F$40=2,(VLOOKUP(2,Tablas!$A$747:$G$749,6,TRUE)), (VLOOKUP(3,Tablas!$A$747:$G$749,6,TRUE))))))) -> 513.975 | K81: =IF($F$36=1,IF($F$38=0,0,IF($F$40=0,0,IF($F$40=1,(VLOOKUP(1,Tablas!$A$747:$G$749,7,TRUE)),(VLOOKUP(2,Tablas!$A$747:$G$749,7,TRUE))))), IF($F$38=0,0,IF($F$40=0,0,IF($F$40=1,(VLOOKUP(1,Tablas!$A$747:$G$749,7,TRUE)),IF($F$40=2,(VLOOKUP(2,Tablas!$A$747:$G$749,7,TRUE)), (VLOOKUP(3,Tablas!$A$747:$G$749,7,TRUE))))))) -> 398.75
E83: Tarifas mensuales
E84: Prima para Asegurado Titular | G84: =VLOOKUP($I$36,Tablas!$A$80:$G$146,3,TRUE) -> 762.16 | H84: =VLOOKUP($I$36,Tablas!$A$80:$G$146,4,TRUE) -> 667.9866667 | I84: =VLOOKUP($I$36,Tablas!$A$80:$G$146,5,TRUE) -> 554.12 | J84: =VLOOKUP($I$36,Tablas!$A$80:$G$146,6,TRUE) -> 480.3866667 | K84: =VLOOKUP($I$36,Tablas!$A$80:$G$146,7,TRUE) -> 372.68
E85: Prima para conyuge | G85: =IF($F$36=1,0,(VLOOKUP($I$38,Tablas!$A$80:$G$146,3,TRUE))) -> 1066.706667 | H85: =IF($F$36=1,0,(VLOOKUP($I$38,Tablas!$A$80:$G$146,4,TRUE))) -> 935.1066667 | I85: =IF($F$36=1,0,(VLOOKUP($I$38,Tablas!$A$80:$G$146,5,TRUE))) -> 765.6133333 | J85: =IF($F$36=1,0,(VLOOKUP($I$38,Tablas!$A$80:$G$146,6,TRUE))) -> 663.88 | K85: =IF($F$36=1,0,(VLOOKUP($I$38,Tablas!$A$80:$G$146,7,TRUE))) -> 514.92
E86: Prima para hijo (s) | G86: =IF($F$36=1, (IF($F$38=0, 0, (IF($F$40>$F$38, (VLOOKUP($F$38,Tablas!$A$147:$G$149,3,TRUE)), (IF($F$38>4,(IF($F$40=0, (VLOOKUP(3,Tablas!$A$147:$G$149,3,TRUE)), (IF($F$40=1, (VLOOKUP(3,Tablas!$A$147:$G$149,3,TRUE)), (IF($F$40=2, (VLOOKUP(3,Tablas!$A$147:$G$149,3,TRUE)), (VLOOKUP(3,Tablas!$A$147:$G$149,3,TRUE)))))))), (IF($F$38=4,(IF(4-$F$40=0,(VLOOKUP(2,Tablas!$A$147:$G$149,3,TRUE)), (IF(4-$F$40=1,(VLOOKUP(2,Tablas!$A$147:$G$149,3,TRUE)), (IF(4-$F$40=2, (VLOOKUP(2,Tablas!$A$147:$G$149,3,TRUE)), (VLOOKUP(3,Tablas!$A$147:$G$149,3,TRUE)))))))), (IF($F$38=3,(IF(3-$F$40=0,(VLOOKUP(1,Tablas!$A$147:$G$149,3,TRUE)), (IF(3-$F$40=1,(VLOOKUP(1,Tablas!$A$147:$G$149,3,TRUE)), (IF(3-$F$40=2, (VLOOKUP(2,Tablas!$A$147:$G$149,3,TRUE)), (VLOOKUP(3,Tablas!$A$147:$G$149,3,TRUE)))))))), (IF($F$38=2,(IF(2-$F$40=0, 0, (IF(2-$F$40=1,(VLOOKUP(1,Tablas!$A$147:$G$149,3,TRUE)), (IF(2-$F$40=2, (VLOOKUP(2,Tablas!$A$147:$G$149,3,TRUE)), 0)))))), (IF($F$38=1,(IF(1-$F$40=0, 0, (IF(1-$F$40=1,(VLOOKUP(1,Tablas!$A$147:$G$149,3,TRUE)),0)))),0)))))))))))))), (IF($F$38=0, 0, (IF($F$40>$F$38, (VLOOKUP($F$38,Tablas!$A$147:$G$149,3,TRUE)), (IF($F$38=4,(IF(4-$F$40=0, 0, (IF(4-$F$40=1, (VLOOKUP(1,Tablas!$A$147:$G$149,3,TRUE)), (IF(4-$F$40=2, (VLOOKUP(2,Tablas!$A$147:$G$149,3,TRUE)), (IF(4-$F$40=3, (VLOOKUP(3,Tablas!$A$147:$G$149,3,TRUE)), (IF(4-$F$40=4, (VLOOKUP(3,Tablas!$A$147:$G$149,3,TRUE)), 0)))))))))), (IF($F$38=5,(IF(5-$F$40=0, (VLOOKUP(1,Tablas!$A$147:$G$149,3,TRUE)), (IF(5-$F$40=1, (VLOOKUP(1,Tablas!$A$147:$G$149,3,TRUE)), (IF(5-$F$40=2, (VLOOKUP(2,Tablas!$A$147:$G$149,3,TRUE)), (IF(5-$F$40=3, (VLOOKUP(3,Tablas!$A$147:$G$149,3,TRUE)), (IF(5-$F$40=4, (VLOOKUP(3,Tablas!$A$147:$G$149,3,TRUE)), (VLOOKUP(3,Tablas!$A$147:$G$149,3,TRUE)))))))))))), (IF($F$38=6,(IF(6-$F$40=0, (VLOOKUP(2,Tablas!$A$147:$G$149,3,TRUE)), (IF(6-$F$40=1, (VLOOKUP(2,Tablas!$A$147:$G$149,3,TRUE)), (IF(6-$F$40=2, (VLOOKUP(2,Tablas!$A$147:$G$149,3,TRUE)), (IF(6-$F$40=3, (VLOOKUP(3,Tablas!$A$147:$G$149,3,TRUE)), (IF(6-$F$40=4, (VLOOKUP(3,Tablas!$A$147:$G$149,3,TRUE)), (VLOOKUP(3,Tablas!$A$147:$G$149,3,TRUE)))))))))))), (IF($F$38>6,(IF(7-$F$40=0, (VLOOKUP(3,Tablas!$A$147:$G$149,3,TRUE)), (IF(7-$F$40=1, (VLOOKUP(3,Tablas!$A$147:$G$149,3,TRUE)), (IF(7-$F$40=2, (VLOOKUP(3,Tablas!$A$147:$G$149,3,TRUE)), (IF(7-$F$40=3, (VLOOKUP(3,Tablas!$A$147:$G$149,3,TRUE)), (IF(7-$F$40=4, (VLOOKUP(3,Tablas!$A$147:$G$149,3,TRUE)), (VLOOKUP(3,Tablas!$A$147:$G$149,3,TRUE)))))))))))), (IF($F$38=3,(IF(3-$F$40=0,0, (IF(3-$F$40=1,(VLOOKUP(1,Tablas!$A$147:$G$149,3,TRUE)), (IF(3-$F$40=2, (VLOOKUP(2,Tablas!$A$147:$G$149,3,TRUE)), (VLOOKUP(3,Tablas!$A$147:$G$149,3,TRUE)))))))), (IF($F$38=2,(IF(2-$F$40=0, 0, (IF(2-$F$40=1,(VLOOKUP(1,Tablas!$A$147:$G$149,3,TRUE)), (IF(2-$F$40=2, (VLOOKUP(2,Tablas!$A$147:$G$149,3,TRUE)), 0)))))), (IF($F$38=1,(IF(1-$F$40=0, 0, (IF(1-$F$40=1,(VLOOKUP(1,Tablas!$A$147:$G$149,3,TRUE)),0)))),0))))))))))))))))))) -> 270.76 | H86: =IF($F$36=1, (IF($F$38=0, 0, (IF($F$40>$F$38, (VLOOKUP($F$38,Tablas!$A$147:$G$149,4,TRUE)), (IF($F$38>4,(IF($F$40=0, (VLOOKUP(3,Tablas!$A$147:$G$149,4,TRUE)), (IF($F$40=1, (VLOOKUP(3,Tablas!$A$147:$G$149,4,TRUE)), (IF($F$40=2, (VLOOKUP(3,Tablas!$A$147:$G$149,4,TRUE)), (VLOOKUP(3,Tablas!$A$147:$G$149,4,TRUE)))))))), (IF($F$38=4,(IF(4-$F$40=0,(VLOOKUP(2,Tablas!$A$147:$G$149,4,TRUE)), (IF(4-$F$40=1,(VLOOKUP(2,Tablas!$A$147:$G$149,4,TRUE)), (IF(4-$F$40=2, (VLOOKUP(2,Tablas!$A$147:$G$149,4,TRUE)), (VLOOKUP(3,Tablas!$A$147:$G$149,4,TRUE)))))))), (IF($F$38=3,(IF(3-$F$40=0,(VLOOKUP(1,Tablas!$A$147:$G$149,4,TRUE)), (IF(3-$F$40=1,(VLOOKUP(1,Tablas!$A$147:$G$149,4,TRUE)), (IF(3-$F$40=2, (VLOOKUP(2,Tablas!$A$147:$G$149,4,TRUE)), (VLOOKUP(3,Tablas!$A$147:$G$149,4,TRUE)))))))), (IF($F$38=2,(IF(2-$F$40=0, 0, (IF(2-$F$40=1,(VLOOKUP(1,Tablas!$A$147:$G$149,4,TRUE)), (IF(2-$F$40=2, (VLOOKUP(2,Tablas!$A$147:$G$149,4,TRUE)), 0)))))), (IF($F$38=1,(IF(1-$F$40=0, 0, (IF(1-$F$40=1,(VLOOKUP(1,Tablas!$A$147:$G$149,4,TRUE)),0)))),0)))))))))))))), (IF($F$38=0, 0, (IF($F$40>$F$38, (VLOOKUP($F$38,Tablas!$A$147:$G$149,4,TRUE)), (IF($F$38=4,(IF(4-$F$40=0, 0, (IF(4-$F$40=1, (VLOOKUP(1,Tablas!$A$147:$G$149,4,TRUE)), (IF(4-$F$40=2, (VLOOKUP(2,Tablas!$A$147:$G$149,4,TRUE)), (IF(4-$F$40=3, (VLOOKUP(3,Tablas!$A$147:$G$149,4,TRUE)), (IF(4-$F$40=4, (VLOOKUP(3,Tablas!$A$147:$G$149,4,TRUE)), 0)))))))))), (IF($F$38=5,(IF(5-$F$40=0, (VLOOKUP(1,Tablas!$A$147:$G$149,4,TRUE)), (IF(5-$F$40=1, (VLOOKUP(1,Tablas!$A$147:$G$149,4,TRUE)), (IF(5-$F$40=2, (VLOOKUP(2,Tablas!$A$147:$G$149,4,TRUE)), (IF(5-$F$40=3, (VLOOKUP(3,Tablas!$A$147:$G$149,4,TRUE)), (IF(5-$F$40=4, (VLOOKUP(3,Tablas!$A$147:$G$149,4,TRUE)), (VLOOKUP(3,Tablas!$A$147:$G$149,4,TRUE)))))))))))), (IF($F$38=6,(IF(6-$F$40=0, (VLOOKUP(2,Tablas!$A$147:$G$149,4,TRUE)), (IF(6-$F$40=1, (VLOOKUP(2,Tablas!$A$147:$G$149,4,TRUE)), (IF(6-$F$40=2, (VLOOKUP(2,Tablas!$A$147:$G$149,4,TRUE)), (IF(6-$F$40=3, (VLOOKUP(3,Tablas!$A$147:$G$149,4,TRUE)), (IF(6-$F$40=4, (VLOOKUP(3,Tablas!$A$147:$G$149,4,TRUE)), (VLOOKUP(3,Tablas!$A$147:$G$149,4,TRUE)))))))))))), (IF($F$38>6,(IF(7-$F$40=0, (VLOOKUP(3,Tablas!$A$147:$G$149,4,TRUE)), (IF(7-$F$40=1, (VLOOKUP(3,Tablas!$A$147:$G$149,4,TRUE)), (IF(7-$F$40=2, (VLOOKUP(3,Tablas!$A$147:$G$149,4,TRUE)), (IF(7-$F$40=3, (VLOOKUP(3,Tablas!$A$147:$G$149,4,TRUE)), (IF(7-$F$40=4, (VLOOKUP(3,Tablas!$A$147:$G$149,4,TRUE)), (VLOOKUP(3,Tablas!$A$147:$G$149,4,TRUE)))))))))))), (IF($F$38=3,(IF(3-$F$40=0,0, (IF(3-$F$40=1,(VLOOKUP(1,Tablas!$A$147:$G$149,4,TRUE)), (IF(3-$F$40=2, (VLOOKUP(2,Tablas!$A$147:$G$149,4,TRUE)), (VLOOKUP(3,Tablas!$A$147:$G$149,4,TRUE)))))))), (IF($F$38=2,(IF(2-$F$40=0, 0, (IF(2-$F$40=1,(VLOOKUP(1,Tablas!$A$147:$G$149,4,TRUE)), (IF(2-$F$40=2, (VLOOKUP(2,Tablas!$A$147:$G$149,4,TRUE)), 0)))))), (IF($F$38=1,(IF(1-$F$40=0, 0, (IF(1-$F$40=1,(VLOOKUP(1,Tablas!$A$147:$G$149,4,TRUE)),0)))),0))))))))))))))))))) -> 237.44 | I86: =IF($F$36=1, (IF($F$38=0, 0, (IF($F$40>$F$38, (VLOOKUP($F$38,Tablas!$A$147:$G$149,5,TRUE)), (IF($F$38>4,(IF($F$40=0, (VLOOKUP(3,Tablas!$A$147:$G$149,5,TRUE)), (IF($F$40=1, (VLOOKUP(3,Tablas!$A$147:$G$149,5,TRUE)), (IF($F$40=2, (VLOOKUP(3,Tablas!$A$147:$G$149,5,TRUE)), (VLOOKUP(3,Tablas!$A$147:$G$149,5,TRUE)))))))), (IF($F$38=4,(IF(4-$F$40=0,(VLOOKUP(2,Tablas!$A$147:$G$149,5,TRUE)), (IF(4-$F$40=1,(VLOOKUP(2,Tablas!$A$147:$G$149,5,TRUE)), (IF(4-$F$40=2, (VLOOKUP(2,Tablas!$A$147:$G$149,5,TRUE)), (VLOOKUP(3,Tablas!$A$147:$G$149,5,TRUE)))))))), (IF($F$38=3,(IF(3-$F$40=0,(VLOOKUP(1,Tablas!$A$147:$G$149,5,TRUE)), (IF(3-$F$40=1,(VLOOKUP(1,Tablas!$A$147:$G$149,5,TRUE)), (IF(3-$F$40=2, (VLOOKUP(2,Tablas!$A$147:$G$149,5,TRUE)), (VLOOKUP(3,Tablas!$A$147:$G$149,5,TRUE)))))))), (IF($F$38=2,(IF(2-$F$40=0, 0, (IF(2-$F$40=1,(VLOOKUP(1,Tablas!$A$147:$G$149,5,TRUE)), (IF(2-$F$40=2, (VLOOKUP(2,Tablas!$A$147:$G$149,5,TRUE)), 0)))))), (IF($F$38=1,(IF(1-$F$40=0, 0, (IF(1-$F$40=1,(VLOOKUP(1,Tablas!$A$147:$G$149,5,TRUE)),0)))),0)))))))))))))), (IF($F$38=0, 0, (IF($F$40>$F$38, (VLOOKUP($F$38,Tablas!$A$147:$G$149,5,TRUE)), (IF($F$38=4,(IF(4-$F$40=0, 0, (IF(4-$F$40=1, (VLOOKUP(1,Tablas!$A$147:$G$149,5,TRUE)), (IF(4-$F$40=2, (VLOOKUP(2,Tablas!$A$147:$G$149,5,TRUE)), (IF(4-$F$40=3, (VLOOKUP(3,Tablas!$A$147:$G$149,5,TRUE)), (IF(4-$F$40=4, (VLOOKUP(3,Tablas!$A$147:$G$149,5,TRUE)), 0)))))))))), (IF($F$38=5,(IF(5-$F$40=0, (VLOOKUP(1,Tablas!$A$147:$G$149,5,TRUE)), (IF(5-$F$40=1, (VLOOKUP(1,Tablas!$A$147:$G$149,5,TRUE)), (IF(5-$F$40=2, (VLOOKUP(2,Tablas!$A$147:$G$149,5,TRUE)), (IF(5-$F$40=3, (VLOOKUP(3,Tablas!$A$147:$G$149,5,TRUE)), (IF(5-$F$40=4, (VLOOKUP(3,Tablas!$A$147:$G$149,5,TRUE)), (VLOOKUP(3,Tablas!$A$147:$G$149,5,TRUE)))))))))))), (IF($F$38=6,(IF(6-$F$40=0, (VLOOKUP(2,Tablas!$A$147:$G$149,5,TRUE)), (IF(6-$F$40=1, (VLOOKUP(2,Tablas!$A$147:$G$149,5,TRUE)), (IF(6-$F$40=2, (VLOOKUP(2,Tablas!$A$147:$G$149,5,TRUE)), (IF(6-$F$40=3, (VLOOKUP(3,Tablas!$A$147:$G$149,5,TRUE)), (IF(6-$F$40=4, (VLOOKUP(3,Tablas!$A$147:$G$149,5,TRUE)), (VLOOKUP(3,Tablas!$A$147:$G$149,5,TRUE)))))))))))), (IF($F$38>6,(IF(7-$F$40=0, (VLOOKUP(3,Tablas!$A$147:$G$149,5,TRUE)), (IF(7-$F$40=1, (VLOOKUP(3,Tablas!$A$147:$G$149,5,TRUE)), (IF(7-$F$40=2, (VLOOKUP(3,Tablas!$A$147:$G$149,5,TRUE)), (IF(7-$F$40=3, (VLOOKUP(3,Tablas!$A$147:$G$149,5,TRUE)), (IF(7-$F$40=4, (VLOOKUP(3,Tablas!$A$147:$G$149,5,TRUE)), (VLOOKUP(3,Tablas!$A$147:$G$149,5,TRUE)))))))))))), (IF($F$38=3,(IF(3-$F$40=0,0, (IF(3-$F$40=1,(VLOOKUP(1,Tablas!$A$147:$G$149,5,TRUE)), (IF(3-$F$40=2, (VLOOKUP(2,Tablas!$A$147:$G$149,5,TRUE)), (VLOOKUP(3,Tablas!$A$147:$G$149,5,TRUE)))))))), (IF($F$38=2,(IF(2-$F$40=0, 0, (IF(2-$F$40=1,(VLOOKUP(1,Tablas!$A$147:$G$149,5,TRUE)), (IF(2-$F$40=2, (VLOOKUP(2,Tablas!$A$147:$G$149,5,TRUE)), 0)))))), (IF($F$38=1,(IF(1-$F$40=0, 0, (IF(1-$F$40=1,(VLOOKUP(1,Tablas!$A$147:$G$149,5,TRUE)),0)))),0))))))))))))))))))) -> 201.1333333 | J86: =IF($F$36=1, (IF($F$38=0, 0, (IF($F$40>$F$38, (VLOOKUP($F$38,Tablas!$A$147:$G$149,6,TRUE)), (IF($F$38>4,(IF($F$40=0, (VLOOKUP(3,Tablas!$A$147:$G$149,6,TRUE)), (IF($F$40=1, (VLOOKUP(3,Tablas!$A$147:$G$149,6,TRUE)), (IF($F$40=2, (VLOOKUP(3,Tablas!$A$147:$G$149,6,TRUE)), (VLOOKUP(3,Tablas!$A$147:$G$149,6,TRUE)))))))), (IF($F$38=4,(IF(4-$F$40=0,(VLOOKUP(2,Tablas!$A$147:$G$149,6,TRUE)), (IF(4-$F$40=1,(VLOOKUP(2,Tablas!$A$147:$G$149,6,TRUE)), (IF(4-$F$40=2, (VLOOKUP(2,Tablas!$A$147:$G$149,6,TRUE)), (VLOOKUP(3,Tablas!$A$147:$G$149,6,TRUE)))))))), (IF($F$38=3,(IF(3-$F$40=0,(VLOOKUP(1,Tablas!$A$147:$G$149,6,TRUE)), (IF(3-$F$40=1,(VLOOKUP(1,Tablas!$A$147:$G$149,6,TRUE)), (IF(3-$F$40=2, (VLOOKUP(2,Tablas!$A$147:$G$149,6,TRUE)), (VLOOKUP(3,Tablas!$A$147:$G$149,6,TRUE)))))))), (IF($F$38=2,(IF(2-$F$40=0, 0, (IF(2-$F$40=1,(VLOOKUP(1,Tablas!$A$147:$G$149,6,TRUE)), (IF(2-$F$40=2, (VLOOKUP(2,Tablas!$A$147:$G$149,6,TRUE)), 0)))))), (IF($F$38=1,(IF(1-$F$40=0, 0, (IF(1-$F$40=1,(VLOOKUP(1,Tablas!$A$147:$G$149,6,TRUE)),0)))),0)))))))))))))), (IF($F$38=0, 0, (IF($F$40>$F$38, (VLOOKUP($F$38,Tablas!$A$147:$G$149,6,TRUE)), (IF($F$38=4,(IF(4-$F$40=0, 0, (IF(4-$F$40=1, (VLOOKUP(1,Tablas!$A$147:$G$149,6,TRUE)), (IF(4-$F$40=2, (VLOOKUP(2,Tablas!$A$147:$G$149,6,TRUE)), (IF(4-$F$40=3, (VLOOKUP(3,Tablas!$A$147:$G$149,6,TRUE)), (IF(4-$F$40=4, (VLOOKUP(3,Tablas!$A$147:$G$149,6,TRUE)), 0)))))))))), (IF($F$38=5,(IF(5-$F$40=0, (VLOOKUP(1,Tablas!$A$147:$G$149,6,TRUE)), (IF(5-$F$40=1, (VLOOKUP(1,Tablas!$A$147:$G$149,6,TRUE)), (IF(5-$F$40=2, (VLOOKUP(2,Tablas!$A$147:$G$149,6,TRUE)), (IF(5-$F$40=3, (VLOOKUP(3,Tablas!$A$147:$G$149,6,TRUE)), (IF(5-$F$40=4, (VLOOKUP(3,Tablas!$A$147:$G$149,6,TRUE)), (VLOOKUP(3,Tablas!$A$147:$G$149,6,TRUE)))))))))))), (IF($F$38=6,(IF(6-$F$40=0, (VLOOKUP(2,Tablas!$A$147:$G$149,6,TRUE)), (IF(6-$F$40=1, (VLOOKUP(2,Tablas!$A$147:$G$149,6,TRUE)), (IF(6-$F$40=2, (VLOOKUP(2,Tablas!$A$147:$G$149,6,TRUE)), (IF(6-$F$40=3, (VLOOKUP(3,Tablas!$A$147:$G$149,6,TRUE)), (IF(6-$F$40=4, (VLOOKUP(3,Tablas!$A$147:$G$149,6,TRUE)), (VLOOKUP(3,Tablas!$A$147:$G$149,6,TRUE)))))))))))), (IF($F$38>6,(IF(7-$F$40=0, (VLOOKUP(3,Tablas!$A$147:$G$149,6,TRUE)), (IF(7-$F$40=1, (VLOOKUP(3,Tablas!$A$147:$G$149,6,TRUE)), (IF(7-$F$40=2, (VLOOKUP(3,Tablas!$A$147:$G$149,6,TRUE)), (IF(7-$F$40=3, (VLOOKUP(3,Tablas!$A$147:$G$149,6,TRUE)), (IF(7-$F$40=4, (VLOOKUP(3,Tablas!$A$147:$G$149,6,TRUE)), (VLOOKUP(3,Tablas!$A$147:$G$149,6,TRUE)))))))))))), (IF($F$38=3,(IF(3-$F$40=0,0, (IF(3-$F$40=1,(VLOOKUP(1,Tablas!$A$147:$G$149,6,TRUE)), (IF(3-$F$40=2, (VLOOKUP(2,Tablas!$A$147:$G$149,6,TRUE)), (VLOOKUP(3,Tablas!$A$147:$G$149,6,TRUE)))))))), (IF($F$38=2,(IF(2-$F$40=0, 0, (IF(2-$F$40=1,(VLOOKUP(1,Tablas!$A$147:$G$149,6,TRUE)), (IF(2-$F$40=2, (VLOOKUP(2,Tablas!$A$147:$G$149,6,TRUE)), 0)))))), (IF($F$38=1,(IF(1-$F$40=0, 0, (IF(1-$F$40=1,(VLOOKUP(1,Tablas!$A$147:$G$149,6,TRUE)),0)))),0))))))))))))))))))) -> 174.44 | K86: =IF($F$36=1, (IF($F$38=0, 0, (IF($F$40>$F$38, (VLOOKUP($F$38,Tablas!$A$147:$G$149,7,TRUE)), (IF($F$38>4,(IF($F$40=0, (VLOOKUP(3,Tablas!$A$147:$G$149,7,TRUE)), (IF($F$40=1, (VLOOKUP(3,Tablas!$A$147:$G$149,7,TRUE)), (IF($F$40=2, (VLOOKUP(3,Tablas!$A$147:$G$149,7,TRUE)), (VLOOKUP(3,Tablas!$A$147:$G$149,7,TRUE)))))))), (IF($F$38=4,(IF(4-$F$40=0,(VLOOKUP(2,Tablas!$A$147:$G$149,7,TRUE)), (IF(4-$F$40=1,(VLOOKUP(2,Tablas!$A$147:$G$149,7,TRUE)), (IF(4-$F$40=2, (VLOOKUP(2,Tablas!$A$147:$G$149,7,TRUE)), (VLOOKUP(3,Tablas!$A$147:$G$149,7,TRUE)))))))), (IF($F$38=3,(IF(3-$F$40=0,(VLOOKUP(1,Tablas!$A$147:$G$149,7,TRUE)), (IF(3-$F$40=1,(VLOOKUP(1,Tablas!$A$147:$G$149,7,TRUE)), (IF(3-$F$40=2, (VLOOKUP(2,Tablas!$A$147:$G$149,7,TRUE)), (VLOOKUP(3,Tablas!$A$147:$G$149,7,TRUE)))))))), (IF($F$38=2,(IF(2-$F$40=0, 0, (IF(2-$F$40=1,(VLOOKUP(1,Tablas!$A$147:$G$149,7,TRUE)), (IF(2-$F$40=2, (VLOOKUP(2,Tablas!$A$147:$G$149,7,TRUE)), 0)))))), (IF($F$38=1,(IF(1-$F$40=0, 0, (IF(1-$F$40=1,(VLOOKUP(1,Tablas!$A$147:$G$149,7,TRUE)),0)))),0)))))))))))))), (IF($F$38=0, 0, (IF($F$40>$F$38, (VLOOKUP($F$38,Tablas!$A$147:$G$149,7,TRUE)), (IF($F$38=4,(IF(4-$F$40=0, 0, (IF(4-$F$40=1, (VLOOKUP(1,Tablas!$A$147:$G$149,7,TRUE)), (IF(4-$F$40=2, (VLOOKUP(2,Tablas!$A$147:$G$149,7,TRUE)), (IF(4-$F$40=3, (VLOOKUP(3,Tablas!$A$147:$G$149,7,TRUE)), (IF(4-$F$40=4, (VLOOKUP(3,Tablas!$A$147:$G$149,7,TRUE)), 0)))))))))), (IF($F$38=5,(IF(5-$F$40=0, (VLOOKUP(1,Tablas!$A$147:$G$149,7,TRUE)), (IF(5-$F$40=1, (VLOOKUP(1,Tablas!$A$147:$G$149,7,TRUE)), (IF(5-$F$40=2, (VLOOKUP(2,Tablas!$A$147:$G$149,7,TRUE)), (IF(5-$F$40=3, (VLOOKUP(3,Tablas!$A$147:$G$149,7,TRUE)), (IF(5-$F$40=4, (VLOOKUP(3,Tablas!$A$147:$G$149,7,TRUE)), (VLOOKUP(3,Tablas!$A$147:$G$149,7,TRUE)))))))))))), (IF($F$38=6,(IF(6-$F$40=0, (VLOOKUP(2,Tablas!$A$147:$G$149,7,TRUE)), (IF(6-$F$40=1, (VLOOKUP(2,Tablas!$A$147:$G$149,7,TRUE)), (IF(6-$F$40=2, (VLOOKUP(2,Tablas!$A$147:$G$149,7,TRUE)), (IF(6-$F$40=3, (VLOOKUP(3,Tablas!$A$147:$G$149,7,TRUE)), (IF(6-$F$40=4, (VLOOKUP(3,Tablas!$A$147:$G$149,7,TRUE)), (VLOOKUP(3,Tablas!$A$147:$G$149,7,TRUE)))))))))))), (IF($F$38>6,(IF(7-$F$40=0, (VLOOKUP(3,Tablas!$A$147:$G$149,7,TRUE)),a (IF(7-$F$40=1, (VLOOKUP(3,Tablas!$A$147:$G$149,7,TRUE)), (IF(7-$F$40=2, (VLOOKUP(3,Tablas!$A$147:$G$149,7,TRUE)), (IF(7-$F$40=3, (VLOOKUP(3,Tablas!$A$147:$G$149,7,TRUE)), (IF(7-$F$40=4, (VLOOKUP(3,Tablas!$A$147:$G$149,7,TRUE)), (VLOOKUP(3,Tablas!$A$147:$G$149,7,TRUE)))))))))))), (IF($F$38=3,(IF(3-$F$40=0,0, (IF(3-$F$40=1,(VLOOKUP(1,Tablas!$A$147:$G$149,7,TRUE)), (IF(3-$F$40=2, (VLOOKUP(2,Tablas!$A$147:$G$149,7,TRUE)), (VLOOKUP(3,Tablas!$A$147:$G$149,7,TRUE)))))))), (IF($F$38=2,(IF(2-$F$40=0, 0, (IF(2-$F$40=1,(VLOOKUP(1,Tablas!$A$147:$G$149,7,TRUE)), (IF(2-$F$40=2, (VLOOKUP(2,Tablas!$A$147:$G$149,7,TRUE)), 0)))))), (IF($F$38=1,(IF(1-$F$40=0, 0, (IF(1-$F$40=1,(VLOOKUP(1,Tablas!$A$147:$G$149,7,TRUE)),0)))),0))))))))))))))))))) -> 135.3333333
E87: Total de Prima neta | G87: =SUM(G84:G86) -> 2099.626667 | H87: =SUM(H84:H86) -> 1840.533333 | I87: =SUM(I84:I86) -> 1520.866667 | J87: =SUM(J84:J86) -> 1318.706667 | K87: =SUM(K84:K86) -> 1022.933333
E88: Descuento por variante con coaseguro fuera del país de residencia | G88: =IF('INGRESO DE DATOS'!$H$27,G87*-25%,0) -> 0 | H88: =IF('INGRESO DE DATOS'!$H$27,H87*-25%,0) -> 0 | I88: =IF('INGRESO DE DATOS'!$H$27,I87*-25%,0) -> 0 | J88: =IF('INGRESO DE DATOS'!$H$27,J87*-25%,0) -> 0 | K88: =IF('INGRESO DE DATOS'!$H$27,K87*-25%,0) -> 0
E89: Tarifa administrativa anual | G89: 75 | H89: 75 | I89: 75 | J89: 75 | K89: 75
E90: IVA (12%) | G90: =(G87+G89)*0% -> 0 | H90: =(H87+H89)*0% -> 0 | I90: 0 | J90: 0 | K90: 0
E91: TOTAL de primera cuota | G91: =SUM(G87:G90) -> 2174.626667 | H91: =SUM(H87:H90) -> 1915.533333 | I91: =SUM(I87:I90) -> 1595.866667 | J91: =SUM(J87:J90) -> 1393.706667 | K91: =SUM(K87:K90) -> 1097.933333
E92: Costo de tarifa mensual 2 a 12 | G92: =SUM(G87:G88) -> 2099.626667 | H92: =SUM(H87:H88) -> 1840.533333 | I92: 1520.866667 | J92: 1318.706667 | K92: 1022.933333
E93: TOTAL ANUAL | G93: =G91+(G92*11) -> 25270.52 | H93: =H91+(H92*11) -> 22161.4 | I93: =I91+(I92*11) -> 18325.4 | J93: =J91+(J92*11) -> 15899.48 | K93: =K91+(K92*11) -> 12350.2
E94: Ahorros en tarifas de prima para niños | G94: =IF($F$36=1,IF($F$38=0,0,IF($F$40=0,0,IF($F$40=1,(VLOOKUP(1,Tablas!$A$147:$G$149,3,TRUE)),(VLOOKUP(2,Tablas!$A$147:$G$149,3,TRUE))))), IF($F$38=0,0,IF($F$40=0,0,IF($F$40=1,(VLOOKUP(1,Tablas!$A$147:$G$149,3,TRUE)),IF($F$40=2,(VLOOKUP(2,Tablas!$A$147:$G$149,3,TRUE)), (VLOOKUP(3,Tablas!$A$147:$G$149,3,TRUE))))))) -> 270.76 | H94: =IF($F$36=1,IF($F$38=0,0,IF($F$40=0,0,IF($F$40=1,(VLOOKUP(1,Tablas!$A$147:$G$149,4,TRUE)),(VLOOKUP(2,Tablas!$A$147:$G$149,4,TRUE))))), IF($F$38=0,0,IF($F$40=0,0,IF($F$40=1,(VLOOKUP(1,Tablas!$A$147:$G$149,4,TRUE)),IF($F$40=2,(VLOOKUP(2,Tablas!$A$147:$G$149,4,TRUE)), (VLOOKUP(3,Tablas!$A$147:$G$149,4,TRUE))))))) -> 237.44 | I94: =IF($F$36=1,IF($F$38=0,0,IF($F$40=0,0,IF($F$40=1,(VLOOKUP(1,Tablas!$A$147:$G$149,5,TRUE)),(VLOOKUP(2,Tablas!$A$147:$G$149,5,TRUE))))), IF($F$38=0,0,IF($F$40=0,0,IF($F$40=1,(VLOOKUP(1,Tablas!$A$147:$G$149,5,TRUE)),IF($F$40=2,(VLOOKUP(2,Tablas!$A$147:$G$149,5,TRUE)), (VLOOKUP(3,Tablas!$A$147:$G$149,5,TRUE))))))) -> 201.1333333 | J94: =IF($F$36=1,IF($F$38=0,0,IF($F$40=0,0,IF($F$40=1,(VLOOKUP(1,Tablas!$A$147:$G$149,6,TRUE)),(VLOOKUP(2,Tablas!$A$147:$G$149,6,TRUE))))), IF($F$38=0,0,IF($F$40=0,0,IF($F$40=1,(VLOOKUP(1,Tablas!$A$147:$G$149,6,TRUE)),IF($F$40=2,(VLOOKUP(2,Tablas!$A$147:$G$149,6,TRUE)), (VLOOKUP(3,Tablas!$A$147:$G$149,6,TRUE))))))) -> 174.44 | K94: =IF($F$36=1,IF($F$38=0,0,IF($F$40=0,0,IF($F$40=1,(VLOOKUP(1,Tablas!$A$147:$G$149,7,TRUE)),(VLOOKUP(2,Tablas!$A$147:$G$149,7,TRUE))))), IF($F$38=0,0,IF($F$40=0,0,IF($F$40=1,(VLOOKUP(1,Tablas!$A$147:$G$149,7,TRUE)),IF($F$40=2,(VLOOKUP(2,Tablas!$A$147:$G$149,7,TRUE)), (VLOOKUP(3,Tablas!$A$147:$G$149,7,TRUE))))))) -> 135.3333333
E96: Tarifas en US $ - Efectivas a partir del 1ro de enero de 2021
E97: Este presupuesto solamente tiene carácter informativo y en ningún momento expresa compromiso legal para suministrarle cobertura de seguro. La emisión de una póliza de seguro Bupa está sujeta a todas las evaluaciones de riesgo por parte de Bupa y a la recepción de todos los pagos de prima requeridos.

Sheet Global Premier
A32: GLOBAL PREMIER HEALTH PLAN | D32: Nombre del Asegurado Titular | F32: =+'INGRESO DE DATOS'!$D$21 -> NOMBRE COMPLETO
D34: Número de adultos en la póliza | F34: =+'INGRESO DE DATOS'!$D$23 -> 2 | H34: Edad del Asegurado Titular | I34: =+'INGRESO DE DATOS'!$D$25 -> 32
D36: Número de niños en la póliza | F36: =+'INGRESO DE DATOS'!$H$23 -> 2 | H36: Edad del/la conyuge | I36: =+'INGRESO DE DATOS'!$H$25 -> 46
F38: Fecha de la cotización: | H38: =NOW() -> 2021-03-03T12:19:30.890
H39: FALSE
E40: Deducibles | G40: PLAN 1 | H40: PLAN 2 | I40: PLAN 3 | J40: PLAN 4
E41: En el país de residencia | G41: 250 | H41: 2000 | I41: 5000 | J41: 10000
E42: Fuera del país de residencia | G42: 5000 | H42: 2000 | I42: 5000 | J42: 10000
E44: Tarifas anuales
E45: Prima para Asegurado Titular | G45: =VLOOKUP($I$34,Tablas!$A$155:$G$221,3,TRUE) -> 5338 | H45: =VLOOKUP($I$34,Tablas!$A$155:$G$221,4,TRUE) -> 4843 | I45: =VLOOKUP($I$34,Tablas!$A$155:$G$221,5,TRUE) -> 3589 | J45: =VLOOKUP($I$34,Tablas!$A$155:$G$221,6,TRUE) -> 2670
E46: Prima para conyuge | G46: =IF($F$34=1,0,(VLOOKUP($I$36,Tablas!$A$155:$G$221,3,TRUE))) -> 7472 | H46: =IF($F$34=1,0,(VLOOKUP($I$36,Tablas!$A$155:$G$221,4,TRUE))) -> 6782 | I46: =IF($F$34=1,0,(VLOOKUP($I$36,Tablas!$A$155:$G$221,5,TRUE))) -> 4910 | J46: =IF($F$34=1,0,(VLOOKUP($I$36,Tablas!$A$155:$G$221,6,TRUE))) -> 3652
E47: Prima para hijo (s) | G47: =IF($F$36=0,0,(VLOOKUP($F$36,Tablas!$A$222:$G$224,3,TRUE))) -> 3225 | H47: =IF($F$36=0,0,(VLOOKUP($F$36,Tablas!$A$222:$G$224,4,TRUE))) -> 2926 | I47: =IF($F$36=0,0,(VLOOKUP($F$36,Tablas!$A$222:$G$224,5,TRUE))) -> 2246 | J47: =IF($F$36=0,0,(VLOOKUP($F$36,Tablas!$A$222:$G$224,6,TRUE))) -> 1671
E48: Total de Prima neta | G48: =SUM(G45:G47) -> 16035 | H48: =SUM(H45:H47) -> 14551 | I48: 10745 | J48: =SUM(J45:J47) -> 7993
E49: Descuento por variante con coaseguro fuera del país de residencia | G49: =IF('INGRESO DE DATOS'!$H$27,G48*-25%,0) -> 0 | H49: =IF('INGRESO DE DATOS'!$H$27,H48*-25%,0) -> 0 | I49: =IF('INGRESO DE DATOS'!$H$27,I48*-25%,0) -> 0 | J49: =IF('INGRESO DE DATOS'!$H$27,J48*-25%,0) -> 0
E50: Tarifa administrativa anual | G50: 75 | H50: 75 | I50: 75 | J50: 75
E51: IVA (12%) | G51: =(G48+G50)*0% -> 0 | H51: =(H48+H50)*0% -> 0 | I51: 0 | J51: 0
E52: TOTAL ANUAL | G52: =SUM(G48:G51) -> 16110 | H52: =SUM(H48:H51) -> 14626 | I52: =SUM(I48:I51) -> 10820 | J52: =SUM(J48:J51) -> 8068
E54: Tarifas semi anuales
E55: Prima para Asegurado Titular | G55: =VLOOKUP($I$34,Tablas!$A$530:$G$596,3,TRUE) -> 2829.14 | H55: =VLOOKUP($I$34,Tablas!$A$530:$G$596,4,TRUE) -> 2566.79 | I55: =VLOOKUP($I$34,Tablas!$A$530:$G$596,5,TRUE) -> 1902.17 | J55: =VLOOKUP($I$34,Tablas!$A$530:$G$596,6,TRUE) -> 1415.1
E56: Prima para conyuge | G56: =IF($F$34=1,0,(VLOOKUP($I$36,Tablas!$A$530:$G$596,3,TRUE))) -> 3960.16 | H56: =IF($F$34=1,0,(VLOOKUP($I$36,Tablas!$A$530:$G$596,4,TRUE))) -> 3594.46 | I56: =IF($F$34=1,0,(VLOOKUP($I$36,Tablas!$A$530:$G$596,5,TRUE))) -> 2602.3 | J56: =IF($F$34=1,0,(VLOOKUP($I$36,Tablas!$A$530:$G$596,6,TRUE))) -> 1935.56
E57: Prima para hijo (s) | G57: =IF($F$36=0,0,(VLOOKUP($F$36,Tablas!$A$597:$G$599,3,TRUE))) -> 1709.25 | H57: =IF($F$36=0,0,(VLOOKUP($F$36,Tablas!$A$597:$G$599,4,TRUE))) -> 1550.78 | I57: =IF($F$36=0,0,(VLOOKUP($F$36,Tablas!$A$597:$G$599,5,TRUE))) -> 1190.38 | J57: =IF($F$36=0,0,(VLOOKUP($F$36,Tablas!$A$597:$G$599,6,TRUE))) -> 885.63
E58: Total de Prima neta | G58: =SUM(G55:G57) -> 8498.55 | H58: =SUM(H55:H57) -> 7712.03 | I58: =SUM(I55:I57) -> 5694.85 | J58: =SUM(J55:J57) -> 4236.29
E59: Descuento por variante con coaseguro fuera del país de residencia | G59: =IF('INGRESO DE DATOS'!$H$27,G58*-25%,0) -> 0 | H59: =IF('INGRESO DE DATOS'!$H$27,H58*-25%,0) -> 0 | I59: =IF('INGRESO DE DATOS'!$H$27,I58*-25%,0) -> 0 | J59: =IF('INGRESO DE DATOS'!$H$27,J58*-25%,0) -> 0
E60: Tarifa administrativa anual | G60: 75 | H60: 75 | I60: 75 | J60: 75
E61: IVA (12%) | G61: =(G58+G60)*0% -> 0 | H61: =(H58+H60)*0% -> 0 | I61: 0 | J61: 0
E62: TOTAL de primera cuota | G62: =SUM(G58:G61) -> 8573.55 | H62: =SUM(H58:H61) -> 7787.03 | I62: =SUM(I58:I61) -> 5769.85 | J62: =SUM(J58:J61) -> 4311.29
E63: Costo de segunda cuota | G63: =SUM(G58:G59) -> 8498.55 | H63: =SUM(H58:H59) -> 7712.03 | I63: 5694.85 | J63: 4236.29
E64: TOTAL ANUAL | G64: =G62+G63 -> 17072.1 | H64: =H62+H63 -> 15499.06 | I64: 11464.7 | J64: =J62+J63 -> 8547.58
E66: Tarifas trimestrales
E67: Prima para Asegurado Titular | G67: =VLOOKUP($I$34,Tablas!$A$755:$G$821,3,TRUE) -> 1467.95 | H67: =VLOOKUP($I$34,Tablas!$A$755:$G$821,4,TRUE) -> 1331.825 | I67: =VLOOKUP($I$34,Tablas!$A$755:$G$821,5,TRUE) -> 986.975 | J67: =VLOOKUP($I$34,Tablas!$A$755:$G$821,6,TRUE) -> 734.25
E68: Prima para conyuge | G68: =IF($F$34=1,0,(VLOOKUP($I$36,Tablas!$A$755:$G$821,3,TRUE))) -> 2054.8 | H68: =IF($F$34=1,0,(VLOOKUP($I$36,Tablas!$A$755:$G$821,4,TRUE))) -> 1865.05 | I68: =IF($F$34=1,0,(VLOOKUP($I$36,Tablas!$A$755:$G$821,5,TRUE))) -> 1350.25 | J68: =IF($F$34=1,0,(VLOOKUP($I$36,Tablas!$A$755:$G$821,6,TRUE))) -> 1004.3
E69: Prima para hijo (s) | G69: =IF($F$36=0,0,(VLOOKUP($F$36,Tablas!$A$822:$G$824,3,TRUE))) -> 886.875 | H69: =IF($F$36=0,0,(VLOOKUP($F$36,Tablas!$A$822:$G$824,4,TRUE))) -> 804.65 | I69: =IF($F$36=0,0,(VLOOKUP($F$36,Tablas!$A$822:$G$824,5,TRUE))) -> 617.65 | J69: =IF($F$36=0,0,(VLOOKUP($F$36,Tablas!$A$822:$G$824,6,TRUE))) -> 459.525
E70: Total de Prima neta | G70: =SUM(G67:G69) -> 4409.625 | H70: =SUM(H67:H69) -> 4001.525 | I70: =SUM(I67:I69) -> 2954.875 | J70: =SUM(J67:J69) -> 2198.075
E71: Descuento por variante con coaseguro fuera del país de residencia | G71: =IF('INGRESO DE DATOS'!$H$27,G70*-25%,0) -> 0 | H71: =IF('INGRESO DE DATOS'!$H$27,H70*-25%,0) -> 0 | I71: =IF('INGRESO DE DATOS'!$H$27,I70*-25%,0) -> 0 | J71: =IF('INGRESO DE DATOS'!$H$27,J70*-25%,0) -> 0
E72: Tarifa administrativa anual | G72: 75 | H72: 75 | I72: 75 | J72: 75
E73: IVA (12%) | G73: =(G70+G72)*0% -> 0 | H73: =(H70+H72)*0% -> 0 | I73: 0 | J73: 0
E74: TOTAL de primera cuota | G74: =SUM(G70:G73) -> 4484.625 | H74: =SUM(H70:H73) -> 4076.525 | I74: 3029.875 | J74: 2273.075
E75: Costo de tarifa trimestral 2 a 4 | G75: =SUM(G70:G71) -> 4409.625 | H75: =SUM(H70:H71) -> 4001.525 | I75: 2954.875 | J75: 2198.075
E76: TOTAL ANUAL | G76: =G74+(G75*3) -> 17713.5 | H76: =H74+(H75*3) -> 16081.1 | I76: 11894.5 | J76: =J74+(J75*3) -> 8867.3
E78: Tarifas mensuales
E79: Prima para Asegurado Titular | G79: =VLOOKUP($I$34,Tablas!$A$229:$G$295,3,TRUE) -> 498.2133333 | H79: =VLOOKUP($I$34,Tablas!$A$229:$G$295,4,TRUE) -> 452.0133333 | I79: =VLOOKUP($I$34,Tablas!$A$229:$G$295,5,TRUE) -> 334.9733333 | J79: =VLOOKUP($I$34,Tablas!$A$229:$G$295,6,TRUE) -> 249.2
E80: Prima para conyuge | G80: =IF($F$34=1,0,(VLOOKUP($I$36,Tablas!$A$229:$G$295,3,TRUE))) -> 697.3866667 | H80: =IF($F$34=1,0,(VLOOKUP($I$36,Tablas!$A$229:$G$295,4,TRUE))) -> 632.9866667 | I80: =IF($F$34=1,0,(VLOOKUP($I$36,Tablas!$A$229:$G$295,5,TRUE))) -> 458.2666667 | J80: =IF($F$34=1,0,(VLOOKUP($I$36,Tablas!$A$229:$G$295,6,TRUE))) -> 340.8533333
E81: Prima para hijo (s) | G81: =IF($F$36=0,0,(VLOOKUP($F$36,Tablas!$A$296:$G$298,3,TRUE))) -> 301 | H81: =IF($F$36=0,0,(VLOOKUP($F$36,Tablas!$A$296:$G$298,4,TRUE))) -> 273.0933333 | I81: =IF($F$36=0,0,(VLOOKUP($F$36,Tablas!$A$296:$G$298,5,TRUE))) -> 209.6266667 | J81: =IF($F$36=0,0,(VLOOKUP($F$36,Tablas!$A$296:$G$298,6,TRUE))) -> 155.96
E82: Total de Prima neta | G82: =SUM(G79:G81) -> 1496.6 | H82: =SUM(H79:H81) -> 1358.093333 | I82: =SUM(I79:I81) -> 1002.866667 | J82: =SUM(J79:J81) -> 746.0133333
E83: Descuento por variante con coaseguro fuera del país de residencia | G83: =IF('INGRESO DE DATOS'!$H$27,G82*-25%,0) -> 0 | H83: =IF('INGRESO DE DATOS'!$H$27,H82*-25%,0) -> 0 | I83: =IF('INGRESO DE DATOS'!$H$27,I82*-25%,0) -> 0 | J83: =IF('INGRESO DE DATOS'!$H$27,J82*-25%,0) -> 0
E84: Tarifa administrativa anual | G84: 75 | H84: 75 | I84: 75 | J84: 75
E85: IVA (12%) | G85: =(G82+G84)*0% -> 0 | H85: =(H82+H84)*0% -> 0 | I85: 0 | J85: 0
E86: TOTAL de primera cuota | G86: =SUM(G82:G85) -> 1571.6 | H86: =SUM(H82:H85) -> 1433.093333 | I86: =SUM(I82:I85) -> 1077.866667 | J86: =SUM(J82:J85) -> 821.0133333
E87: Costo de tarifa mensual 2 a 12 | G87: =SUM(G82:G83) -> 1496.6 | H87: =SUM(H82:H83) -> 1358.093333 | I87: 1002.866667 | J87: 746.0133333
E88: TOTAL ANUAL | G88: =G86+(G87*11) -> 18034.2 | H88: =H86+(H87*11) -> 16372.12 | I88: =I86+(I87*11) -> 12109.4 | J88: =J86+(J87*11) -> 9027.16
E90: Tarifas en US $ - Efectivas a partir del 1ro de enero de 2021
E91: Este presupuesto solamente tiene carácter informativo y en ningún momento expresa compromiso legal para suministrarle cobertura de seguro. La emisión de una póliza de seguro Bupa está sujeta a todas las evaluaciones de riesgo por parte de Bupa y a la recepción de todos los pagos de prima requeridos.

Sheet Global Select
A29: GLOBAL SELECT HEALTH PLAN | D29: Nombre del Asegurado Titular | F29: =+'INGRESO DE DATOS'!$D$21 -> NOMBRE COMPLETO
D31: Número de adultos en la póliza | F31: =+'INGRESO DE DATOS'!$D$23 -> 2 | H31: Edad del Asegurado Titular | I31: =+'INGRESO DE DATOS'!$D$25 -> 32
H33: Edad del/la conyuge | I33: =+'INGRESO DE DATOS'!$H$25 -> 46
D34: Número de niños en la póliza | F34: =+'INGRESO DE DATOS'!$H$23 -> 2
F35: Fecha de la cotización: | H35: =NOW() -> 2021-03-03T12:19:30.890
H36: FALSE
E37: Deducibles | G37: PLAN 1 | H37: PLAN 2 | I37: PLAN 3 | J37: PLAN 4
E38: En el país de residencia | G38: 250 | H38: 2000 | I38: 5000 | J38: 10000
E39: Fuera del país de residencia | G39: 5000 | H39: 2000 | I39: 5000 | J39: 10000
E41: Tarifas anuales
E42: Prima para Asegurado Titular | G42: =VLOOKUP($I$31,Tablas!$A$305:$G$371,3,TRUE) -> 3721 | H42: =VLOOKUP($I$31,Tablas!$A$305:$G$371,4,TRUE) -> 3571 | I42: =VLOOKUP($I$31,Tablas!$A$305:$G$371,5,TRUE) -> 2653 | J42: =VLOOKUP($I$31,Tablas!$A$305:$G$371,6,TRUE) -> 1974
E43: Prima para conyuge | G43: =IF($F$31=1,0,(VLOOKUP($I$33,Tablas!$A$305:$G$371,3,TRUE))) -> 5409 | H43: =IF($F$31=1,0,(VLOOKUP($I$33,Tablas!$A$305:$G$371,4,TRUE))) -> 5190 | I43: =IF($F$31=1,0,(VLOOKUP($I$33,Tablas!$A$305:$G$371,5,TRUE))) -> 3764 | J43: =IF($F$31=1,0,(VLOOKUP($I$33,Tablas!$A$305:$G$371,6,TRUE))) -> 2801
E44: Prima para hijo (s) | G44: =IF($F$34=0,0,(VLOOKUP($F$34,Tablas!$A$372:$G$374,3,TRUE))) -> 2428 | H44: =IF($F$34=0,0,(VLOOKUP($F$34,Tablas!$A$372:$G$374,4,TRUE))) -> 2330 | I44: =IF($F$34=0,0,(VLOOKUP($F$34,Tablas!$A$372:$G$374,5,TRUE))) -> 1802 | J44: =IF($F$34=0,0,(VLOOKUP($F$34,Tablas!$A$372:$G$374,6,TRUE))) -> 1341
E45: Total de Prima neta | G45: =SUM(G42:G44) -> 11558 | H45: =SUM(H42:H44) -> 11091 | I45: =SUM(I42:I44) -> 8219 | J45: =SUM(J42:J44) -> 6116
E46: Descuento por variante con coaseguro fuera del país de residencia | G46: =IF('INGRESO DE DATOS'!$H$27,G45*-25%,0) -> 0 | H46: =IF('INGRESO DE DATOS'!$H$27,H45*-25%,0) -> 0 | I46: =IF('INGRESO DE DATOS'!$H$27,I45*-25%,0) -> 0 | J46: =IF('INGRESO DE DATOS'!$H$27,J45*-25%,0) -> 0 | L46: s
E47: Tarifa administrativa anual | G47: 75 | H47: 75 | I47: 75 | J47: 75
E48: IVA (12%) | G48: =(G45+G47)*0% -> 0 | H48: =(H45+H47)*0% -> 0 | I48: =(I45+I47)*0% -> 0 | J48: =(J45+J47)*0% -> 0
E49: TOTAL ANUAL | G49: =SUM(G45:G48) -> 11633 | H49: =SUM(H45:H48) -> 11166 | I49: =SUM(I45:I48) -> 8294 | J49: =SUM(J45:J48) -> 6191
E51: Tarifas semi anuales
E52: Prima para Asegurado Titular | G52: =VLOOKUP($I$31,Tablas!$A$605:$G$671,3,TRUE) -> 1972.13 | H52: =VLOOKUP($I$31,Tablas!$A$605:$G$671,4,TRUE) -> 1892.63 | I52: =VLOOKUP($I$31,Tablas!$A$605:$G$671,5,TRUE) -> 1406.09 | J52: =VLOOKUP($I$31,Tablas!$A$605:$G$671,6,TRUE) -> 1046.22
E53: Prima para conyuge | G53: =IF($F$31=1,0,(VLOOKUP($I$33,Tablas!$A$605:$G$671,3,TRUE))) -> 2866.77 | H53: =IF($F$31=1,0,(VLOOKUP($I$33,Tablas!$A$605:$G$671,4,TRUE))) -> 2750.7 | I53: =IF($F$31=1,0,(VLOOKUP($I$33,Tablas!$A$605:$G$671,5,TRUE))) -> 1994.92 | J53: =IF($F$31=1,0,(VLOOKUP($I$33,Tablas!$A$605:$G$671,6,TRUE))) -> 1484.53
E54: Prima para hijo (s) | G54: =IF($F$34=0,0,(VLOOKUP($F$34,Tablas!$A$672:$G$674,3,TRUE))) -> 1286.84 | H54: =IF($F$34=0,0,(VLOOKUP($F$34,Tablas!$A$672:$G$674,4,TRUE))) -> 1234.9 | I54: =IF($F$34=0,0,(VLOOKUP($F$34,Tablas!$A$672:$G$674,5,TRUE))) -> 955.06 | J54: =IF($F$34=0,0,(VLOOKUP($F$34,Tablas!$A$672:$G$674,6,TRUE))) -> 710.73
E55: Total de Prima neta | G55: =SUM(G52:G54) -> 6125.74 | H55: =SUM(H52:H54) -> 5878.23 | I55: =SUM(I52:I54) -> 4356.07 | J55: =SUM(J52:J54) -> 3241.48
E56: Low options | G56: =IF('INGRESO DE DATOS'!$H$27,G55*-25%,0) -> 0 | H56: =IF('INGRESO DE DATOS'!$H$27,H55*-25%,0) -> 0 | I56: =IF('INGRESO DE DATOS'!$H$27,I55*-25%,0) -> 0 | J56: =IF('INGRESO DE DATOS'!$H$27,J55*-25%,0) -> 0
E57: Tarifa administrativa anual | G57: 75 | H57: 75 | I57: 75 | J57: 75
E58: IVA (12%) | G58: =(G55+G57)*0% -> 0 | H58: =(H55+H57)*0% -> 0 | I58: 0 | J58: 0
E59: TOTAL de primera cuota | G59: =SUM(G55:G58) -> 6200.74 | H59: =SUM(H55:H58) -> 5953.23 | I59: =SUM(I55:I58) -> 4431.07 | J59: =SUM(J55:J58) -> 3316.48
E60: Costo de segunda cuota | G60: =SUM(G55:G56) -> 6125.74 | H60: =SUM(H55:H56) -> 5878.23 | I60: 4356.07 | J60: 3241.48
E61: TOTAL ANUAL | G61: =G59+G60 -> 12326.48 | H61: =H59+H60 -> 11831.46 | I61: 8787.14 | J61: =J59+J60 -> 6557.96
E63: Tarifas trimestrales
E64: Prima para Asegurado Titular | G64: =VLOOKUP($I$31,Tablas!$A$830:$G$896,3,TRUE) -> 1023.275 | H64: =VLOOKUP($I$31,Tablas!$A$830:$G$896,4,TRUE) -> 982.025 | I64: =VLOOKUP($I$31,Tablas!$A$830:$G$896,5,TRUE) -> 729.575 | J64: =VLOOKUP($I$31,Tablas!$A$830:$G$896,6,TRUE) -> 542.85
E65: Prima para conyuge | G65: =IF($F$31=1,0,(VLOOKUP($I$33,Tablas!$A$830:$G$896,3,TRUE))) -> 1487.475 | H65: =IF($F$31=1,0,(VLOOKUP($I$33,Tablas!$A$830:$G$896,4,TRUE))) -> 1427.25 | I65: =IF($F$31=1,0,(VLOOKUP($I$33,Tablas!$A$830:$G$896,5,TRUE))) -> 1035.1 | J65: =IF($F$31=1,0,(VLOOKUP($I$33,Tablas!$A$830:$G$896,6,TRUE))) -> 770.275
E66: Prima para hijo (s) | G66: =IF($F$34=0,0,(VLOOKUP($F$34,Tablas!$A$897:$G$899,3,TRUE))) -> 667.7 | H66: =IF($F$34=0,0,(VLOOKUP($F$34,Tablas!$A$897:$G$899,4,TRUE))) -> 640.75 | I66: =IF($F$34=0,0,(VLOOKUP($F$34,Tablas!$A$897:$G$899,5,TRUE))) -> 495.55 | J66: =IF($F$34=0,0,(VLOOKUP($F$34,Tablas!$A$897:$G$899,6,TRUE))) -> 368.775
E67: Total de Prima neta | G67: =SUM(G64:G66) -> 3178.45 | H67: =SUM(H64:H66) -> 3050.025 | I67: =SUM(I64:I66) -> 2260.225 | J67: =SUM(J64:J66) -> 1681.9
E68: Descuento por variante con coaseguro fuera del país de residencia | G68: =IF('INGRESO DE DATOS'!$H$27,G67*-25%,0) -> 0 | H68: =IF('INGRESO DE DATOS'!$H$27,H67*-25%,0) -> 0 | I68: =IF('INGRESO DE DATOS'!$H$27,I67*-25%,0) -> 0 | J68: =IF('INGRESO DE DATOS'!$H$27,J67*-25%,0) -> 0
E69: Tarifa administrativa anual | G69: 75 | H69: 75 | I69: 75 | J69: 75
E70: IVA (12%) | G70: =(G67+G69)*0% -> 0 | H70: =(H67+H69)*0% -> 0 | I70: 0 | J70: 0
E71: TOTAL de primera cuota | G71: =SUM(G67:G70) -> 3253.45 | H71: =SUM(H67:H70) -> 3125.025 | I71: 2335.225 | J71: 1756.9
E72: Costo de tarifa trimestral 2 a 4 | G72: =SUM(G67:G68) -> 3178.45 | H72: =SUM(H67:H68) -> 3050.025 | I72: 2260.225 | J72: 1681.9
E73: TOTAL ANUAL | G73: =G71+(G72*3) -> 12788.8 | H73: =H71+(H72*3) -> 12275.1 | I73: 9115.9 | J73: =J71+(J72*3) -> 6802.6
E75: Tarifas mensuales
E76: Prima para Asegurado Titular | G76: =VLOOKUP($I$31,Tablas!$A$379:$G$445,3,TRUE) -> 347.2933333 | H76: =VLOOKUP($I$31,Tablas!$A$379:$G$445,4,TRUE) -> 333.2933333 | I76: =VLOOKUP($I$31,Tablas!$A$379:$G$445,5,TRUE) -> 247.6133333 | J76: =VLOOKUP($I$31,Tablas!$A$379:$G$445,6,TRUE) -> 184.24
E77: Prima para conyuge | G77: =IF($F$31=1,0,(VLOOKUP($I$33,Tablas!$A$379:$G$445,3,TRUE))) -> 504.84 | H77: =IF($F$31=1,0,(VLOOKUP($I$33,Tablas!$A$379:$G$445,4,TRUE))) -> 484.4 | I77: =IF($F$31=1,0,(VLOOKUP($I$33,Tablas!$A$379:$G$445,5,TRUE))) -> 351.3066667 | J77: =IF($F$31=1,0,(VLOOKUP($I$33,Tablas!$A$379:$G$445,6,TRUE))) -> 261.4266667
E78: Prima para hijo (s) | G78: =IF($F$34=0,0,(VLOOKUP($F$34,Tablas!$A$446:$G$448,3,TRUE))) -> 226.6133333 | H78: =IF($F$34=0,0,(VLOOKUP($F$34,Tablas!$A$446:$G$448,4,TRUE))) -> 217.4666667 | I78: =IF($F$34=0,0,(VLOOKUP($F$34,Tablas!$A$446:$G$448,5,TRUE))) -> 168.1866667 | J78: =IF($F$34=0,0,(VLOOKUP($F$34,Tablas!$A$446:$G$448,6,TRUE))) -> 125.16
E79: Total de Prima neta | G79: =SUM(G76:G78) -> 1078.746667 | H79: =SUM(H76:H78) -> 1035.16 | I79: =SUM(I76:I78) -> 767.1066667 | J79: =SUM(J76:J78) -> 570.8266667
E80: Descuento por variante con coaseguro fuera del país de residencia | G80: =IF('INGRESO DE DATOS'!$H$27,G79*-25%,0) -> 0 | H80: =IF('INGRESO DE DATOS'!$H$27,H79*-25%,0) -> 0 | I80: =IF('INGRESO DE DATOS'!$H$27,I79*-25%,0) -> 0 | J80: =IF('INGRESO DE DATOS'!$H$27,J79*-25%,0) -> 0
E81: Tarifa administrativa anual | G81: 75 | H81: 75 | I81: 75 | J81: 75
E82: IVA (12%) | G82: =(G79+G81)*0% -> 0 | H82: =(H79+H81)*0% -> 0 | I82: 0 | J82: 0
E83: TOTAL de primera cuota | G83: =SUM(G79:G82) -> 1153.746667 | H83: =SUM(H79:H82) -> 1110.16 | I83: =SUM(I79:I82) -> 842.1066667 | J83: =SUM(J79:J82) -> 645.8266667
E84: Costo de tarifa mensual 2 a 12 | G84: =SUM(G79:G80) -> 1078.746667 | H84: =SUM(H79:H80) -> 1035.16 | I84: 767.1066667 | J84: 570.8266667
E85: TOTAL ANUAL | G85: =G83+(G84*11) -> 13019.96 | H85: =H83+(H84*11) -> 12496.92 | I85: =I83+(I84*11) -> 9280.28 | J85: =J83+(J84*11) -> 6924.92
E87: Tarifas en US $ - Efectivas a partir del 1ro de enero de 2021
E88: Este presupuesto solamente tiene carácter informativo y en ningún momento expresa compromiso legal para suministrarle cobertura de seguro. La emisión de una póliza de seguro Bupa está sujeta a todas las evaluaciones de riesgo por parte de Bupa y a la recepción de todos los pagos de prima requeridos.

Sheet Global Major Medical
A31: GLOBAL MAJOR MEDICAL HEALTH PLAN | D31: Nombre del Asegurado Titular | F31: =+'INGRESO DE DATOS'!$D$21 -> NOMBRE COMPLETO
D33: Número de adultos en la póliza | F33: =+'INGRESO DE DATOS'!$D$23 -> 2 | H33: Edad del Asegurado Titular | I33: =+'INGRESO DE DATOS'!$D$25 -> 32
D35: Número de niños en la póliza | F35: =+'INGRESO DE DATOS'!$H$23 -> 2 | H35: Edad del/la conyuge | I35: =+'INGRESO DE DATOS'!$H$25 -> 46
F37: Fecha de la cotización: | H37: =NOW() -> 2021-03-03T12:19:30.890
H38: FALSE
E39: Deducibles | G39: PLAN 1 | H39: PLAN 2 | I39: PLAN 3
E40: En el país de residencia | G40: 7500 | H40: 10000 | I40: 20000
E41: Fuera del país de residencia | G41: 10000 | H41: 20000 | I41: 20000
E43: Tarifas anuales
E44: Prima para Asegurado Titular | G44: =VLOOKUP($I$33,Tablas!$A$1129:$G$1195,3,TRUE) -> 2651 | H44: =VLOOKUP($I$33,Tablas!$A$1129:$G$1195,4,TRUE) -> 2289 | I44: =VLOOKUP($I$33,Tablas!$A$1129:$G$1195,5,TRUE) -> 1742
E45: Prima para conyuge | G45: =IF($F$33=1,0,(VLOOKUP($I$35,Tablas!$A$1129:$G$1195,3,TRUE))) -> 3662 | H45: =IF($F$33=1,0,(VLOOKUP($I$35,Tablas!$A$1129:$G$1195,4,TRUE))) -> 3213 | I45: =IF($F$33=1,0,(VLOOKUP($I$35,Tablas!$A$1129:$G$1195,5,TRUE))) -> 2437
E46: Prima para hijo (s) | G46: =IF($F$35=0,0,(VLOOKUP($F$35,Tablas!$A$1196:$G$1198,3,TRUE))) -> 1633 | H46: =IF($F$35=0,0,(VLOOKUP($F$35,Tablas!$A$1196:$G$1198,4,TRUE))) -> 1375 | I46: =IF($F$35=0,0,(VLOOKUP($F$35,Tablas!$A$1196:$G$1198,5,TRUE))) -> 1078
E47: Total de Prima neta | G47: =SUM(G44:G46) -> 7946 | H47: =SUM(H44:H46) -> 6877 | I47: 5257
E48: Tarifa administrativa anual | G48: 75 | H48: 75 | I48: 75
E49: IVA (12%) | G49: =(G47+G48)*0% -> 0 | H49: =(H47+H48)*0% -> 0 | I49: =(I47+I48)*0% -> 0
E50: TOTAL ANUAL | G50: =SUM(G47:G49) -> 8021 | H50: =SUM(H47:H49) -> 6952 | I50: =SUM(I47:I49) -> 5332
E52: Tarifas semi anuales
E53: Prima para Asegurado Titular | G53: =VLOOKUP($I$33,Tablas!$A$1353:$G$1419,3,TRUE) -> 1405.03 | H53: =VLOOKUP($I$33,Tablas!$A$1353:$G$1419,4,TRUE) -> 1213.17 | I53: =VLOOKUP($I$33,Tablas!$A$1353:$G$1419,5,TRUE) -> 923.26
E54: Prima para conyuge | G54: =IF($F$33=1,0,(VLOOKUP($I$35,Tablas!$A$1353:$G$1419,3,TRUE))) -> 1940.86 | H54: =IF($F$33=1,0,(VLOOKUP($I$35,Tablas!$A$1353:$G$1419,4,TRUE))) -> 1702.89 | I54: =IF($F$33=1,0,(VLOOKUP($I$35,Tablas!$A$1353:$G$1419,5,TRUE))) -> 1291.61
E55: Prima para hijo (s) | G55: =IF($F$35=0,0,(VLOOKUP($F$35,Tablas!$A$1420:$G$1422,3,TRUE))) -> 865.49 | H55: =IF($F$35=0,0,(VLOOKUP($F$35,Tablas!$A$1420:$G$1422,4,TRUE))) -> 728.75 | I55: =IF($F$35=0,0,(VLOOKUP($F$35,Tablas!$A$1420:$G$1422,5,TRUE))) -> 571.34
E56: Total de Prima neta | G56: =SUM(G53:G55) -> 4211.38 | H56: =SUM(H53:H55) -> 3644.81 | I56: =SUM(I53:I55) -> 2786.21
E57: Tarifa administrativa anual | G57: 75 | H57: 75 | I57: 76
E58: IVA (12%) | G58: =(G56+G57)*0% -> 0 | H58: =(H56+H57)*0% -> 0 | I58: =(I56+I57)*0% -> 0
E59: TOTAL de primera cuota | G59: =SUM(G56:G58) -> 4286.38 | H59: =SUM(H56:H58) -> 3719.81 | I59: =SUM(I56:I58) -> 2862.21
E60: Costo de segunda cuota | G60: =G56+G58 -> 4211.38 | H60: =H56+H58 -> 3644.81 | I60: =I56+I58 -> 2786.21
E61: TOTAL ANUAL | G61: =G59+G60 -> 8497.76 | H61: =H59+H60 -> 7364.62 | I61: 5648.42
E63: Tarifas trimestrales
E64: Prima para Asegurado Titular | G64: =VLOOKUP($I$33,Tablas!$A$1278:$G$1344,3,TRUE) -> 729.025 | H64: =VLOOKUP($I$33,Tablas!$A$1278:$G$1344,4,TRUE) -> 629.475 | I64: =VLOOKUP($I$33,Tablas!$A$1278:$G$1344,5,TRUE) -> 479.05
E65: Prima para conyuge | G65: =IF($F$33=1,0,(VLOOKUP($I$35,Tablas!$A$1278:$G$1344,3,TRUE))) -> 1007.05 | H65: =IF($F$33=1,0,(VLOOKUP($I$35,Tablas!$A$1278:$G$1344,4,TRUE))) -> 883.575 | I65: =IF($F$33=1,0,(VLOOKUP($I$35,Tablas!$A$1278:$G$1344,5,TRUE))) -> 670.175
E66: Prima para hijo (s) | G66: =IF($F$35=0,0,(VLOOKUP($F$35,Tablas!$A$1345:$G$1347,3,TRUE))) -> 449.075 | H66: =IF($F$35=0,0,(VLOOKUP($F$35,Tablas!$A$1345:$G$1347,4,TRUE))) -> 378.125 | I66: =IF($F$35=0,0,(VLOOKUP($F$35,Tablas!$A$1345:$G$1347,5,TRUE))) -> 296.45
E67: Total de Prima neta | G67: =SUM(G64:G66) -> 2185.15 | H67: =SUM(H64:H66) -> 1891.175 | I67: =SUM(I64:I66) -> 1445.675
E68: Tarifa administrativa anual | G68: 75 | H68: 75 | I68: 76
E69: IVA (12%) | G69: =(G67+G68)*0% -> 0 | H69: =(H67+H68)*0% -> 0 | I69: =(I67+I68)*0% -> 0
E70: TOTAL de primera cuota | G70: =SUM(G67:G69) -> 2260.15 | H70: =SUM(H67:H69) -> 1966.175 | I70: =SUM(I67:I69) -> 1521.675
E71: Costo de tarifa trimestral 2 a 4 | G71: =G67+G69 -> 2185.15 | H71: =H67+H69 -> 1891.175 | I71: =I67+I69 -> 1445.675
E72: TOTAL ANUAL | G72: =G70+(G71*3) -> 8815.6 | H72: =H70+(H71*3) -> 7639.7 | I72: 5858.7
E74: Tarifas mensual
E75: Prima para Asegurado Titular | G75: =VLOOKUP($I$33,Tablas!$A$1203:$G$1269,3,TRUE) -> 247.4266667 | H75: =VLOOKUP($I$33,Tablas!$A$1203:$G$1269,4,TRUE) -> 213.64 | I75: =VLOOKUP($I$33,Tablas!$A$1203:$G$1269,5,TRUE) -> 162.5866667
E76: Prima para conyuge | G76: =IF($F$33=1,0,(VLOOKUP($I$35,Tablas!$A$1203:$G$1269,3,TRUE))) -> 341.7866667 | H76: =IF($F$33=1,0,(VLOOKUP($I$35,Tablas!$A$1203:$G$1269,4,TRUE))) -> 299.88 | I76: =IF($F$33=1,0,(VLOOKUP($I$35,Tablas!$A$1203:$G$1269,5,TRUE))) -> 227.4533333
E77: Prima para hijo (s) | G77: =IF($F$35=0,0,(VLOOKUP($F$35,Tablas!$A$1270:$G$1272,3,TRUE))) -> 152.4133333 | H77: =IF($F$35=0,0,(VLOOKUP($F$35,Tablas!$A$1270:$G$1272,4,TRUE))) -> 128.3333333 | I77: =IF($F$35=0,0,(VLOOKUP($F$35,Tablas!$A$1270:$G$1272,5,TRUE))) -> 100.6133333
E78: Total de Prima neta | G78: =SUM(G75:G77) -> 741.6266667 | H78: =SUM(H75:H77) -> 641.8533333 | I78: =SUM(I75:I77) -> 490.6533333
E79: Tarifa administrativa anual | G79: 75 | H79: 75 | I79: 76
E80: IVA (12%) | G80: =(G78+G79)*0% -> 0 | H80: =(H78+H79)*0% -> 0 | I80: =(I78+I79)*0% -> 0
E81: TOTAL de primera cuota | G81: =SUM(G78:G80) -> 816.6266667 | H81: =SUM(H78:H80) -> 716.8533333 | I81: =SUM(I78:I80) -> 566.6533333
E82: Costo de tarifa mensual 2 a 12 | G82: =G78+G80 -> 741.6266667 | H82: =H78+H80 -> 641.8533333 | I82: =I78+I80 -> 490.6533333
E83: TOTAL ANUAL | G83: =G81+(G82*11) -> 8974.52 | H83: =H81+(H82*11) -> 7777.24 | I83: =I81+(I82*11) -> 5963.84
E85: Tarifas en US $ - Efectivas a partir del 1ro de enero de 2021
E86: Este presupuesto solamente tiene carácter informativo y en ningún momento expresa compromiso legal para suministrarle cobertura de seguro. La emisión de una póliza de seguro Bupa está sujeta a todas las evaluaciones de riesgo por parte de Bupa y a la recepción de todos los pagos de prima requeridos.

Sheet Resumen tarifas
A27: Cotizador de Seguro Médico - Bupa Global Health Plans
A29: Nombre del Asegurado Titular | C29: =+'INGRESO DE DATOS'!$D$21 -> NOMBRE COMPLETO
A32: Número de adultos en la póliza | C32: =+'INGRESO DE DATOS'!$D$23 -> 2 | E32: Edad del Asegurado Titular | G32: =+'INGRESO DE DATOS'!$D$25 -> 32
A35: Número de niños en la póliza | C35: =+'INGRESO DE DATOS'!$H$23 -> 2 | E35: Edad del/la cónyuge | G35: =+'INGRESO DE DATOS'!$H$25 -> 46
D38: FECHA DE LA COTIZACIÓN: | E38: =NOW() -> 2021-03-03T12:19:30.890
A40: Global Ultimate Health Plan
A41: Deducibles | C41: PLAN 1 | D41: PLAN 2
A42: En el país de residencia | C42: 0 | D42: 1000
A43: Fuera del país de residencia | C43: 0 | D43: 1000
C44: Tarifas anuales
C45: ='Global Ultimate'!G44 -> 52956 | D45: ='Global Ultimate'!H44 -> 34194
C46: Tarifas semi anuales
C47: ='Global Ultimate'!G54 -> 28101.93 | D47: ='Global Ultimate'!H54 -> 18158.07
C48: ='Global Ultimate'!G55 -> 28026.93 | D48: ='Global Ultimate'!H55 -> 18083.07
C49: Tarifas trimestrales
C50: ='Global Ultimate'!G66 -> 14617.275 | D50: ='Global Ultimate'!H66 -> 9457.725
C51: ='Global Ultimate'!G67 -> 14542.275 | D51: ='Global Ultimate'!H67 -> 9382.725
A52: Ahorros en tarifas de prima para niños (pago annual)* | C52: ='Global Ultimate'!G45 -> 6746 | D52: ='Global Ultimate'!H45 -> 4352
C53: Tarifas mensuales
C54: ='Global Ultimate'!G78 -> 5010.56 | D54: ='Global Ultimate'!H78 -> 3259.44
C55: ='Global Ultimate'!G79 -> 4935.56 | D55: ='Global Ultimate'!H79 -> 3184.44
A57: Global Elite Health Plan
A58: Deducibles | D58: PLAN 1 | E58: PLAN 2 | F58: PLAN 3 | G58: PLAN 4 | H58: PLAN 5
A59: En el país de residencia | D59: 250 | E59: 2000 | F59: 3500 | G59: 5000 | H59: 10000
A60: Fuera del país de residencia | D60: 5000 | E60: 2000 | F60: 3500 | G60: 5000 | H60: 10000
D61: Tarifas anuales
D62: =+'Global Elite'!G54 -> 22571 | E62: =+'Global Elite'!H54 -> 19795 | F62: =+'Global Elite'!I54 -> 16370 | G62: =+'Global Elite'!J54 -> 14204 | H62: =+'Global Elite'!K54 -> 11035
D63: Tarifas semi anuales
D64: =+'Global Elite'!G65 -> 11997.88 | E64: =+'Global Elite'!H65 -> 10526.6 | F64: =+'Global Elite'!I65 -> 8711.35 | G64: =+'Global Elite'!J65 -> 7563.37 | H64: =+'Global Elite'!K65 -> 5883.8
D65: =+'Global Elite'!G66 -> 11922.88 | E65: =+'Global Elite'!H66 -> 10451.6 | F65: =+'Global Elite'!I66 -> 8636.35 | G65: =+'Global Elite'!J66 -> 7488.37 | H65: =+'Global Elite'!K66 -> 5808.8
D66: Tarifas trimestrales
D67: =+'Global Elite'!G78 -> 6261.4 | E67: =+'Global Elite'!H78 -> 5498 | F67: =+'Global Elite'!I78 -> 4556.125 | G67: =+'Global Elite'!J78 -> 3960.475 | H67: =+'Global Elite'!K78 -> 3089
D68: =+'Global Elite'!G79 -> 6186.4 | E68: =+'Global Elite'!H79 -> 5423 | F68: =+'Global Elite'!I79 -> 4481.125 | G68: =+'Global Elite'!J79 -> 3885.475 | H68: =+'Global Elite'!K79 -> 3014
A69: Ahorros en tarifas de prima para niños (pago annual)* | D69: =+'Global Elite'!G55 -> 2901 | E69: =+'Global Elite'!H55 -> 2544 | F69: =+'Global Elite'!I55 -> 2155 | G69: =+'Global Elite'!J55 -> 1869 | H69: =+'Global Elite'!K55 -> 1450
D70: Tarifas mensuales
D71: ='Global Elite'!G91 -> 2174.626667 | E71: ='Global Elite'!H91 -> 1915.533333 | F71: ='Global Elite'!I91 -> 1595.866667 | G71: ='Global Elite'!J91 -> 1393.706667 | H71: ='Global Elite'!K91 -> 1097.933333
D72: ='Global Elite'!G92 -> 2099.626667 | E72: ='Global Elite'!H92 -> 1840.533333 | F72: ='Global Elite'!I92 -> 1520.866667 | G72: ='Global Elite'!J92 -> 1318.706667 | H72: ='Global Elite'!K92 -> 1022.933333
A74: Global Premier Health Plan
A75: Deducibles | E75: PLAN 1 | F75: PLAN 2 | G75: PLAN 3 | H75: PLAN 3
A76: En el país de residencia | E76: 250 | F76: 2000 | G76: 5000 | H76: 10000
A77: Fuera del país de residencia | E77: 5000 | F77: 2000 | G77: 5000 | H77: 10000
E78: Tarifas anuales
E79: =+'Global Premier'!G52 -> 16110 | F79: =+'Global Premier'!H52 -> 14626 | G79: =+'Global Premier'!I52 -> 10820 | H79: =+'Global Premier'!J52 -> 8068
E80: Tarifas semi anuales
E81: =+'Global Premier'!G62 -> 8573.55 | F81: =+'Global Premier'!H62 -> 7787.03 | G81: =+'Global Premier'!I62 -> 5769.85 | H81: =+'Global Premier'!J62 -> 4311.29
E82: =+'Global Premier'!G63 -> 8498.55 | F82: =+'Global Premier'!H63 -> 7712.03 | G82: =+'Global Premier'!I63 -> 5694.85 | H82: =+'Global Premier'!J63 -> 4236.29
E83: Tarifas trimestrales
E84: =+'Global Premier'!G74 -> 4484.625 | F84: =+'Global Premier'!H74 -> 4076.525 | G84: =+'Global Premier'!I74 -> 3029.875 | H84: =+'Global Premier'!J74 -> 2273.075
E85: =+'Global Premier'!G75 -> 4409.625 | F85: =+'Global Premier'!H75 -> 4001.525 | G85: =+'Global Premier'!I75 -> 2954.875 | H85: =+'Global Premier'!J75 -> 2198.075
E86: Tarifas mensuales
E87: ='Global Premier'!G86 -> 1571.6 | F87: ='Global Premier'!H86 -> 1433.093333 | G87: ='Global Premier'!I86 -> 1077.866667 | H87: ='Global Premier'!J86 -> 821.0133333
E88: ='Global Premier'!G87 -> 1496.6 | F88: ='Global Premier'!H87 -> 1358.093333 | G88: ='Global Premier'!I87 -> 1002.866667 | H88: ='Global Premier'!J87 -> 746.0133333
A90: Global Select Health Plan
A91: Deducibles | E91: PLAN 1 | F91: PLAN 2 | G91: PLAN 3 | H91: PLAN 4
A92: En el país de residencia | E92: 250 | F92: 2000 | G92: 5000 | H92: 10000
A93: Fuera del país de residencia | E93: 5000 | F93: 2000 | G93: 5000 | H93: 10000
E94: Tarifas anuales
E95: =+'Global Select'!G49 -> 11633 | F95: =+'Global Select'!H49 -> 11166 | G95: =+'Global Select'!I49 -> 8294 | H95: =+'Global Select'!J49 -> 6191
E96: Tarifas semi anuales
E97: =+'Global Select'!G59 -> 6200.74 | F97: =+'Global Select'!H59 -> 5953.23 | G97: =+'Global Select'!I59 -> 4431.07 | H97: =+'Global Select'!J59 -> 3316.48
E98: =+'Global Select'!G60 -> 6125.74 | F98: =+'Global Select'!H60 -> 5878.23 | G98: =+'Global Select'!I60 -> 4356.07 | H98: =+'Global Select'!J60 -> 3241.48
E99: Tarifas trimestrales
E100: =+'Global Select'!G71 -> 3253.45 | F100: =+'Global Select'!H71 -> 3125.025 | G100: =+'Global Select'!I71 -> 2335.225 | H100: =+'Global Select'!J71 -> 1756.9
E101: =+'Global Select'!G72 -> 3178.45 | F101: =+'Global Select'!H72 -> 3050.025 | G101: =+'Global Select'!I72 -> 2260.225 | H101: =+'Global Select'!J72 -> 1681.9
E102: Tarifas mensuales
E103: ='Global Select'!G83 -> 1153.746667 | F103: ='Global Select'!H83 -> 1110.16 | G103: ='Global Select'!I83 -> 842.1066667 | H103: ='Global Select'!J83 -> 645.8266667
E104: ='Global Select'!G84 -> 1078.746667 | F104: ='Global Select'!H84 -> 1035.16 | G104: ='Global Select'!I84 -> 767.1066667 | H104: ='Global Select'!J84 -> 570.8266667
A106: Global Major Medical Health Plan
A107: Deducibles | C107: PLAN 1 | D107: PLAN 2
A108: En el país de residencia | C108: 10000 | D108: 20000
A109: Fuera del país de residencia | C109: 10000 | D109: 20000
C110: Tarifas anuales
C111: ='Global Major Medical'!G50 -> 8021 | D111: ='Global Major Medical'!H50 -> 6952
C112: Tarifas semi anuales
C113: ='Global Major Medical'!G59 -> 4286.38 | D113: ='Global Major Medical'!H59 -> 3719.81
C114: ='Global Major Medical'!G60 -> 4211.38 | D114: ='Global Major Medical'!H60 -> 3644.81
C115: Tarifas trimestrales
C116: ='Global Major Medical'!G70 -> 2260.15 | D116: ='Global Major Medical'!H70 -> 1966.175
C117: ='Global Major Medical'!G71 -> 2185.15 | D117: ='Global Major Medical'!H71 -> 1891.175
C118: Tarifas mensuales
C119: ='Global Major Medical'!G81 -> 816.6266667 | D119: ='Global Major Medical'!H81 -> 716.8533333
C120: ='Global Major Medical'!G82 -> 741.6266667 | D120: ='Global Major Medical'!H82 -> 641.8533333
A122: Una tarifa administrativa de US$75 se carga automáticamente al primer pago
A123: *Basado en un modo de pago anual
A126: Tarifas en US $ - Efectivas a partir del 1ro de enero de 2020
A127: Este presupuesto solamente tiene carácter informativo y en ningún momento expresa compromiso legal para suministrarle cobertura de seguro. La emisión de una póliza de seguro Bupa está sujeta a todas las evaluaciones de riesgo por parte de Bupa y a la recepción de todos los pagos de prima requeridos.

Sheet Tablas
A2: BUPA GLOBAL ELITE | I2: FACTOR MENSUAL: | K2: =1.12/12 -> 0.09333333333 | M2: =1.12/12 -> 0.09333333333
A3: TARIFAS ANUALES | I3: FACTOR TRIMESTRAL: | K3: =1.1/4 -> 0.275 | M3: =1.1/4 -> 0.275
A4: EDAD | I4: FACTOR SEMIANUAL: | K4: =1.06/2 -> 0.53 | M4: =1.06/2 -> 0.53
C5: 250 | D5: 2000 | E5: 3500 | F5: 5000 | G5: 10000
A6: 18 | C6: 6869 | D6: 6019 | E6: 5063 | F6: 4390 | G6: 3405 | I6: Descuento (0%): | K6: 1 | M6: 1
A7: 19 | C7: 6869 | D7: 6019 | E7: 5063 | F7: 4390 | G7: 3405
A8: 20 | C8: 6869 | D8: 6019 | E8: 5063 | F8: 4390 | G8: 3405
A9: 21 | C9: 6869 | D9: 6019 | E9: 5063 | F9: 4390 | G9: 3405
A10: 22 | C10: 6869 | D10: 6019 | E10: 5063 | F10: 4390 | G10: 3405
A11: 23 | C11: 6869 | D11: 6019 | E11: 5063 | F11: 4390 | G11: 3405
A12: 24 | C12: 6869 | D12: 6019 | E12: 5063 | F12: 4390 | G12: 3405
A13: 25 | C13: 7341 | D13: 6434 | E13: 5379 | F13: 4665 | G13: 3618
A14: 26 | C14: 7341 | D14: 6434 | E14: 5379 | F14: 4665 | G14: 3618
A15: 27 | C15: 7341 | D15: 6434 | E15: 5379 | F15: 4665 | G15: 3618
A16: 28 | C16: 7341 | D16: 6434 | E16: 5379 | F16: 4665 | G16: 3618
A17: 29 | C17: 7341 | D17: 6434 | E17: 5379 | F17: 4665 | G17: 3618
A18: 30 | C18: 8166 | D18: 7157 | E18: 5937 | F18: 5147 | G18: 3993
A19: 31 | C19: 8166 | D19: 7157 | E19: 5937 | F19: 5147 | G19: 3993
A20: 32 | C20: 8166 | D20: 7157 | E20: 5937 | F20: 5147 | G20: 3993
A21: 33 | C21: 8166 | D21: 7157 | E21: 5937 | F21: 5147 | G21: 3993
A22: 34 | C22: 8166 | D22: 7157 | E22: 5937 | F22: 5147 | G22: 3993
A23: 35 | C23: 9116 | D23: 7990 | E23: 6591 | F23: 5714 | G23: 4432
A24: 36 | C24: 9116 | D24: 7990 | E24: 6591 | F24: 5714 | G24: 4432
A25: 37 | C25: 9116 | D25: 7990 | E25: 6591 | F25: 5714 | G25: 4432
A26: 38 | C26: 9116 | D26: 7990 | E26: 6591 | F26: 5714 | G26: 4432
A27: 39 | C27: 9116 | D27: 7990 | E27: 6591 | F27: 5714 | G27: 4432
A28: 40 | C28: 10214 | D28: 8951 | E28: 7351 | F28: 6374 | G28: 4944
A29: 41 | C29: 10214 | D29: 8951 | E29: 7351 | F29: 6374 | G29: 4944
A30: 42 | C30: 10214 | D30: 8951 | E30: 7351 | F30: 6374 | G30: 4944
A31: 43 | C31: 10214 | D31: 8951 | E31: 7351 | F31: 6374 | G31: 4944
A32: 44 | C32: 10214 | D32: 8951 | E32: 7351 | F32: 6374 | G32: 4944
A33: 45 | C33: 11429 | D33: 10019 | E33: 8203 | F33: 7113 | G33: 5517
A34: 46 | C34: 11429 | D34: 10019 | E34: 8203 | F34: 7113 | G34: 5517
A35: 47 | C35: 11429 | D35: 10019 | E35: 8203 | F35: 7113 | G35: 5517
A36: 48 | C36: 11429 | D36: 10019 | E36: 8203 | F36: 7113 | G36: 5517
A37: 49 | C37: 11429 | D37: 10019 | E37: 8203 | F37: 7113 | G37: 5517
A38: 50 | C38: 12802 | D38: 11222 | E38: 9165 | F38: 7946 | G38: 6164
A39: 51 | C39: 12802 | D39: 11222 | E39: 9165 | F39: 7946 | G39: 6164
A40: 52 | C40: 12802 | D40: 11222 | E40: 9165 | F40: 7946 | G40: 6164
A41: 53 | C41: 12802 | D41: 11222 | E41: 9165 | F41: 7946 | G41: 6164
A42: 54 | C42: 12802 | D42: 11222 | E42: 9165 | F42: 7946 | G42: 6164
A43: 55 | C43: 14313 | D43: 12546 | E43: 10233 | F43: 8873 | G43: 6882
A44: 56 | C44: 14313 | D44: 12546 | E44: 10233 | F44: 8873 | G44: 6882
A45: 57 | C45: 14313 | D45: 12546 | E45: 10233 | F45: 8873 | G45: 6882
A46: 58 | C46: 14313 | D46: 12546 | E46: 10233 | F46: 8873 | G46: 6882
A47: 59 | C47: 14313 | D47: 12546 | E47: 10233 | F47: 8873 | G47: 6882
A48: 60 | C48: 15320 | D48: 13427 | E48: 10943 | F48: 9490 | G48: 7360
A49: 61 | C49: 17072 | D49: 14964 | E49: 12188 | F49: 10568 | G49: 8197
A50: 62 | C50: 18967 | D50: 16626 | E50: 13537 | F50: 11738 | G50: 9103
A51: 63 | C51: 21007 | D51: 18413 | E51: 14992 | F51: 13000 | G51: 10083
A52: 64 | C52: 23190 | D52: 20325 | E52: 16552 | F52: 14353 | G52: 11132
A53: 65 | C53: 25514 | D53: 22363 | E53: 18218 | F53: 15797 | G53: 12252
A54: 66 | C54: 27982 | D54: 24526 | E54: 19991 | F54: 17334 | G54: 13443
A55: 67 | C55: 30594 | D55: 26815 | E55: 21868 | F55: 18962 | G55: 14706
A56: 68 | C56: 33347 | D56: 29229 | E56: 23850 | F56: 20680 | G56: 16038
A57: 69 | C57: 36245 | D57: 31769 | E57: 25938 | F57: 22492 | G57: 17443
A58: 70 | C58: 39284 | D58: 34433 | E58: 28131 | F58: 24392 | G58: 18918
A59: 71 | C59: 42469 | D59: 37224 | E59: 30430 | F59: 26387 | G59: 20463
A60: 72 | C60: 45793 | D60: 40139 | E60: 32836 | F60: 28472 | G60: 22081
A61: 73 | C61: 49264 | D61: 43181 | E61: 35344 | F61: 30646 | G61: 23767
A62: 74 | C62: 52877 | D62: 46348 | E62: 37959 | F62: 32914 | G62: 25526
A63: 75 | C63: 56632 | D63: 49639 | E63: 40680 | F63: 35274 | G63: 27356
A64: 76 | C64: 56632 | D64: 49639 | E64: 40680 | F64: 35274 | G64: 27356
A65: 77 | C65: 56632 | D65: 49639 | E65: 40680 | F65: 35274 | G65: 27356
A66: 78 | C66: 56632 | D66: 49639 | E66: 40680 | F66: 35274 | G66: 27356
A67: 79 | C67: 56632 | D67: 49639 | E67: 40680 | F67: 35274 | G67: 27356
A68: 80 | C68: 56632 | D68: 49639 | E68: 40680 | F68: 35274 | G68: 27356
A69: 81 | C69: 56632 | D69: 49639 | E69: 40680 | F69: 35274 | G69: 27356
A70: 82 | C70: 56632 | D70: 49639 | E70: 40680 | F70: 35274 | G70: 27356
A71: 83 | C71: 56632 | D71: 49639 | E71: 40680 | F71: 35274 | G71: 27356
A72: 84 | B72: o más | C72: 56632 | D72: 49639 | E72: 40680 | F72: 35274 | G72: 27356
A73: 1 | B73: Hijo | C73: 2901 | D73: 2544 | E73: 2155 | F73: 1869 | G73: 1450
A74: 2 | B74: Hijos | C74: 4934 | D74: 4325 | E74: 3663 | F74: 3176 | G74: 2464
A75: 3 | B75: Hijos o más | C75: 6964 | D75: 6105 | E75: 5171 | F75: 4484 | G75: 3477
A77: BUPA GLOBAL ELITE - MENSUALES
A78: EDAD
C79: 250 | D79: 2000 | E79: 3500 | F79: 5000 | G79: 10000
A80: 18 | C80: =+C6*$K$2 -> 641.1066667 | D80: =+D6*$K$2 -> 561.7733333 | E80: 472.5466667 | F80: 409.7333333 | G80: 317.8
A81: 19 | C81: =+C7*$K$2 -> 641.1066667 | D81: 561.7733333 | E81: 472.5466667 | F81: 409.7333333 | G81: 317.8
A82: 20 | C82: =+C8*$K$2 -> 641.1066667 | D82: 561.7733333 | E82: 472.5466667 | F82: 409.7333333 | G82: 317.8
A83: 21 | C83: =+C9*$K$2 -> 641.1066667 | D83: 561.7733333 | E83: 472.5466667 | F83: 409.7333333 | G83: 317.8
A84: 22 | C84: =+C10*$K$2 -> 641.1066667 | D84: 561.7733333 | E84: 472.5466667 | F84: 409.7333333 | G84: 317.8
A85: 23 | C85: =+C11*$K$2 -> 641.1066667 | D85: 561.7733333 | E85: 472.5466667 | F85: 409.7333333 | G85: 317.8
A86: 24 | C86: =+C12*$K$2 -> 641.1066667 | D86: 561.7733333 | E86: 472.5466667 | F86: 409.7333333 | G86: 317.8
A87: 25 | C87: =+C13*$K$2 -> 685.16 | D87: 600.5066667 | E87: 502.04 | F87: 435.4 | G87: 337.68
A88: 26 | C88: =+C14*$K$2 -> 685.16 | D88: 600.5066667 | E88: 502.04 | F88: 435.4 | G88: 337.68
A89: 27 | C89: =+C15*$K$2 -> 685.16 | D89: 600.5066667 | E89: 502.04 | F89: 435.4 | G89: 337.68
A90: 28 | C90: =+C16*$K$2 -> 685.16 | D90: 600.5066667 | E90: 502.04 | F90: 435.4 | G90: 337.68
A91: 29 | C91: =+C17*$K$2 -> 685.16 | D91: 600.5066667 | E91: 502.04 | F91: 435.4 | G91: 337.68
A92: 30 | C92: =+C18*$K$2 -> 762.16 | D92: 667.9866667 | E92: 554.12 | F92: 480.3866667 | G92: 372.68
A93: 31 | C93: =+C19*$K$2 -> 762.16 | D93: 667.9866667 | E93: 554.12 | F93: 480.3866667 | G93: 372.68
A94: 32 | C94: =+C20*$K$2 -> 762.16 | D94: 667.9866667 | E94: 554.12 | F94: 480.3866667 | G94: 372.68
A95: 33 | C95: =+C21*$K$2 -> 762.16 | D95: 667.9866667 | E95: 554.12 | F95: 480.3866667 | G95: 372.68
A96: 34 | C96: =+C22*$K$2 -> 762.16 | D96: 667.9866667 | E96: 554.12 | F96: 480.3866667 | G96: 372.68
A97: 35 | C97: =+C23*$K$2 -> 850.8266667 | D97: 745.7333333 | E97: 615.16 | F97: 533.3066667 | G97: 413.6533333
A98: 36 | C98: =+C24*$K$2 -> 850.8266667 | D98: 745.7333333 | E98: 615.16 | F98: 533.3066667 | G98: 413.6533333
A99: 37 | C99: =+C25*$K$2 -> 850.8266667 | D99: 745.7333333 | E99: 615.16 | F99: 533.3066667 | G99: 413.6533333
A100: 38 | C100: =+C26*$K$2 -> 850.8266667 | D100: 745.7333333 | E100: 615.16 | F100: 533.3066667 | G100: 413.6533333
A101: 39 | C101: =+C27*$K$2 -> 850.8266667 | D101: 745.7333333 | E101: 615.16 | F101: 533.3066667 | G101: 413.6533333
A102: 40 | C102: =+C28*$K$2 -> 953.3066667 | D102: 835.4266667 | E102: 686.0933333 | F102: 594.9066667 | G102: 461.44
A103: 41 | C103: =+C29*$K$2 -> 953.3066667 | D103: 835.4266667 | E103: 686.0933333 | F103: 594.9066667 | G103: 461.44
A104: 42 | C104: =+C30*$K$2 -> 953.3066667 | D104: 835.4266667 | E104: 686.0933333 | F104: 594.9066667 | G104: 461.44
A105: 43 | C105: =+C31*$K$2 -> 953.3066667 | D105: 835.4266667 | E105: 686.0933333 | F105: 594.9066667 | G105: 461.44
A106: 44 | C106: =+C32*$K$2 -> 953.3066667 | D106: 835.4266667 | E106: 686.0933333 | F106: 594.9066667 | G106: 461.44
A107: 45 | C107: =+C33*$K$2 -> 1066.706667 | D107: 935.1066667 | E107: 765.6133333 | F107: 663.88 | G107: 514.92
A108: 46 | C108: =+C34*$K$2 -> 1066.706667 | D108: 935.1066667 | E108: 765.6133333 | F108: 663.88 | G108: 514.92
A109: 47 | C109: =+C35*$K$2 -> 1066.706667 | D109: 935.1066667 | E109: 765.6133333 | F109: 663.88 | G109: 514.92
A110: 48 | C110: =+C36*$K$2 -> 1066.706667 | D110: 935.1066667 | E110: 765.6133333 | F110: 663.88 | G110: 514.92
A111: 49 | C111: =+C37*$K$2 -> 1066.706667 | D111: 935.1066667 | E111: 765.6133333 | F111: 663.88 | G111: 514.92
A112: 50 | C112: =+C38*$K$2 -> 1194.853333 | D112: 1047.386667 | E112: 855.4 | F112: 741.6266667 | G112: 575.3066667
A113: 51 | C113: =+C39*$K$2 -> 1194.853333 | D113: 1047.386667 | E113: 855.4 | F113: 741.6266667 | G113: 575.3066667
A114: 52 | C114: =+C40*$K$2 -> 1194.853333 | D114: 1047.386667 | E114: 855.4 | F114: 741.6266667 | G114: 575.3066667
A115: 53 | C115: =+C41*$K$2 -> 1194.853333 | D115: 1047.386667 | E115: 855.4 | F115: 741.6266667 | G115: 575.3066667
A116: 54 | C116: =+C42*$K$2 -> 1194.853333 | D116: 1047.386667 | E116: 855.4 | F116: 741.6266667 | G116: 575.3066667
A117: 55 | C117: =+C43*$K$2 -> 1335.88 | D117: 1170.96 | E117: 955.08 | F117: 828.1466667 | G117: 642.32
A118: 56 | C118: =+C44*$K$2 -> 1335.88 | D118: 1170.96 | E118: 955.08 | F118: 828.1466667 | G118: 642.32
A119: 57 | C119: =+C45*$K$2 -> 1335.88 | D119: 1170.96 | E119: 955.08 | F119: 828.1466667 | G119: 642.32
A120: 58 | C120: =+C46*$K$2 -> 1335.88 | D120: 1170.96 | E120: 955.08 | F120: 828.1466667 | G120: 642.32
A121: 59 | C121: =+C47*$K$2 -> 1335.88 | D121: 1170.96 | E121: 955.08 | F121: 828.1466667 | G121: 642.32
A122: 60 | C122: =+C48*$K$2 -> 1429.866667 | D122: 1253.186667 | E122: 1021.346667 | F122: 885.7333333 | G122: 686.9333333
A123: 61 | C123: =+C49*$K$2 -> 1593.386667 | D123: 1396.64 | E123: 1137.546667 | F123: 986.3466667 | G123: 765.0533333
A124: 62 | C124: =+C50*$K$2 -> 1770.253333 | D124: 1551.76 | E124: 1263.453333 | F124: 1095.546667 | G124: 849.6133333
A125: 63 | C125: =+C51*$K$2 -> 1960.653333 | D125: 1718.546667 | E125: 1399.253333 | F125: 1213.333333 | G125: 941.08
A126: 64 | C126: =+C52*$K$2 -> 2164.4 | D126: 1897 | E126: 1544.853333 | F126: 1339.613333 | G126: 1038.986667
A127: 65 | C127: =+C53*$K$2 -> 2381.306667 | D127: 2087.213333 | E127: 1700.346667 | F127: 1474.386667 | G127: 1143.52
A128: 66 | C128: =+C54*$K$2 -> 2611.653333 | D128: 2289.093333 | E128: 1865.826667 | F128: 1617.84 | G128: 1254.68
A129: 67 | C129: =+C55*$K$2 -> 2855.44 | D129: 2502.733333 | E129: 2041.013333 | F129: 1769.786667 | G129: 1372.56
A130: 68 | C130: =+C56*$K$2 -> 3112.386667 | D130: 2728.04 | E130: 2226 | F130: 1930.133333 | G130: 1496.88
A131: 69 | C131: =+C57*$K$2 -> 3382.866667 | D131: 2965.106667 | E131: 2420.88 | F131: 2099.253333 | G131: 1628.013333
A132: 70 | C132: =+C58*$K$2 -> 3666.506667 | D132: 3213.746667 | E132: 2625.56 | F132: 2276.586667 | G132: 1765.68
A133: 71 | C133: =+C59*$K$2 -> 3963.773333 | D133: 3474.24 | E133: 2840.133333 | F133: 2462.786667 | G133: 1909.88
A134: 72 | C134: =+C60*$K$2 -> 4274.013333 | D134: 3746.306667 | E134: 3064.693333 | F134: 2657.386667 | G134: 2060.893333
A135: 73 | C135: =+C61*$K$2 -> 4597.973333 | D135: 4030.226667 | E135: 3298.773333 | F135: 2860.293333 | G135: 2218.253333
A136: 74 | C136: =+C62*$K$2 -> 4935.186667 | D136: 4325.813333 | E136: 3542.84 | F136: 3071.973333 | G136: 2382.426667
A137: 75 | C137: =+C63*$K$2 -> 5285.653333 | D137: 4632.973333 | E137: 3796.8 | F137: 3292.24 | G137: 2553.226667
A138: 76 | C138: =+C64*$K$2 -> 5285.653333 | D138: 4632.973333 | E138: 3796.8 | F138: 3292.24 | G138: 2553.226667
A139: 77 | C139: =+C65*$K$2 -> 5285.653333 | D139: 4632.973333 | E139: 3796.8 | F139: 3292.24 | G139: 2553.226667
A140: 78 | C140: =+C66*$K$2 -> 5285.653333 | D140: 4632.973333 | E140: 3796.8 | F140: 3292.24 | G140: 2553.226667
A141: 79 | C141: =+C67*$K$2 -> 5285.653333 | D141: 4632.973333 | E141: 3796.8 | F141: 3292.24 | G141: 2553.226667
A142: 80 | C142: =+C68*$K$2 -> 5285.653333 | D142: 4632.973333 | E142: 3796.8 | F142: 3292.24 | G142: 2553.226667
A143: 81 | C143: =+C69*$K$2 -> 5285.653333 | D143: 4632.973333 | E143: 3796.8 | F143: 3292.24 | G143: 2553.226667
A144: 82 | C144: =+C70*$K$2 -> 5285.653333 | D144: 4632.973333 | E144: 3796.8 | F144: 3292.24 | G144: 2553.226667
A145: 83 | C145: =+C71*$K$2 -> 5285.653333 | D145: 4632.973333 | E145: 3796.8 | F145: 3292.24 | G145: 2553.226667
A146: 84 | B146: o más | C146: =+C72*$K$2 -> 5285.653333 | D146: 4632.973333 | E146: 3796.8 | F146: 3292.24 | G146: 2553.226667
A147: 1 | B147: Hijo | C147: =+C73*$K$2 -> 270.76 | D147: 237.44 | E147: 201.1333333 | F147: 174.44 | G147: 135.3333333
A148: 2 | B148: Hijos | C148: =+C74*$K$2 -> 460.5066667 | D148: 403.6666667 | E148: 341.88 | F148: 296.4266667 | G148: 229.9733333
A149: 3 | B149: Hijos o más | C149: =+C75*$K$2 -> 649.9733333 | D149: 569.8 | E149: 482.6266667 | F149: 418.5066667 | G149: 324.52
A151: BUPA GLOBAL PREMIER
A152: TARIFAS ANUALES
A153: EDAD
C154: 250 | D154: 2000 | E154: 5000 | F154: 10000
A155: 18 | C155: 4490 | D155: 4074 | E155: 3091 | F155: 2299
A156: 19 | C156: 4490 | D156: 4074 | E156: 3091 | F156: 2299
A157: 20 | C157: 4490 | D157: 4074 | E157: 3091 | F157: 2299
A158: 21 | C158: 4490 | D158: 4074 | E158: 3091 | F158: 2299
A159: 22 | C159: 4490 | D159: 4074 | E159: 3091 | F159: 2299
A160: 23 | C160: 4490 | D160: 4074 | E160: 3091 | F160: 2299
A161: 24 | C161: 4490 | D161: 4074 | E161: 3091 | F161: 2299
A162: 25 | C162: 4798 | D162: 4354 | E162: 3269 | F162: 2433
A163: 26 | C163: 4798 | D163: 4354 | E163: 3269 | F163: 2433
A164: 27 | C164: 4798 | D164: 4354 | E164: 3269 | F164: 2433
A165: 28 | C165: 4798 | D165: 4354 | E165: 3269 | F165: 2433
A166: 29 | C166: 4798 | D166: 4354 | E166: 3269 | F166: 2433
A167: 30 | C167: 5338 | D167: 4843 | E167: 3589 | F167: 2670
A168: 31 | C168: 5338 | D168: 4843 | E168: 3589 | F168: 2670
A169: 32 | C169: 5338 | D169: 4843 | E169: 3589 | F169: 2670
A170: 33 | C170: 5338 | D170: 4843 | E170: 3589 | F170: 2670
A171: 34 | C171: 5338 | D171: 4843 | E171: 3589 | F171: 2670
A172: 35 | C172: 5957 | D172: 5408 | E172: 3967 | F172: 2950
A173: 36 | C173: 5957 | D173: 5408 | E173: 3967 | F173: 2950
A174: 37 | C174: 5957 | D174: 5408 | E174: 3967 | F174: 2950
A175: 38 | C175: 5957 | D175: 5408 | E175: 3967 | F175: 2950
A176: 39 | C176: 5957 | D176: 5408 | E176: 3967 | F176: 2950
A177: 40 | C177: 6676 | D177: 6059 | E177: 4411 | F177: 3281
A178: 41 | C178: 6676 | D178: 6059 | E178: 4411 | F178: 3281
A179: 42 | C179: 6676 | D179: 6059 | E179: 4411 | F179: 3281
A180: 43 | C180: 6676 | D180: 6059 | E180: 4411 | F180: 3281
A181: 44 | C181: 6676 | D181: 6059 | E181: 4411 | F181: 3281
A182: 45 | C182: 7472 | D182: 6782 | E182: 4910 | F182: 3652
A183: 46 | C183: 7472 | D183: 6782 | E183: 4910 | F183: 3652
A184: 47 | C184: 7472 | D184: 6782 | E184: 4910 | F184: 3652
A185: 48 | C185: 7472 | D185: 6782 | E185: 4910 | F185: 3652
A186: 49 | C186: 7472 | D186: 6782 | E186: 4910 | F186: 3652
A187: 50 | C187: 8368 | D187: 7594 | E187: 5477 | F187: 4074
A188: 51 | C188: 8368 | D188: 7594 | E188: 5477 | F188: 4074
A189: 52 | C189: 8368 | D189: 7594 | E189: 5477 | F189: 4074
A190: 53 | C190: 8368 | D190: 7594 | E190: 5477 | F190: 4074
A191: 54 | C191: 8368 | D191: 7594 | E191: 5477 | F191: 4074
A192: 55 | C192: 9356 | D192: 8491 | E192: 6107 | F192: 4544
A193: 56 | C193: 9356 | D193: 8491 | E193: 6107 | F193: 4544
A194: 57 | C194: 9356 | D194: 8491 | E194: 6107 | F194: 4544
A195: 58 | C195: 9356 | D195: 8491 | E195: 6107 | F195: 4544
A196: 59 | C196: 9356 | D196: 8491 | E196: 6107 | F196: 4544
A197: 60 | C197: 10014 | D197: 9087 | E197: 6529 | F197: 4856
A198: 61 | C198: 11160 | D198: 10127 | E198: 7266 | F198: 5405
A199: 62 | C199: 12396 | D199: 11252 | E199: 8068 | F199: 6002
A200: 63 | C200: 13730 | D200: 12460 | E200: 8937 | F200: 6647
A201: 64 | C201: 15156 | D201: 13754 | E201: 9869 | F201: 7342
A202: 65 | C202: 16676 | D202: 15132 | E202: 10865 | F202: 8082
A203: 66 | C203: 18290 | D203: 16597 | E203: 11926 | F203: 8872
... 1275 more rows
